Authority,Department,Spending Area,Expense Type,Posting Date,Reference,Amount,Supplier
OXFORDSHIRE CC,CORPORATE CORE,,STATIONERY,27/05/2022,8226982672,147.96,LYRECO UK LTD
OXFORDSHIRE CC,CORPORATE CORE,,STATIONERY,27/05/2022,8226982670,34.75,LYRECO UK LTD
OXFORDSHIRE CC,"CHILDRENS, YOUNG PEOPLE AND FAMILIES",NTS UASC AGENCY,DRUGS AND MEDICAL SUPPLIES,27/05/2022,8226982680,17.52,SAVERS HEALTH & BEAUTY
OXFORDSHIRE CC,"CHILDRENS, YOUNG PEOPLE AND FAMILIES","	LEAVING CARE NORTH",OTHER TRANSPORT ARRANGEMENTS,27/05/2022,8226982676,20.00,FIRST BUS - MOBILE
OXFORDSHIRE CC,"CHILDRENS, YOUNG PEOPLE AND FAMILIES",THAME E&A HOME,MATERIALS,27/05/2022,8226982238,15.47,CLINTONS-155
OXFORDSHIRE CC,"CHILDRENS, YOUNG PEOPLE AND FAMILIES",ICS ADMIN,MATERIALS,27/05/2022,8226982234,21.99,AMAZON.CO.UK 2G03M3OQ4
OXFORDSHIRE CC,"CHILDRENS, YOUNG PEOPLE AND FAMILIES","	LOOKED AFTER SOUTH","SUPPLIES, STATIONERY AND MATERIALS",27/05/2022,8226982236,16.45,DMN/SPINNERSREADING
OXFORDSHIRE CC,COMMUNITY SAFETY,ON ST PARK OXFD SPA,MATERIALS,27/05/2022,8226982240,40.80,AMZNMKTPLACE
OXFORDSHIRE CC,"CHILDRENS, YOUNG PEOPLE AND FAMILIES","	LEAVING CARE CITY 2",OTHER TRANSPORT ARRANGEMENTS,27/05/2022,8226982242,4.00,WESTGATE OXFORD CAR PA
OXFORDSHIRE CC,"CHILDRENS, YOUNG PEOPLE AND FAMILIES",CHILDREN IN CARE NON-STAFFING - CENTRL 1,OTHER TRANSPORT ARRANGEMENTS,27/05/2022,8226982244,69.00,WWW.THEKEY.CO.UK
OXFORDSHIRE CC,"CHILDRENS, YOUNG PEOPLE AND FAMILIES","	LOOKED AFTER CITY 2",OTHER TRANSPORT ARRANGEMENTS,27/05/2022,8226982476,6.00,OXFORDBUS.CO.UK
OXFORDSHIRE CC,SOCIAL AND COMMUNITY SERVICES,PROPERTY CLEANING,CATERING PROVISIONS,27/05/2022,8226982250,-3.51,MILK AND MORE
OXFORDSHIRE CC,SOCIAL AND COMMUNITY SERVICES,CICC,MATERIALS,27/05/2022,8226982264,69.90,AMZNMKTPLACE AMAZON.CO
OXFORDSHIRE CC,"CHILDRENS, YOUNG PEOPLE AND FAMILIES","	LOOKED AFTER CITY 2",PAYMENTS TO TRANSPORT OPERATORS,27/05/2022,8226982478,4.38,TRAINLINE
OXFORDSHIRE CC,"CHILDRENS, YOUNG PEOPLE AND FAMILIES","	LOOKED AFTER CITY 2",PAYMENTS TO TRANSPORT OPERATORS,27/05/2022,8226982480,8.76,TRAINLINE
OXFORDSHIRE CC,"CHILDRENS, YOUNG PEOPLE AND FAMILIES",THAME E&A HOME,CATERING PROVISIONS,27/05/2022,8226982272,7.73,CARTHAGE FARM BUTCHERS
OXFORDSHIRE CC,SOCIAL AND COMMUNITY SERVICES,CICC,PAYMENTS TO TRANSPORT OPERATORS,27/05/2022,8226982268,-4.50,TRAINLINE.COM
OXFORDSHIRE CC,SOCIAL AND COMMUNITY SERVICES,CICC,PAYMENTS TO TRANSPORT OPERATORS,27/05/2022,8226982266,9.36,TRAINLINE.COM
OXFORDSHIRE CC,SOCIAL AND COMMUNITY SERVICES,CSS WALLINGFORD,MATERIALS,27/05/2022,8226982270,10.27,AMZNMKTPLACE AMAZON.CO
OXFORDSHIRE CC,CORPORATE CORE,INCOME TEAM,PAYMENT TO GOVERNMENT DEPARTMENTS,27/05/2022,8226982278,1.50,WWW.GOV.UK
OXFORDSHIRE CC,"CHILDRENS, YOUNG PEOPLE AND FAMILIES",40 THE MOORS,TELEPHONE - EQUIPMENT,27/05/2022,8226982286,89.99,AMZNMKTPLACE AMAZON.CO
OXFORDSHIRE CC,"CHILDRENS, YOUNG PEOPLE AND FAMILIES",40 THE MOORS,CLEANING MATERIALS,27/05/2022,8226982288,22.00,AMZNMKTPLACE AMAZON.CO
OXFORDSHIRE CC,"CHILDRENS, YOUNG PEOPLE AND FAMILIES",40 THE MOORS,MATERIALS,27/05/2022,8226982290,25.98,AMZNMKTPLACE AMAZON.CO
OXFORDSHIRE CC,SOCIAL AND COMMUNITY SERVICES,"	MUSEUMS COLLECTIONS",OTHER SERVICES,27/05/2022,8226982502,496.63,ESSENTRA COMPONENTS LI
OXFORDSHIRE CC,ENVIRONMENT AND ECONOMY,LEARNING & ACCESS,EQUIPMENT,27/05/2022,8226982500,38.99,AMZNMKTPLACE
OXFORDSHIRE CC,"CHILDRENS, YOUNG PEOPLE AND FAMILIES","	LEAVING CARE NORTH",OTHER TRANSPORT ARRANGEMENTS,27/05/2022,8226982510,30.00,OXFORDBUS.CO.UK
OXFORDSHIRE CC,"CHILDRENS, YOUNG PEOPLE AND FAMILIES",CNTL EARLY HELP-RHIL,"SUPPLIES, STATIONERY AND MATERIALS",27/05/2022,8226982626,30.00,CS ODEON GIFT CARDS
OXFORDSHIRE CC,"CHILDRENS, YOUNG PEOPLE AND FAMILIES","	LEAVING CARE CITY 1",FURNITURE,27/05/2022,8226982630,129.99,PAYPAL  COMFYLIVING ON
OXFORDSHIRE CC,"CHILDRENS, YOUNG PEOPLE AND FAMILIES",EYNSHAM,MATERIALS,27/05/2022,8226982632,7.00,BLENHEIM PALACE
OXFORDSHIRE CC,"CHILDRENS, YOUNG PEOPLE AND FAMILIES",EYNSHAM,MATERIALS,27/05/2022,8226982634,3.17,AMZNMKTPLACE AMAZON.CO
OXFORDSHIRE CC,"CHILDRENS, YOUNG PEOPLE AND FAMILIES",THAME E&A HOME,CATERING PROVISIONS,27/05/2022,8226982194,18.75,COST SAVER LOCAL
OXFORDSHIRE CC,"CHILDRENS, YOUNG PEOPLE AND FAMILIES",KINGFISHER,PAYMENTS TO TRANSPORT OPERATORS,27/05/2022,8226982192,927.01,HOTELSCOM9168502157997
OXFORDSHIRE CC,"CHILDRENS, YOUNG PEOPLE AND FAMILIES",CSS WALLINGFORD,MATERIALS,27/05/2022,8226982180,84.99,AMZNMKTPLACE
OXFORDSHIRE CC,"CHILDRENS, YOUNG PEOPLE AND FAMILIES",CSS WANTAGE,CATERING PROVISIONS,27/05/2022,8226982190,28.62,TESCO STORES 2008
OXFORDSHIRE CC,"CHILDRENS, YOUNG PEOPLE AND FAMILIES","	SUPERVISED CONTACT",PAYMENTS TO TRANSPORT OPERATORS,27/05/2022,8226982436,42.38,THETRAINLINE.COM
OXFORDSHIRE CC,"CHILDRENS, YOUNG PEOPLE AND FAMILIES",WITNEY,CATERING PROVISIONS,27/05/2022,8226982432,15.29,SAINSBURYS S/MKTS
OXFORDSHIRE CC,"CHILDRENS, YOUNG PEOPLE AND FAMILIES",FSP NON-STAFFING - CENTRAL,HIRE OF ACCOMMODATION AND FACILITIES,27/05/2022,8226982434,156.99,HOLIDAY INNS
OXFORDSHIRE CC,"CHILDRENS, YOUNG PEOPLE AND FAMILIES",EYNSHAM,MATERIALS,27/05/2022,8226982644,25.98,AMZNMKTPLACE
OXFORDSHIRE CC,"CHILDRENS, YOUNG PEOPLE AND FAMILIES",EYNSHAM,MATERIALS,27/05/2022,8226982638,10.59,AMZNMKTPLACE AMAZON.CO
OXFORDSHIRE CC,"CHILDRENS, YOUNG PEOPLE AND FAMILIES",EYNSHAM,MATERIALS,27/05/2022,8226982640,8.49,AMZNMKTPLACE AMAZON.CO
OXFORDSHIRE CC,"CHILDRENS, YOUNG PEOPLE AND FAMILIES",EYNSHAM,MATERIALS,27/05/2022,8226982642,6.98,AMZNMKTPLACE
OXFORDSHIRE CC,ENVIRONMENT AND ECONOMY,HARD FM,HARDWARE AND CROCKERY,27/05/2022,8226982202,28.62,WICKES OXFORD
OXFORDSHIRE CC,"CHILDRENS, YOUNG PEOPLE AND FAMILIES","	LOOKED AFTER CITY 1",NON-STAFF SUBSISTENCE AND EXPENSES,27/05/2022,8226982198,3.85,WAITROSE 479
OXFORDSHIRE CC,SOCIAL AND COMMUNITY SERVICES,CSS - OXFORD,CATERING PROVISIONS,27/05/2022,8226982200,19.03,ALDI STORES 775-142
OXFORDSHIRE CC,ENVIRONMENT AND ECONOMY,HARD FM,HARDWARE AND CROCKERY,27/05/2022,8226982204,100.83,SCREWFIX DIR LTD
OXFORDSHIRE CC,ENVIRONMENT AND ECONOMY,HARD FM,MATERIALS,27/05/2022,8226982206,365.99,AMZNMKTPLACE
OXFORDSHIRE CC,ENVIRONMENT AND ECONOMY,HARD FM,MATERIALS,27/05/2022,8226982208,5.49,AMZNMKTPLACE
OXFORDSHIRE CC,ENVIRONMENT AND ECONOMY,HARD FM,HARDWARE AND CROCKERY,27/05/2022,8226982210,19.90,WICKES OXFORD
OXFORDSHIRE CC,"CHILDRENS, YOUNG PEOPLE AND FAMILIES",PAUSE PROGRAMME,CATERING PROVISIONS,27/05/2022,8226982448,10.20,ICELAND FOODS
OXFORDSHIRE CC,SOCIAL AND COMMUNITY SERVICES,SCHOOLS FM CATERING AREA 2,MATERIALS,27/05/2022,8226982442,11.89,AMZNMKTPLACE
OXFORDSHIRE CC,ENVIRONMENT AND ECONOMY,"	NAT TRAILS GENERAL",CATERING PROVISIONS,27/05/2022,8226982444,3.70,CO OPERATIVE FOOD
OXFORDSHIRE CC,"CHILDRENS, YOUNG PEOPLE AND FAMILIES",PAUSE PROGRAMME,CATERING,27/05/2022,8226982446,7.40,COSTA @ TESCO
OXFORDSHIRE CC,"CHILDRENS, YOUNG PEOPLE AND FAMILIES",DIDCOT MOVE-ON HOME,HARDWARE AND CROCKERY,27/05/2022,8226982452,69.99,WWW.SCREWFIX.COM
OXFORDSHIRE CC,"CHILDRENS, YOUNG PEOPLE AND FAMILIES",DIDCOT MOVE-ON HOME,GENERAL MAINTENANCE,27/05/2022,8226982454,8.85,SP SISI-UK
OXFORDSHIRE CC,"CHILDRENS, YOUNG PEOPLE AND FAMILIES",THAME E&A HOME,CATERING PROVISIONS,27/05/2022,8226982230,76.70,WAITROSE 206
OXFORDSHIRE CC,"CHILDRENS, YOUNG PEOPLE AND FAMILIES","	LEAVING CARE NORTH",MATERIALS,27/05/2022,8226982220,249.99,AMZNMKTPLACE AMAZON.CO
OXFORDSHIRE CC,"CHILDRENS, YOUNG PEOPLE AND FAMILIES","	LEAVING CARE NORTH",INSURANCE COSTS,27/05/2022,8226982222,67.93,COLLINGWOOD LEARNER MO
OXFORDSHIRE CC,ENVIRONMENT AND ECONOMY,"	COUNTY PRINT FINSHRS",HIRE OF ACCOMMODATION AND FACILITIES,27/05/2022,8226982224,"1,287.00",BICESTER HOTEL GOLF AN
OXFORDSHIRE CC,"CHILDRENS, YOUNG PEOPLE AND FAMILIES","	LOOKED AFTER NORTH",MATERIALS,27/05/2022,8226982226,1.40,MAX SPIELMANN LTD
OXFORDSHIRE CC,SOCIAL AND COMMUNITY SERVICES,CSS BICESTER,CATERING PROVISIONS,27/05/2022,8226982228,3.87,ICELAND
OXFORDSHIRE CC,CORPORATE CORE,"MARKETING, COMMUNICATIONS & ENGAGEMENT",PHOTOCOPYING,27/05/2022,8226982462,3.11,CANVA  03432-6486065
OXFORDSHIRE CC,CORPORATE CORE,"MARKETING, COMMUNICATIONS & ENGAGEMENT","PUBLICITY, PROMOTIONS AND ADVERTISEMENT",27/05/2022,8226982464,2.09,SNAP INC SNAP SNAP ADS
OXFORDSHIRE CC,"CHILDRENS, YOUNG PEOPLE AND FAMILIES","	LEAVING CARE CITY 2",OTHER TRANSPORT ARRANGEMENTS,27/05/2022,8226982388,4.30,STGCOACH/CTYLINK
OXFORDSHIRE CC,"CHILDRENS, YOUNG PEOPLE AND FAMILIES",FAMILY SOLUTIONS PLUS NON-STAFF - NORTH,ENTERTAINMENT EXPENSES,27/05/2022,8226982374,91.00,NINJA WARRIOR UK GLOUC
OXFORDSHIRE CC,CORPORATE CORE,SCHOOLS FM CATERING AREA 4,CATERING PROVISIONS,27/05/2022,8226982386,61.80,SAINSBURYS S/MKTS
OXFORDSHIRE CC,"CHILDRENS, YOUNG PEOPLE AND FAMILIES","	MUSIC UNALLOCABLE",EDUCATIONAL AND VOCATIONAL TRAINING ,27/05/2022,8226982376,477.60,WWW.MARKALLENGROUP.COM
OXFORDSHIRE CC,ENVIRONMENT AND ECONOMY,BANBURY LIBRARY,"NEWSPAPERS, PERIODICALS AND PUBLICATIONS",27/05/2022,8226982378,47.99,GUARDIAN NEWS & MEDIA
OXFORDSHIRE CC,CORPORATE CORE,SCHOOLS FM CATERING AREA 4,CATERING,27/05/2022,8226982380,26.35,BOOKER LIMITED OXFORD
OXFORDSHIRE CC,CORPORATE CORE,SCHOOLS FM CATERING AREA 4,CATERING PROVISIONS,27/05/2022,8226982382,21.42,CO-OPERATIVE FOOD
OXFORDSHIRE CC,CORPORATE CORE,SCHOOLS FM CATERING AREA 4,CATERING PROVISIONS,27/05/2022,8226982384,6.30,CO-OPERATIVE FOOD
OXFORDSHIRE CC,SOCIAL AND COMMUNITY SERVICES,CSS - BANBURY,MATERIALS,27/05/2022,8226982594,51.98,AMZNMKTPLACE
OXFORDSHIRE CC,"CHILDRENS, YOUNG PEOPLE AND FAMILIES","	LEAVING CARE SOUTH",PAYMENT TO GOVERNMENT DEPARTMENTS,27/05/2022,8226982394,-22.00,OXFORDSHIRE CC MOTO1
OXFORDSHIRE CC,"CHILDRENS, YOUNG PEOPLE AND FAMILIES",STH EARLY HELP-DDCOT,MATERIALS,27/05/2022,8226982408,426.11,ARGOS LTD
OXFORDSHIRE CC,"CHILDRENS, YOUNG PEOPLE AND FAMILIES",FAMILY SOLUTIONS PLUS NON-STAFF � SOUTH,MATERIALS,27/05/2022,8226982410,11.00,ARGOS LTD
OXFORDSHIRE CC,"CHILDRENS, YOUNG PEOPLE AND FAMILIES",STH EARLY HELP-DDCOT,CATERING,27/05/2022,8226982412,20.60,ZTL THE SANDWICH SHOP
OXFORDSHIRE CC,SOCIAL AND COMMUNITY SERVICES,CSS WITNEY,CATERING PROVISIONS,27/05/2022,8226982416,16.65,TESCO STORES
OXFORDSHIRE CC,"CHILDRENS, YOUNG PEOPLE AND FAMILIES",BULLINGDON PRISON,MATERIALS,27/05/2022,8226982622,5.93,AMZNMKTPLACE
OXFORDSHIRE CC,"CHILDRENS, YOUNG PEOPLE AND FAMILIES",CSS WALLINGFORD,CATERING PROVISIONS,27/05/2022,8226982178,5.40,WAITROSE 675
OXFORDSHIRE CC,"CHILDRENS, YOUNG PEOPLE AND FAMILIES",CSS WALLINGFORD,CATERING PROVISIONS,27/05/2022,8226982176,50.00,WAITROSE 675
OXFORDSHIRE CC,"CHILDRENS, YOUNG PEOPLE AND FAMILIES","	LEAVING CARE SOUTH",CATERING,27/05/2022,8226982628,22.40,MCDONALDS
OXFORDSHIRE CC,"CHILDRENS, YOUNG PEOPLE AND FAMILIES",EYNSHAM,MATERIALS,27/05/2022,8226982636,13.78,AMZNMKTPLACE AMAZON.CO
OXFORDSHIRE CC,"CHILDRENS, YOUNG PEOPLE AND FAMILIES",BULLINGDON PRISON,"SUPPLIES, STATIONERY AND MATERIALS",27/05/2022,8226982624,13.98,AMZNMKTPLACE
OXFORDSHIRE CC,"CHILDRENS, YOUNG PEOPLE AND FAMILIES","	LEAVING CARE SOUTH",CATERING,27/05/2022,8226982298,10.51,BURGER KING
OXFORDSHIRE CC,SHARED SERVICES,CSC SUPP & SERVICES,PURCHASE OF IT EQUIPMENT,27/05/2022,8226982300,5.99,AMZNMKTPLACE AMAZON.CO
OXFORDSHIRE CC,CORPORATE CORE,LEADERSHIP TEAM,PAYMENTS TO TRANSPORT OPERATORS,27/05/2022,8226982314,-59.90,WWW.GWR.COM
OXFORDSHIRE CC,"CHILDRENS, YOUNG PEOPLE AND FAMILIES",PAUSE PROGRAMME,TRAINING RELATED EXPENDITURE,27/05/2022,8226982322,210.40,APT ONLINE TRAINING
OXFORDSHIRE CC,"CHILDRENS, YOUNG PEOPLE AND FAMILIES",PAUSE PROGRAMME,OTHER TRANSPORT ARRANGEMENTS,27/05/2022,8226982316,4.20,OXFORDBUS.CO.UK
OXFORDSHIRE CC,"CHILDRENS, YOUNG PEOPLE AND FAMILIES",PAUSE PROGRAMME,OTHER TRANSPORT ARRANGEMENTS,27/05/2022,8226982318,4.20,OXFORDBUS.CO.UK
OXFORDSHIRE CC,"CHILDRENS, YOUNG PEOPLE AND FAMILIES",PAUSE PROGRAMME,TRAINING RELATED EXPENDITURE,27/05/2022,8226982320,342.00,APT ONLINE TRAINING
OXFORDSHIRE CC,SOCIAL AND COMMUNITY SERVICES,CSS WITNEY,MATERIALS,27/05/2022,8226982542,25.18,AMZNMKTPLACE
OXFORDSHIRE CC,SOCIAL AND COMMUNITY SERVICES,CSS WITNEY,MATERIALS,27/05/2022,8226982536,27.99,AMZNMKTPLACE AMAZON.CO
OXFORDSHIRE CC,SOCIAL AND COMMUNITY SERVICES,CSS WITNEY,MATERIALS,27/05/2022,8226982538,21.98,AMZNMKTPLACE AMAZON.CO
OXFORDSHIRE CC,SOCIAL AND COMMUNITY SERVICES,CSS WITNEY,MATERIALS,27/05/2022,8226982540,34.90,AMZNMKTPLACE
OXFORDSHIRE CC,SOCIAL AND COMMUNITY SERVICES,CSS WANTAGE,CATERING PROVISIONS,27/05/2022,8226982544,9.00,SAINSBURYS S/MKTS
OXFORDSHIRE CC,"CHILDRENS, YOUNG PEOPLE AND FAMILIES",FIELDWORK UASC,PAYMENTS TO TRANSPORT OPERATORS,27/05/2022,8226982338,44.35,GWR BRISTOL TM SST
OXFORDSHIRE CC,"CHILDRENS, YOUNG PEOPLE AND FAMILIES",PAUSE PROGRAMME,CATERING,27/05/2022,8226982340,5.38,MCDONALDS
OXFORDSHIRE CC,CORPORATE CORE,LIBRARY COLLECTIONS,"BOOKS, DVDS AND CDS",27/05/2022,8226982332,"1,027.82",OVERDRIVE DIST
OXFORDSHIRE CC,ENVIRONMENT AND ECONOMY,LIB ICT SUPPRT&MAINT,EQUIPMENT,27/05/2022,8226982334,142.51,AMAZON.CO.UK 2G7JG0FQ4
OXFORDSHIRE CC,SOCIAL AND COMMUNITY SERVICES,CSS WANTAGE,ENTERTAINMENT EXPENSES,27/05/2022,8226982552,18.00,WWW.BETTER.ORG.UK
OXFORDSHIRE CC,SOCIAL AND COMMUNITY SERVICES,CSS WANTAGE,ENTERTAINMENT EXPENSES,27/05/2022,8226982546,14.00,HOLLYWOOD BOWL
OXFORDSHIRE CC,SOCIAL AND COMMUNITY SERVICES,CSS WANTAGE,ENTERTAINMENT EXPENSES,27/05/2022,8226982548,10.50,HOLLYWOOD BOWL
OXFORDSHIRE CC,SOCIAL AND COMMUNITY SERVICES,CSS WANTAGE,ENTERTAINMENT EXPENSES,27/05/2022,8226982550,9.00,WWW.BETTER.ORG.UK
OXFORDSHIRE CC,SOCIAL AND COMMUNITY SERVICES,CSS WANTAGE,ENTERTAINMENT EXPENSES,27/05/2022,8226982554,14.50,BEALE WILDLIFE PARK
OXFORDSHIRE CC,"CHILDRENS, YOUNG PEOPLE AND FAMILIES",FAMILY SOLUTIONS PLUS NON-STAFF - NORTH,PAYMENTS TO TRANSPORT OPERATORS,27/05/2022,8226982346,21.40,WWW.GWR.COM
OXFORDSHIRE CC,"CHILDRENS, YOUNG PEOPLE AND FAMILIES",FAMILY SOLUTIONS PLUS NON-STAFF - NORTH,PAYMENT TO GOVERNMENT DEPARTMENTS,27/05/2022,8226982342,35.00,OXFORDSHIRE CC MOTO1
OXFORDSHIRE CC,"CHILDRENS, YOUNG PEOPLE AND FAMILIES",FAMILY SOLUTIONS PLUS NON-STAFF - NORTH,PAYMENT TO GOVERNMENT DEPARTMENTS,27/05/2022,8226982344,11.00,OXFORDSHIRE CC MOTO1
OXFORDSHIRE CC,"CHILDRENS, YOUNG PEOPLE AND FAMILIES",WITNEY,ENTERTAINMENT EXPENSES,27/05/2022,8226982348,285.50,NEWBURY RACECOURSE
OXFORDSHIRE CC,"CHILDRENS, YOUNG PEOPLE AND FAMILIES",DIDCOT MOVE-ON HOME,CATERING PROVISIONS,27/05/2022,8226982350,10.79,SAINSBURYS S/MKTS
OXFORDSHIRE CC,ENVIRONMENT AND ECONOMY,WITNEY LIBRARY,"SUPPLIES, STATIONERY AND MATERIALS",27/05/2022,8226982360,6.00,THEWORKS
OXFORDSHIRE CC,"CHILDRENS, YOUNG PEOPLE AND FAMILIES",CNTL EARLY HELP-RHIL,EDUCATIONAL AND VOCATIONAL TRAINING ,26/05/2022,8221402552,88.95,ARGOS LTD
OXFORDSHIRE CC,"CHILDRENS, YOUNG PEOPLE AND FAMILIES",DIDCOT MOVE-ON HOME,CATERING PROVISIONS,26/05/2022,8221402578,8.46,SAINSBURYS S/MKTS
OXFORDSHIRE CC,SOCIAL AND COMMUNITY SERVICES,CSS - OXFORD,DOMESTIC AND CLEANING EQUIPMENT,26/05/2022,8221403330,6.81,AMAZON.CO.UK 250HD3YS4
OXFORDSHIRE CC,SOCIAL AND COMMUNITY SERVICES,CSS - OXFORD,CATERING PROVISIONS,26/05/2022,8221403336,297.14,TESCO STORE 2994
OXFORDSHIRE CC,SOCIAL AND COMMUNITY SERVICES,CSS - OXFORD,CATERING PROVISIONS,26/05/2022,8221403346,-1.00,TESCO STORE 2994
OXFORDSHIRE CC,ENTERPRISEVC,,CAR LEASING - PRIVATE RENTALS,26/05/2022,8221404332,76.93,ENTERPRISE RENT-A-CAR
OXFORDSHIRE CC,CORPORATE CORE,,STATIONERY,26/05/2022,8221404288,38.95,LYRECO UK LTD
OXFORDSHIRE CC,CORPORATE CORE,,STATIONERY,26/05/2022,8221404300,50.70,LYRECO UK LTD
OXFORDSHIRE CC,CORPORATE CORE,,STATIONERY,26/05/2022,8221404310,51.60,LYRECO UK LTD
OXFORDSHIRE CC,ENTERPRISEVC,,CAR LEASING - PRIVATE RENTALS,26/05/2022,8221404342,78.98,ENTERPRISE RENT-A-CAR
OXFORDSHIRE CC,ENTERPRISEVC,,CAR LEASING - PRIVATE RENTALS,26/05/2022,8221404350,87.56,ENTERPRISE RENT-A-CAR
OXFORDSHIRE CC,ENTERPRISEVC,,CAR LEASING - PRIVATE RENTALS,26/05/2022,8221404356,47.15,ENTERPRISE RENT-A-CAR
OXFORDSHIRE CC,ENTERPRISEVC,,CAR LEASING - PRIVATE RENTALS,26/05/2022,8221404358,113.50,ENTERPRISE RENT-A-CAR
OXFORDSHIRE CC,ENTERPRISEVC,,CAR LEASING - PRIVATE RENTALS,26/05/2022,8221404366,103.90,ENTERPRISE RENT-A-CAR
OXFORDSHIRE CC,ENTERPRISEVC,,CAR LEASING - PRIVATE RENTALS,26/05/2022,8221404376,100.73,ENTERPRISE RENT-A-CAR
OXFORDSHIRE CC,"CHILDRENS, YOUNG PEOPLE AND FAMILIES",KEEP ON CARING,PAYMENT TO GOVERNMENT DEPARTMENTS,26/05/2022,8221401866,34.00,DVLA DRIVER ONLINE
OXFORDSHIRE CC,"CHILDRENS, YOUNG PEOPLE AND FAMILIES",WITNEY,CATERING,26/05/2022,8221402694,6.79,MCDONALDS
OXFORDSHIRE CC,"CHILDRENS, YOUNG PEOPLE AND FAMILIES","	FOSTER CARE RECRUIT","SUPPLIES, STATIONERY AND MATERIALS",26/05/2022,8221403466,25.00,MARKS&SPENCER PLC
OXFORDSHIRE CC,"CHILDRENS, YOUNG PEOPLE AND FAMILIES","	FOSTER CARE RECRUIT","SUPPLIES, STATIONERY AND MATERIALS",26/05/2022,8221403472,25.00,MARKS&SPENCER PLC
OXFORDSHIRE CC,"CHILDRENS, YOUNG PEOPLE AND FAMILIES","	OCCG GRANT",OTHER EXPENSES,26/05/2022,8221403504,63.97,EUROFLORIST UK LTD
OXFORDSHIRE CC,ENVIRONMENT AND ECONOMY,MUSEUM CAFE,MATERIALS,26/05/2022,8221403524,24.98,AMZNMKTPLACE
OXFORDSHIRE CC,SOCIAL AND COMMUNITY SERVICES,CSS - ABINGDON,CATERING PROVISIONS,26/05/2022,8221401606,6.00,WAITROSE 211
OXFORDSHIRE CC,"CHILDRENS, YOUNG PEOPLE AND FAMILIES","	LEAVING CARE NORTH",MATERIALS,26/05/2022,8221402402,499.99,ARGOS LTD
OXFORDSHIRE CC,"CHILDRENS, YOUNG PEOPLE AND FAMILIES",KINGFISHER,OTHER TRANSPORT ARRANGEMENTS,26/05/2022,8221401644,540.00,APEX-REMOVALS.CO.UK
OXFORDSHIRE CC,"CHILDRENS, YOUNG PEOPLE AND FAMILIES","	LOOKED AFTER CITY 1",NON-STAFF SUBSISTENCE AND EXPENSES,26/05/2022,8221401736,25.12,MEDINA FOODS MARKET
OXFORDSHIRE CC,"CHILDRENS, YOUNG PEOPLE AND FAMILIES","	SEN/ICT EQUIPMENT",IT SERVICES,26/05/2022,8221402456,12.00,1 AND 1 IONOS LTD
OXFORDSHIRE CC,SOCIAL AND COMMUNITY SERVICES,CHILDREN IN CARE NON-STAFFING - NORTH,CATERING,26/05/2022,8221402426,9.07,MCDONALDS
OXFORDSHIRE CC,"CHILDRENS, YOUNG PEOPLE AND FAMILIES",PAUSE PROGRAMME,OTHER TRANSPORT ARRANGEMENTS,26/05/2022,8221402478,4.20,OXFORDBUS.CO.UK
OXFORDSHIRE CC,"CHILDRENS, YOUNG PEOPLE AND FAMILIES",HOUSE PROJECT,OTHER TRANSPORT ARRANGEMENTS,26/05/2022,8221402488,7.00,WESTGATE OXFORD CAR PA
OXFORDSHIRE CC,"CHILDRENS, YOUNG PEOPLE AND FAMILIES","	OCCG GRANT",CATERING PROVISIONS,26/05/2022,8221402498,7.18,MEDINA FOODS MARKET
OXFORDSHIRE CC,"CHILDRENS, YOUNG PEOPLE AND FAMILIES","	OCCG GRANT",MATERIALS,26/05/2022,8221402508,6.28,HOME BARGAINS BANBURY
OXFORDSHIRE CC,ENVIRONMENT AND ECONOMY,"	LIBRARY PROJECTS",EQUIPMENT,26/05/2022,8221402518,11.33,AMZNMKTPLACE
OXFORDSHIRE CC,ENVIRONMENT AND ECONOMY,"	WASTE MNGMNT GEN","BOOKS, DVDS AND CDS",26/05/2022,8221403300,192.00,WWW.LETSRECYCLE.COM
OXFORDSHIRE CC,ENVIRONMENT AND ECONOMY,"	WASTE MNGMNT GEN","BOOKS, DVDS AND CDS",26/05/2022,8221403300,4.80,WWW.LETSRECYCLE.COM
OXFORDSHIRE CC,CORPORATE CORE,,STATIONERY,26/05/2022,8221404272,13.39,LYRECO UK LTD
OXFORDSHIRE CC,CORPORATE CORE,,STATIONERY,26/05/2022,8221404282,15.70,LYRECO UK LTD
OXFORDSHIRE CC,ENVIRONMENT AND ECONOMY,HARD FM,HARDWARE AND CROCKERY,26/05/2022,8221401776,639.42,HOWDENS - BANBURY D293
OXFORDSHIRE CC,"CHILDRENS, YOUNG PEOPLE AND FAMILIES","	LOOKED AFTER CITY 1",NON-STAFF SUBSISTENCE AND EXPENSES,26/05/2022,8221401746,1.85,TESCO STORES 6880
OXFORDSHIRE CC,"CHILDRENS, YOUNG PEOPLE AND FAMILIES","	LOOKED AFTER CITY 1",NON-STAFF SUBSISTENCE AND EXPENSES,26/05/2022,8221401756,6.03,SAVERS HEALTH & BEAUTY
OXFORDSHIRE CC,ENVIRONMENT AND ECONOMY,HARD FM,HARDWARE AND CROCKERY,26/05/2022,8221401768,29.98,SCREWFIX DIR LTD
OXFORDSHIRE CC,ENVIRONMENT AND ECONOMY,HARD FM,VEHICLES AND PLANT - REPAIRS AND MAIN,26/05/2022,8221401790,204.00,MEGA TYRE STORES LTD
OXFORDSHIRE CC,ENVIRONMENT AND ECONOMY,HARD FM,HARDWARE AND CROCKERY,26/05/2022,8221401802,263.70,SCREWFIX DIR LTD
OXFORDSHIRE CC,SOCIAL AND COMMUNITY SERVICES,CSS BICESTER,CATERING PROVISIONS,26/05/2022,8221401842,2.00,ICELAND
OXFORDSHIRE CC,SOCIAL AND COMMUNITY SERVICES,UASC 16&17,VEHICLE FUEL,26/05/2022,8221401858,38.05,TESCO PAY AT PUMP 4267
OXFORDSHIRE CC,"CHILDRENS, YOUNG PEOPLE AND FAMILIES",FSP NON-STAFFING - CENTRAL,CATERING PROVISIONS,26/05/2022,8221402566,12.65,WAITROSE 211
OXFORDSHIRE CC,"CHILDRENS, YOUNG PEOPLE AND FAMILIES",UASC 16&17,OTHER TRANSPORT ARRANGEMENTS,26/05/2022,8221402530,11.00,OXFORD BUS COMPANY
OXFORDSHIRE CC,"CHILDRENS, YOUNG PEOPLE AND FAMILIES",FIELDWORK UASC,OTHER TRANSPORT ARRANGEMENTS,26/05/2022,8221402538,8.50,OXFORD BUS COMPANY
OXFORDSHIRE CC,"CHILDRENS, YOUNG PEOPLE AND FAMILIES",40 THE MOORS,MATERIALS,26/05/2022,8221402260,43.60,AMZNMKTPLACE
OXFORDSHIRE CC,"CHILDRENS, YOUNG PEOPLE AND FAMILIES",40 THE MOORS,MATERIALS,26/05/2022,8221402274,26.97,AMZNMKTPLACE
OXFORDSHIRE CC,"CHILDRENS, YOUNG PEOPLE AND FAMILIES",40 THE MOORS,DRUGS AND MEDICAL SUPPLIES,26/05/2022,8221402276,25.72,AMZNMKTPLACE AMAZON.CO
OXFORDSHIRE CC,CORPORATE CORE,"MARKETING, COMMUNICATIONS & ENGAGEMENT",IT SOFTWARE,26/05/2022,8221403098,78.97,ADOBE STOCK
OXFORDSHIRE CC,ENVIRONMENT AND ECONOMY,"	MUSEUM DEV OFFICER",PAYMENTS TO TRANSPORT OPERATORS,26/05/2022,8221403962,97.92,THETRAINLINE.COM
OXFORDSHIRE CC,SOCIAL AND COMMUNITY SERVICES,LEADERSHIP TEAM,HIRE OF ACCOMMODATION AND FACILITIES,26/05/2022,8221403972,207.00,PREMIER INN
OXFORDSHIRE CC,"CHILDRENS, YOUNG PEOPLE AND FAMILIES","	LOOKED AFTER CITY 1",PAYMENTS TO TRANSPORT OPERATORS,26/05/2022,8221401546,81.20,TRAINLINE.COM
OXFORDSHIRE CC,"CHILDRENS, YOUNG PEOPLE AND FAMILIES",40 THE MOORS,MATERIALS,26/05/2022,8221402286,12.15,AMZNMKTPLACE AMAZON.CO
OXFORDSHIRE CC,"CHILDRENS, YOUNG PEOPLE AND FAMILIES",40 THE MOORS,MATERIALS,26/05/2022,8221402296,26.97,AMZNMKTPLACE
OXFORDSHIRE CC,"CHILDRENS, YOUNG PEOPLE AND FAMILIES","	LEAVING CARE SOUTH",OTHER TRANSPORT ARRANGEMENTS,26/05/2022,8221402340,4.00,WESTGATE OXFORD CAR PA
OXFORDSHIRE CC,SOCIAL AND COMMUNITY SERVICES,CHILDREN IN CARE NON-STAFFING - NORTH,PAYMENTS TO TRANSPORT OPERATORS,26/05/2022,8221402350,31.70,BICESTER VIL SSTP
OXFORDSHIRE CC,SOCIAL AND COMMUNITY SERVICES,CHILDREN IN CARE NON-STAFFING - NORTH,OTHER TRANSPORT ARRANGEMENTS,26/05/2022,8221402364,7.00,WESTGATE OXFORD CAR PA
OXFORDSHIRE CC,CORPORATE CORE,"MARKETING, COMMUNICATIONS & ENGAGEMENT","PUBLICITY, PROMOTIONS AND ADVERTISEMENT",26/05/2022,8221403106,500.00,GOOGLE ADS4896546035
OXFORDSHIRE CC,CORPORATE CORE,"MARKETING, COMMUNICATIONS & ENGAGEMENT","PUBLICITY, PROMOTIONS AND ADVERTISEMENT",26/05/2022,8221403114,2.65,SNAP INC SNAP SNAP ADS
OXFORDSHIRE CC,"CHILDRENS, YOUNG PEOPLE AND FAMILIES","	LOOKED AFTER CITY 2",OTHER TRANSPORT ARRANGEMENTS,26/05/2022,8221404052,29.30,GWR OXFORD TO
OXFORDSHIRE CC,"CHILDRENS, YOUNG PEOPLE AND FAMILIES",DIDCOT MOVE-ON HOME,MATERIALS,26/05/2022,8221404034,7.99,AMAZON PRIME 256GK8Y44
OXFORDSHIRE CC,"CHILDRENS, YOUNG PEOPLE AND FAMILIES","	LOOKED AFTER CITY 1",CLOTHING AND UNIFORMS,26/05/2022,8221404066,42.98,SPORTSDIRECT.COM
OXFORDSHIRE CC,"CHILDRENS, YOUNG PEOPLE AND FAMILIES","	AAC EQUIPMENT",PURCHASE OF IT EQUIPMENT,26/05/2022,8221403660,317.00,AMZNMKTPLACE
OXFORDSHIRE CC,"CHILDRENS, YOUNG PEOPLE AND FAMILIES","	AAC EQUIPMENT",PURCHASE OF IT EQUIPMENT,26/05/2022,8221403668,74.72,AMZNMKTPLACE
OXFORDSHIRE CC,"CHILDRENS, YOUNG PEOPLE AND FAMILIES","	MALTFIELD HOUSE",CATERING PROVISIONS,26/05/2022,8221403732,27.40,SAINSBURYS S/MKTS
OXFORDSHIRE CC,"CHILDRENS, YOUNG PEOPLE AND FAMILIES","	MALTFIELD HOUSE",CATERING,26/05/2022,8221403742,9.16,MCDONALDS
OXFORDSHIRE CC,CORPORATE CORE,SCHOOLS FM CATERING AREA 1,CATERING PROVISIONS,26/05/2022,8221404540,29.50,TESCO STORE 2064
OXFORDSHIRE CC,SOCIAL AND COMMUNITY SERVICES,ADULTS AT RISK,HIRE OF ACCOMMODATION AND FACILITIES,26/05/2022,8221404494,313.50,PREMIER INN
OXFORDSHIRE CC,CORPORATE CORE,SCHOOLS FM CATERING AREA 1,CATERING PROVISIONS,26/05/2022,8221404530,31.84,SAINSBURYS S/MKTS
OXFORDSHIRE CC,"CHILDRENS, YOUNG PEOPLE AND FAMILIES",MEMBERS ALLOWANCES,MATERIALS,26/05/2022,8221404564,7.99,AMZNMKTPLACE
OXFORDSHIRE CC,"CHILDRENS, YOUNG PEOPLE AND FAMILIES","	LEAVING CARE NORTH",MATERIALS,26/05/2022,8221404596,100.00,JD SPORTS INTERNET
OXFORDSHIRE CC,"CHILDRENS, YOUNG PEOPLE AND FAMILIES",THAME E&A HOME,CATERING PROVISIONS,26/05/2022,8221404610,9.20,OXFORD STARBUCKS
OXFORDSHIRE CC,SOCIAL AND COMMUNITY SERVICES,CSS WALLINGFORD,MATERIALS,26/05/2022,8221402108,6.00,KP STATIONERS
OXFORDSHIRE CC,ENVIRONMENT AND ECONOMY,OXFDSHIRE PUBLIC SPACE INNOVATION NETWK,PAYMENTS TO TRANSPORT OPERATORS,26/05/2022,8221402078,-83.70,WMR DELAY REPAY
OXFORDSHIRE CC,SOCIAL AND COMMUNITY SERVICES,CICC,CLOTHING AND UNIFORMS,26/05/2022,8221402090,54.50,PRIMARK 440
OXFORDSHIRE CC,SOCIAL AND COMMUNITY SERVICES,CSS WALLINGFORD,MATERIALS,26/05/2022,8221402116,6.99,CHAMPION
OXFORDSHIRE CC,"CHILDRENS, YOUNG PEOPLE AND FAMILIES",QUALITY ASSURANCE NORTH TEAM,HIRE OF ACCOMMODATION AND FACILITIES,26/05/2022,8221402868,157.00,PREMIER INN
OXFORDSHIRE CC,"CHILDRENS, YOUNG PEOPLE AND FAMILIES",FAMILY SOLUTIONS PLUS NON-STAFF - NORTH,MATERIALS,26/05/2022,8221402882,-60.00,ARGOS LTD
OXFORDSHIRE CC,"CHILDRENS, YOUNG PEOPLE AND FAMILIES",FAMILY SOLUTIONS PLUS NON-STAFF - NORTH,MATERIALS,26/05/2022,8221402892,-2.95,ARGOS LTD
OXFORDSHIRE CC,SOCIAL AND COMMUNITY SERVICES,SCHOOLS FM CATERING AREA 2,CATERING PROVISIONS,26/05/2022,8221402924,10.45,SAINSBURY'S S/MKT
OXFORDSHIRE CC,SOCIAL AND COMMUNITY SERVICES,SCHOOLS FM CATERING AREA 2,CATERING PROVISIONS,26/05/2022,8221402930,11.20,SAINSBURYS S/MKTS
OXFORDSHIRE CC,ENVIRONMENT AND ECONOMY,"	NAT TRAILS GENERAL",VEHICLE FUEL,26/05/2022,8221402958,59.64,MFG EYNSHAM
OXFORDSHIRE CC,"CHILDRENS, YOUNG PEOPLE AND FAMILIES",PAUSE PROGRAMME,CATERING,26/05/2022,8221402968,19.40,STYLE ACRE TRADING LTD
OXFORDSHIRE CC,"CHILDRENS, YOUNG PEOPLE AND FAMILIES",40 THE MOORS,HIRED AND CONTRACTED SERVICES,26/05/2022,8221403802,26.00,SUMUP   BARNETS BARBER
OXFORDSHIRE CC,SOCIAL AND COMMUNITY SERVICES,CSS - OXFORD,MATERIALS,26/05/2022,8221402164,35.06,ALDI STORES 775-142
OXFORDSHIRE CC,"CHILDRENS, YOUNG PEOPLE AND FAMILIES",CSS - DIDCOT,CATERING PROVISIONS,26/05/2022,8221402142,109.96,ALDI 99 775
OXFORDSHIRE CC,"CHILDRENS, YOUNG PEOPLE AND FAMILIES",THAME E&A HOME,CATERING,26/05/2022,8221402154,7.79,SUBWAY 48232 BRIZE
OXFORDSHIRE CC,SOCIAL AND COMMUNITY SERVICES,CSS - OXFORD,CATERING PROVISIONS,26/05/2022,8221402172,9.89,ALDI STORES 775-142
OXFORDSHIRE CC,SOCIAL AND COMMUNITY SERVICES,CSS - BANBURY,CATERING PROVISIONS,26/05/2022,8221403844,4.80,TESCO STORE 2064
OXFORDSHIRE CC,"CHILDRENS, YOUNG PEOPLE AND FAMILIES",40 THE MOORS,CATERING PROVISIONS,26/05/2022,8221403812,82.93,TESCO STORES 4480
OXFORDSHIRE CC,"CHILDRENS, YOUNG PEOPLE AND FAMILIES",40 THE MOORS,CATERING PROVISIONS,26/05/2022,8221403826,336.42,SAINSBURYS.CO.UK
OXFORDSHIRE CC,SOCIAL AND COMMUNITY SERVICES,CSS - BANBURY,MATERIALS,26/05/2022,8221403838,5.50,POUNDLAND LTD
OXFORDSHIRE CC,"CHILDRENS, YOUNG PEOPLE AND FAMILIES",FSP NON-STAFFING - CENTRAL,MATERIALS,26/05/2022,8221403858,47.86,AMZNMKTPLACE AMAZON.CO
OXFORDSHIRE CC,"CHILDRENS, YOUNG PEOPLE AND FAMILIES",40 THE MOORS,MATERIALS,26/05/2022,8221403872,20.00,TESCO ONLINE
OXFORDSHIRE CC,"CHILDRENS, YOUNG PEOPLE AND FAMILIES","	LEAVING CARE NORTH",CATERING,26/05/2022,8221402198,6.35,COSTA @ TESCO
OXFORDSHIRE CC,"CHILDRENS, YOUNG PEOPLE AND FAMILIES","	LEAVING CARE NORTH",CATERING,26/05/2022,8221402208,6.85,COSTA COFFEE 43048140
OXFORDSHIRE CC,CORPORATE CORE,"	CHAIRMANS ALLOWANCE",MATERIALS,26/05/2022,8221402236,8.99,AMZNMKTPLACE
OXFORDSHIRE CC,SOCIAL AND COMMUNITY SERVICES,SCHOOLS FM CATERING AREA 4,CATERING PROVISIONS,26/05/2022,8221401946,12.20,SAINSBURYS S/MKTS
OXFORDSHIRE CC,ENTERPRISEVC,,CAR LEASING - PRIVATE RENTALS,26/05/2022,8221404386,81.95,ENTERPRISE RENT-A-CAR
OXFORDSHIRE CC,ENTERPRISEVC,,CAR LEASING - PRIVATE RENTALS,26/05/2022,8221404390,41.75,ENTERPRISE RENT-A-CAR
OXFORDSHIRE CC,SOCIAL AND COMMUNITY SERVICES,SCHOOLS FM CATERING AREA 4,CATERING PROVISIONS,26/05/2022,8221401938,14.60,CO-OPERATIVE FOOD
OXFORDSHIRE CC,"CHILDRENS, YOUNG PEOPLE AND FAMILIES","	DISABILITIES TEAM-C",SECURITY COSTS,26/05/2022,8221401962,93.08,ALERT IT.CO.UK
OXFORDSHIRE CC,"CHILDRENS, YOUNG PEOPLE AND FAMILIES","	DISABILITIES TEAM-C",HIRE OF ACCOMMODATION AND FACILITIES,26/05/2022,8221401972,429.44,TRAVELODGE
OXFORDSHIRE CC,"CHILDRENS, YOUNG PEOPLE AND FAMILIES","	LEAVING CARE CITY 2",OTHER TRANSPORT ARRANGEMENTS,26/05/2022,8221402722,4.30,STGCOACH/CTYLINK
OXFORDSHIRE CC,"CHILDRENS, YOUNG PEOPLE AND FAMILIES",CHILDREN IN CARE NON-STAFFING - NORTH,OTHER TRANSPORT ARRANGEMENTS,26/05/2022,8221402716,5.10,M6 TOLL
OXFORDSHIRE CC,"CHILDRENS, YOUNG PEOPLE AND FAMILIES","	LEAVING CARE CITY 2",OTHER TRANSPORT ARRANGEMENTS,26/05/2022,8221402728,4.30,STGCOACH/CTYLINK
OXFORDSHIRE CC,"CHILDRENS, YOUNG PEOPLE AND FAMILIES",FAMILY SOLUTIONS PLUS NON-STAFF � SOUTH,DRUGS AND MEDICAL SUPPLIES,26/05/2022,8221402738,31.99,BOOTS THE CHEMIST
OXFORDSHIRE CC,"CHILDRENS, YOUNG PEOPLE AND FAMILIES",STH EARLY HELP-DDCOT,CATERING PROVISIONS,26/05/2022,8221402744,200.00,TESCO GIFT CARD
OXFORDSHIRE CC,"CHILDRENS, YOUNG PEOPLE AND FAMILIES",HOUSE PROJECT,OTHER TRANSPORT ARRANGEMENTS,26/05/2022,8221402754,9.00,WESTGATE OXFORD CAR PA
OXFORDSHIRE CC,SOCIAL AND COMMUNITY SERVICES,CSS WANTAGE,MATERIALS,26/05/2022,8221403610,5.49,AMZNMKTPLACE AMAZON.CO
OXFORDSHIRE CC,SOCIAL AND COMMUNITY SERVICES,CSS WITNEY,MATERIALS,26/05/2022,8221403598,19.98,AMZNMKTPLACE AMAZON.CO
OXFORDSHIRE CC,SOCIAL AND COMMUNITY SERVICES,CSS WANTAGE,MATERIALS,26/05/2022,8221403620,6.91,AMZNMKTPLACE AMAZON.CO
OXFORDSHIRE CC,SOCIAL AND COMMUNITY SERVICES,CSS WANTAGE,MATERIALS,26/05/2022,8221403630,11.98,AMZNMKTPLACE AMAZON.CO
OXFORDSHIRE CC,SOCIAL AND COMMUNITY SERVICES,CSS WANTAGE,MATERIALS,26/05/2022,8221403634,22.45,AMZNMKTPLACE AMAZON.CO
OXFORDSHIRE CC,"CHILDRENS, YOUNG PEOPLE AND FAMILIES","	AAC EQUIPMENT",PURCHASE OF IT EQUIPMENT,26/05/2022,8221403646,317.00,AMZNMKTPLACE
OXFORDSHIRE CC,"CHILDRENS, YOUNG PEOPLE AND FAMILIES","	AAC EQUIPMENT",PURCHASE OF IT EQUIPMENT,26/05/2022,8221403654,317.00,AMZNMKTPLACE
OXFORDSHIRE CC,CORPORATE CORE,CATERING MANAGEMENT SOFT FM,CATERING,26/05/2022,8221404430,-10.47,BRAKES (STORED CARDS)
OXFORDSHIRE CC,ENTERPRISEVC,,CAR LEASING - PRIVATE RENTALS,26/05/2022,8221404406,135.96,ENTERPRISE RENT-A-CAR
OXFORDSHIRE CC,ENTERPRISEVC,,CAR LEASING - PRIVATE RENTALS,26/05/2022,8221404414,144.42,ENTERPRISE RENT-A-CAR
OXFORDSHIRE CC,ENTERPRISEVC,,CAR LEASING - PRIVATE RENTALS,26/05/2022,8221404420,51.95,ENTERPRISE RENT-A-CAR
OXFORDSHIRE CC,"CHILDRENS, YOUNG PEOPLE AND FAMILIES",NTH EARLY HELP-WITNY,CATERING PROVISIONS,26/05/2022,8221404446,1.40,WAITROSE 142
OXFORDSHIRE CC,"CHILDRENS, YOUNG PEOPLE AND FAMILIES",MANAGEMENT RECHARGES,HIRED AND CONTRACTED SERVICES,26/05/2022,8221402052,19.00,MILLETS FARM RESTAURAN
OXFORDSHIRE CC,"CHILDRENS, YOUNG PEOPLE AND FAMILIES",MANAGEMENT RECHARGES,HIRED AND CONTRACTED SERVICES,26/05/2022,8221402056,9.90,MILLETS FARM RESTAURAN
OXFORDSHIRE CC,"CHILDRENS, YOUNG PEOPLE AND FAMILIES",EYNSHAM,CATERING,26/05/2022,8221402826,8.57,STARBUCKS COFFEE
OXFORDSHIRE CC,"CHILDRENS, YOUNG PEOPLE AND FAMILIES",WITNEY,CATERING PROVISIONS,26/05/2022,8221402840,4.19,SAINSBURYS S/MKTS
OXFORDSHIRE CC,"CHILDRENS, YOUNG PEOPLE AND FAMILIES",FSP NON-STAFFING - CENTRAL,PAYMENTS TO TRANSPORT OPERATORS,26/05/2022,8221402854,70.00,WWW.GWR.COM
OXFORDSHIRE CC,"CHILDRENS, YOUNG PEOPLE AND FAMILIES",NTH EARLY HELP-BNRBY,POSTAGE AND DELIVERY,25/05/2022,8216484984,3.50,ROYAL MAIL CHARGES
OXFORDSHIRE CC,"CHILDRENS, YOUNG PEOPLE AND FAMILIES",NTH EARLY HELP-BNRBY,MATERIALS,25/05/2022,8216484986,79.99,AMAZON.CO.UK 252DD7RW4
OXFORDSHIRE CC,"CHILDRENS, YOUNG PEOPLE AND FAMILIES",NTS UASC AGENCY,DRUGS AND MEDICAL SUPPLIES,25/05/2022,8216485008,20.56,SAVERS HEALTH & BEAUTY
OXFORDSHIRE CC,"CHILDRENS, YOUNG PEOPLE AND FAMILIES",NTS UASC AGENCY,CATERING PROVISIONS,25/05/2022,8216485004,1.69,SPAR SUPER STORE
OXFORDSHIRE CC,"CHILDRENS, YOUNG PEOPLE AND FAMILIES",FAMILY SOLUTIONS PLUS NON-STAFF - NORTH,PAYMENTS TO TRANSPORT OPERATORS,25/05/2022,8216483780,64.19,THETRAINLINE.COM
OXFORDSHIRE CC,"CHILDRENS, YOUNG PEOPLE AND FAMILIES",FSP NON-STAFFING - CENTRAL,PAYMENTS TO TRANSPORT OPERATORS,25/05/2022,8216483772,70.00,WWW.GWR.COM
OXFORDSHIRE CC,"CHILDRENS, YOUNG PEOPLE AND FAMILIES",FAMILY SOLUTIONS PLUS NON-STAFF - NORTH,PAYMENTS TO TRANSPORT OPERATORS,25/05/2022,8216483788,64.19,THETRAINLINE.COM
OXFORDSHIRE CC,"CHILDRENS, YOUNG PEOPLE AND FAMILIES",FAMILY SOLUTIONS PLUS NON-STAFF - NORTH,OTHER TRANSPORT ARRANGEMENTS,25/05/2022,8216483792,72.00,SQ  1ST CALL SWINDON T
OXFORDSHIRE CC,"CHILDRENS, YOUNG PEOPLE AND FAMILIES","	LOOKED AFTER CITY 2",PAYMENTS TO TRANSPORT OPERATORS,25/05/2022,8216484030,22.61,TRAINLINE
OXFORDSHIRE CC,"CHILDRENS, YOUNG PEOPLE AND FAMILIES","	FOSTER CARE RECRUIT","SUPPLIES, STATIONERY AND MATERIALS",25/05/2022,8216484046,216.00,CARBON COLOUR CO
OXFORDSHIRE CC,"CHILDRENS, YOUNG PEOPLE AND FAMILIES",40 THE MOORS,FURNITURE,25/05/2022,8216484424,336.50,IKEA LTD 185 MILTON KE
OXFORDSHIRE CC,"CHILDRENS, YOUNG PEOPLE AND FAMILIES",40 THE MOORS,CATERING,25/05/2022,8216484430,62.13,DOMINO S PIZZA
OXFORDSHIRE CC,SOCIAL AND COMMUNITY SERVICES,CSS - BANBURY,MATERIALS,25/05/2022,8216484450,6.05,HOME BARGAINS BANBURY
OXFORDSHIRE CC,"CHILDRENS, YOUNG PEOPLE AND FAMILIES",EYNSHAM,CATERING PROVISIONS,25/05/2022,8216483466,10.52,SPAR EYNSHAM
OXFORDSHIRE CC,"CHILDRENS, YOUNG PEOPLE AND FAMILIES","	OCCG GRANT",CLEANING MATERIALS,25/05/2022,8216483488,5.55,TESCO STORE 2064
OXFORDSHIRE CC,"CHILDRENS, YOUNG PEOPLE AND FAMILIES",UASC POST 18,OTHER PREMISES RELATED COSTS,25/05/2022,8216483496,178.85,HUTTON PARKER PROPERTY
OXFORDSHIRE CC,CORPORATE CORE,SKILLS & LEARNING,"SUPPLIES, STATIONERY AND MATERIALS",25/05/2022,8216484088,304.08,FROSTS
OXFORDSHIRE CC,CORPORATE CORE,,STATIONERY,25/05/2022,8216484882,19.74,LYRECO UK LTD
OXFORDSHIRE CC,CORPORATE CORE,,STATIONERY,25/05/2022,8216484892,50.90,LYRECO UK LTD
OXFORDSHIRE CC,CORPORATE CORE,,STATIONERY,25/05/2022,8216484896,12.94,LYRECO UK LTD
OXFORDSHIRE CC,CORPORATE CORE,CATERING MANAGEMENT SOFT FM,CATERING,25/05/2022,8216484904,137.13,BRAKES (STORED CARDS)
OXFORDSHIRE CC,"CHILDRENS, YOUNG PEOPLE AND FAMILIES",FAMILY SOLUTIONS PLUS NON-STAFF - NORTH,TELEPHONE - EQUIPMENT,25/05/2022,8216484912,10.00,THREE
OXFORDSHIRE CC,CORPORATE CORE,SCHOOLS FM CATERING AREA 1,CATERING PROVISIONS,25/05/2022,8216484930,9.10,CO-OPERATIVE FOOD
OXFORDSHIRE CC,"CHILDRENS, YOUNG PEOPLE AND FAMILIES",DIDCOT MOVE-ON HOME,CATERING,25/05/2022,8216484936,4.91,MCDONALDS
OXFORDSHIRE CC,"CHILDRENS, YOUNG PEOPLE AND FAMILIES",CHILDREN IN CARE NON-STAFFING - SOUTH,VEHICLE FUEL,25/05/2022,8216484790,45.01,SAINSBURYS SUPERMA
OXFORDSHIRE CC,"CHILDRENS, YOUNG PEOPLE AND FAMILIES",MARKETING,MATERIALS,25/05/2022,8216483146,89.99,PAYPAL  TRIFIBRE
OXFORDSHIRE CC,"CHILDRENS, YOUNG PEOPLE AND FAMILIES",MARKETING,MATERIALS,25/05/2022,8216483140,47.99,AMZNMKTPLACE
OXFORDSHIRE CC,"CHILDRENS, YOUNG PEOPLE AND FAMILIES",MARKETING,MATERIALS,25/05/2022,8216483150,19.98,CURRYS OXFORD
OXFORDSHIRE CC,"CHILDRENS, YOUNG PEOPLE AND FAMILIES",MARKETING,MATERIALS,25/05/2022,8216483156,40.45,AMZNMKTPLACE
OXFORDSHIRE CC,"CHILDRENS, YOUNG PEOPLE AND FAMILIES","	LOOKED AFTER CITY 1",CATERING,25/05/2022,8216483162,6.75,COSTA CARTERTON
OXFORDSHIRE CC,ENVIRONMENT AND ECONOMY,"	CENTRAL BUYING TEAM",OTHER TRANSPORT ARRANGEMENTS,25/05/2022,8216483168,21.50,NEC PARKING
OXFORDSHIRE CC,SOCIAL AND COMMUNITY SERVICES,CICC,DRUGS AND MEDICAL SUPPLIES,25/05/2022,8216483176,56.50,SUPERDRUG STORES PLC
OXFORDSHIRE CC,SOCIAL AND COMMUNITY SERVICES,CSS WITNEY,CATERING PROVISIONS,25/05/2022,8216483718,7.45,TESCO-STORES 2499
OXFORDSHIRE CC,"CHILDRENS, YOUNG PEOPLE AND FAMILIES","	LOOKED AFTER CITY 2",PAYMENTS TO TRANSPORT OPERATORS,25/05/2022,8216484014,8.15,TRAINLINE
OXFORDSHIRE CC,"CHILDRENS, YOUNG PEOPLE AND FAMILIES","	LOOKED AFTER CITY 2",PAYMENTS TO TRANSPORT OPERATORS,25/05/2022,8216484018,10.80,TRAINLINE
OXFORDSHIRE CC,"CHILDRENS, YOUNG PEOPLE AND FAMILIES","	LOOKED AFTER CITY 2",PAYMENTS TO TRANSPORT OPERATORS,25/05/2022,8216484022,15.34,TRAINLINE
OXFORDSHIRE CC,"CHILDRENS, YOUNG PEOPLE AND FAMILIES","	MALTFIELD HOUSE",CATERING PROVISIONS,25/05/2022,8216484354,12.06,SAINSBURYS S/MKTS
OXFORDSHIRE CC,"CHILDRENS, YOUNG PEOPLE AND FAMILIES","	MALTFIELD HOUSE",CATERING PROVISIONS,25/05/2022,8216484362,6.40,SAINSBURYS S/MKTS
OXFORDSHIRE CC,CORPORATE CORE,,STATIONERY,25/05/2022,8216484874,14.68,LYRECO UK LTD
OXFORDSHIRE CC,SOCIAL AND COMMUNITY SERVICES,CSS WALLINGFORD,MATERIALS,25/05/2022,8216483208,17.98,AMZNMKTPLACE AMAZON.CO
OXFORDSHIRE CC,SOCIAL AND COMMUNITY SERVICES,CSS - BANBURY,CATERING PROVISIONS,25/05/2022,8216483194,49.74,SAINSBURYS.CO.UK
OXFORDSHIRE CC,SOCIAL AND COMMUNITY SERVICES,CSS WALLINGFORD,MATERIALS,25/05/2022,8216483200,19.90,AMZNMKTPLACE AMAZON.CO
OXFORDSHIRE CC,SOCIAL AND COMMUNITY SERVICES,CSS WALLINGFORD,MATERIALS,25/05/2022,8216483204,107.91,AMZNMKTPLACE AMAZON.CO
OXFORDSHIRE CC,SOCIAL AND COMMUNITY SERVICES,CSS WALLINGFORD,MATERIALS,25/05/2022,8216483212,71.23,AMZNMKTPLACE AMAZON.CO
OXFORDSHIRE CC,SOCIAL AND COMMUNITY SERVICES,CSS WALLINGFORD,MATERIALS,25/05/2022,8216483218,44.97,AMZNMKTPLACE AMAZON.CO
OXFORDSHIRE CC,ENVIRONMENT AND ECONOMY,"	LPP MANAGEMENT",PAYMENTS TO TRANSPORT OPERATORS,25/05/2022,8216483224,93.30,WWW.GWR.COM
OXFORDSHIRE CC,"CHILDRENS, YOUNG PEOPLE AND FAMILIES",CHILDREN IN CARE NON-STAFFING - SOUTH,MATERIALS,25/05/2022,8216482880,57.61,BRITISH GAS ONLINE
OXFORDSHIRE CC,"CHILDRENS, YOUNG PEOPLE AND FAMILIES",FAMILY SOLUTIONS PLUS NON-STAFF � SOUTH,PAYMENTS TO TRANSPORT OPERATORS,25/05/2022,8216483278,81.51,TRAINLINE.COM
OXFORDSHIRE CC,"CHILDRENS, YOUNG PEOPLE AND FAMILIES",THAME E&A HOME,MATERIALS,25/05/2022,8216483286,19.49,AMZNMKTPLACE
OXFORDSHIRE CC,"CHILDRENS, YOUNG PEOPLE AND FAMILIES","	HOME SUPPORT",MATERIALS,25/05/2022,8216483304,87.66,AMZNMKTPLACE
OXFORDSHIRE CC,"CHILDRENS, YOUNG PEOPLE AND FAMILIES",40 THE MOORS,OTHER EXPENSES,25/05/2022,8216483338,23.97,AMZNMKTPLACE
OXFORDSHIRE CC,"CHILDRENS, YOUNG PEOPLE AND FAMILIES",CHILDREN IN CARE NON-STAFFING - SOUTH,PAYMENTS TO TRANSPORT OPERATORS,25/05/2022,8216482886,3.80,CHILTERN RALIWAYS
OXFORDSHIRE CC,"CHILDRENS, YOUNG PEOPLE AND FAMILIES",TRANSPORT COSTS,TRANSPORT TO SCHOOL,25/05/2022,8216482894,83.50,STAGECOACH SERVICE
OXFORDSHIRE CC,"CHILDRENS, YOUNG PEOPLE AND FAMILIES","	LEAVING CARE NORTH",REGISTRATION AND INSPECTION FEES,25/05/2022,8216484712,.50,WH SMITH
OXFORDSHIRE CC,"CHILDRENS, YOUNG PEOPLE AND FAMILIES","	LEAVING CARE NORTH",REGISTRATION AND INSPECTION FEES,25/05/2022,8216484694,2.85,POST OFFICE COUNTER
OXFORDSHIRE CC,"CHILDRENS, YOUNG PEOPLE AND FAMILIES","	LEAVING CARE NORTH",OTHER EXPENSES,25/05/2022,8216484700,5.90,SQ  HUNTERS CAKE CAFE
OXFORDSHIRE CC,"CHILDRENS, YOUNG PEOPLE AND FAMILIES","	LEAVING CARE NORTH",REGISTRATION AND INSPECTION FEES,25/05/2022,8216484704,14.99,TIMPSON LTD
OXFORDSHIRE CC,"CHILDRENS, YOUNG PEOPLE AND FAMILIES","	LEAVING CARE NORTH",REGISTRATION AND INSPECTION FEES,25/05/2022,8216484708,75.50,HM PASSPORT OFFICE
OXFORDSHIRE CC,CORPORATE CORE,ICT OPERATIONS & MAI,MATERIALS,25/05/2022,8216484720,142.58,AMAZON.CO.UK 253D01R94
OXFORDSHIRE CC,"CHILDRENS, YOUNG PEOPLE AND FAMILIES",CHILDREN IN CARE NON-STAFFING - CENTRL 1,PAYMENT TO GOVERNMENT DEPARTMENTS,25/05/2022,8216483110,14.00,GEN REGISTER OFFICE
OXFORDSHIRE CC,"CHILDRENS, YOUNG PEOPLE AND FAMILIES","	DISABILITIES TEAM-C",HIRE OF ACCOMMODATION AND FACILITIES,25/05/2022,8216483092,325.10,HOTEL AT BOOKING.COM
OXFORDSHIRE CC,"CHILDRENS, YOUNG PEOPLE AND FAMILIES","	DISABILITIES TEAM-C",HIRE OF ACCOMMODATION AND FACILITIES,25/05/2022,8216483098,395.44,TRAVELODGE
OXFORDSHIRE CC,"CHILDRENS, YOUNG PEOPLE AND FAMILIES",CHILDREN IN CARE NON-STAFFING - CENTRL 1,PAYMENT TO GOVERNMENT DEPARTMENTS,25/05/2022,8216483106,28.00,GEN REGISTER OFFICE
OXFORDSHIRE CC,CORPORATE CORE,BUSINESS INTELLECTUAL PROPERTY CENTRE,CATERING PROVISIONS,25/05/2022,8216483116,74.50,OCADO
OXFORDSHIRE CC,SOCIAL AND COMMUNITY SERVICES,CHILDREN IN CARE NON-STAFFING - NORTH,PAYMENTS TO TRANSPORT OPERATORS,25/05/2022,8216483416,41.40,BANBURY STATION T/O
OXFORDSHIRE CC,"CHILDRENS, YOUNG PEOPLE AND FAMILIES",FAMILY SOLUTIONS PLUS NON-STAFF - NORTH,MATERIALS,25/05/2022,8216483432,19.99,AMZNMKTPLACE
OXFORDSHIRE CC,ENVIRONMENT AND ECONOMY,WITNEY LIBRARY,EQUIPMENT,25/05/2022,8216483668,47.99,AMZNMKTPLACE
OXFORDSHIRE CC,"CHILDRENS, YOUNG PEOPLE AND FAMILIES",THAME E&A HOME,MATERIALS,25/05/2022,8216483662,34.99,ROBERT DYAS HOLDNG LTD
OXFORDSHIRE CC,ENVIRONMENT AND ECONOMY,BANBURY LIBRARY,POSTAGE AND DELIVERY,25/05/2022,8216483674,.95,POST OFFICE SELF SERVE
OXFORDSHIRE CC,ENVIRONMENT AND ECONOMY,BANBURY LIBRARY,MATERIALS,25/05/2022,8216483678,14.99,AMZNMKTPLACE AMAZON.CO
OXFORDSHIRE CC,"CHILDRENS, YOUNG PEOPLE AND FAMILIES","	LEAVING CARE SOUTH",OTHER TRANSPORT ARRANGEMENTS,25/05/2022,8216483686,45.00,THE AIRLINE
OXFORDSHIRE CC,ENVIRONMENT AND ECONOMY,"	WASTE MNGMNT GEN",MATERIALS,25/05/2022,8216483958,5.49,AMZNMKTPLACE
OXFORDSHIRE CC,ENVIRONMENT AND ECONOMY,"	WASTE MNGMNT GEN",MATERIALS,25/05/2022,8216483962,11.98,AMZNMKTPLACE
OXFORDSHIRE CC,ENVIRONMENT AND ECONOMY,"	COUNTRYSIDE PREMISES",EQUIPMENT,25/05/2022,8216484288,199.55,TALMAGES
OXFORDSHIRE CC,"CHILDRENS, YOUNG PEOPLE AND FAMILIES",EYNSHAM,CATERING PROVISIONS,25/05/2022,8216484730,197.73,TESCO STORES 2008
OXFORDSHIRE CC,"CHILDRENS, YOUNG PEOPLE AND FAMILIES",WITNEY,VEHICLE FUEL,25/05/2022,8216483624,8.40,TESCO PFS 3418
OXFORDSHIRE CC,"CHILDRENS, YOUNG PEOPLE AND FAMILIES",PAUSE PROGRAMME,CATERING,25/05/2022,8216483852,7.30,COSTA COFFEE 43043995
OXFORDSHIRE CC,"CHILDRENS, YOUNG PEOPLE AND FAMILIES",FAMILY SOLUTIONS PLUS NON-STAFF � SOUTH,HIRE OF ACCOMMODATION AND FACILITIES,25/05/2022,8216483838,680.00,OXFORD THAMES HOTEL
OXFORDSHIRE CC,"CHILDRENS, YOUNG PEOPLE AND FAMILIES",FAMILY SOLUTIONS PLUS NON-STAFF � SOUTH,CATERING PROVISIONS,25/05/2022,8216483844,10.94,SAINSBURY'S S/MKT
OXFORDSHIRE CC,"CHILDRENS, YOUNG PEOPLE AND FAMILIES",FAMILY SOLUTIONS PLUS NON-STAFF � SOUTH,CATERING PROVISIONS,25/05/2022,8216483848,18.60,SAINSBURYS S/MKTS
OXFORDSHIRE CC,SOCIAL AND COMMUNITY SERVICES,CSS WITNEY,MATERIALS,25/05/2022,8216484228,3.99,AMZNMKTPLACE
OXFORDSHIRE CC,"CHILDRENS, YOUNG PEOPLE AND FAMILIES","	LEAVING CARE CITY 2",CATERING,25/05/2022,8216483076,22.50,NANDOS.CO.UK
OXFORDSHIRE CC,"CHILDRENS, YOUNG PEOPLE AND FAMILIES","	LEAVING CARE CITY 2",PAYMENTS TO TRANSPORT OPERATORS,25/05/2022,8216483080,31.38,TRAINLINE.COM
OXFORDSHIRE CC,CORPORATE CORE,"MARKETING, COMMUNICATIONS & ENGAGEMENT","PUBLICITY, PROMOTIONS AND ADVERTISEMENT",25/05/2022,8216483892,2.71,SNAP INC SNAP SNAP ADS
OXFORDSHIRE CC,CORPORATE CORE,OPERATIONS,MATERIALS,25/05/2022,8216483942,13.88,AMZNMKTPLACE
OXFORDSHIRE CC,CORPORATE CORE,OPERATIONS,EQUIPMENT,25/05/2022,8216483948,14.99,AMAZON.CO.UK 258V36R14
OXFORDSHIRE CC,ENVIRONMENT AND ECONOMY,"	WASTE MNGMNT GEN",MATERIALS,25/05/2022,8216483954,3.95,AMZNMKTPLACE
OXFORDSHIRE CC,SOCIAL AND COMMUNITY SERVICES,CSS WANTAGE,CATERING PROVISIONS,25/05/2022,8216484264,10.00,THE OLD FARM SHOP
OXFORDSHIRE CC,SOCIAL AND COMMUNITY SERVICES,CSS WITNEY,MATERIALS,25/05/2022,8216484236,13.86,AMZNMKTPLACE
OXFORDSHIRE CC,SOCIAL AND COMMUNITY SERVICES,CSS WITNEY,MATERIALS,25/05/2022,8216484242,23.96,AMZNMKTPLACE AMAZON.CO
OXFORDSHIRE CC,SOCIAL AND COMMUNITY SERVICES,CSS WANTAGE,MATERIALS,25/05/2022,8216484256,66.94,AMZNMKTPLACE AMAZON.CO
OXFORDSHIRE CC,SOCIAL AND COMMUNITY SERVICES,CSS WANTAGE,MATERIALS,25/05/2022,8216484268,26.49,AMZNMKTPLACE AMAZON.CO
OXFORDSHIRE CC,SOCIAL AND COMMUNITY SERVICES,CSS WITNEY,HARDWARE AND CROCKERY,25/05/2022,8216482842,14.99,FROSTS AT MILLETS
OXFORDSHIRE CC,SOCIAL AND COMMUNITY SERVICES,CSS WITNEY,HARDWARE AND CROCKERY,25/05/2022,8216482836,6.99,FROSTS AT MILLETS
OXFORDSHIRE CC,"CHILDRENS, YOUNG PEOPLE AND FAMILIES",CHILDREN IN CARE NON-STAFFING - SOUTH,MATERIALS,25/05/2022,8216482874,41.89,BRITISH GAS ONLINE
OXFORDSHIRE CC,"CHILDRENS, YOUNG PEOPLE AND FAMILIES",KINGFISHER,PAYMENTS TO VOLUNTARY BODIES,25/05/2022,8216482938,135.00,PAYPAL  WHY ME UK WHY
OXFORDSHIRE CC,ENVIRONMENT AND ECONOMY,HARD FM,CATERING PROVISIONS,25/05/2022,8216482968,44.00,B&M 515 - ABINGDON
OXFORDSHIRE CC,SOCIAL AND COMMUNITY SERVICES,CSS - OXFORD,MATERIALS,25/05/2022,8216483254,30.19,ALDI STORES 775-142
OXFORDSHIRE CC,SOCIAL AND COMMUNITY SERVICES,CSS - OXFORD,MATERIALS,25/05/2022,8216483260,18.02,ALDI STORES 775-142
OXFORDSHIRE CC,"CHILDRENS, YOUNG PEOPLE AND FAMILIES","	OCCG GRANT",CATERING PROVISIONS,25/05/2022,8216483536,2.00,TESCO STORE 2064
OXFORDSHIRE CC,"CHILDRENS, YOUNG PEOPLE AND FAMILIES",UASC 16&17,OTHER TRANSPORT ARRANGEMENTS,25/05/2022,8216483546,26.25,WWW.THEKEY.CO.UK
OXFORDSHIRE CC,"CHILDRENS, YOUNG PEOPLE AND FAMILIES",UASC 16&17,OTHER TRANSPORT ARRANGEMENTS,25/05/2022,8216483554,2.30,STGCOACH/CTYLINK
OXFORDSHIRE CC,"CHILDRENS, YOUNG PEOPLE AND FAMILIES",CNTL EARLY HELP-RHIL,EDUCATIONAL AND VOCATIONAL TRAINING ,25/05/2022,8216483560,15.00,PAYPAL  SPARK SPARK
OXFORDSHIRE CC,"CHILDRENS, YOUNG PEOPLE AND FAMILIES","	RIVERSIDE CENTRE",VEHICLE FUEL,25/05/2022,8216483564,114.12,BP FAMILY FARM CONNECT
OXFORDSHIRE CC,SOCIAL AND COMMUNITY SERVICES,SCHOOLS FM CATERING AREA 2,CATERING,25/05/2022,8216483806,21.57,BOOKER LIMITED OXFORD
OXFORDSHIRE CC,"CHILDRENS, YOUNG PEOPLE AND FAMILIES",FAMILY SOLUTIONS PLUS NON-STAFF - NORTH,CATERING PROVISIONS,25/05/2022,8216483794,1.29,ICELAND
OXFORDSHIRE CC,ENVIRONMENT AND ECONOMY,"	KNIGHTS COURT",CATERING PROVISIONS,25/05/2022,8216483816,3.00,CO-OPERATIVE FOOD
OXFORDSHIRE CC,"CHILDRENS, YOUNG PEOPLE AND FAMILIES",FAMILY SOLUTIONS PLUS NON-STAFF � SOUTH,HIRE OF ACCOMMODATION AND FACILITIES,25/05/2022,8216483832,680.00,OXFORD THAMES HOTEL
OXFORDSHIRE CC,SOCIAL AND COMMUNITY SERVICES,"	MUSEUMS COLLECTIONS",OTHER SERVICES,25/05/2022,8216484160,119.28,WWW.PRESERVATIONEQUIPM
OXFORDSHIRE CC,SOCIAL AND COMMUNITY SERVICES,LEADERSHIP TEAM,PAYMENTS TO TRANSPORT OPERATORS,25/05/2022,8216484626,115.30,WWW.GWR.COM
OXFORDSHIRE CC,"CHILDRENS, YOUNG PEOPLE AND FAMILIES",THAME E&A HOME,CATERING PROVISIONS,25/05/2022,8216482994,5.50,SAINSBURYS SUPERMA
OXFORDSHIRE CC,ENVIRONMENT AND ECONOMY,HARD FM,HARDWARE AND CROCKERY,25/05/2022,8216482974,54.89,B & Q 1062
OXFORDSHIRE CC,"CHILDRENS, YOUNG PEOPLE AND FAMILIES",FAMILY SOLUTIONS PLUS NON-STAFF - NORTH,HIRE OF ACCOMMODATION AND FACILITIES,25/05/2022,8216483000,"2,448.00",DASHWOOD APARTMENTS
OXFORDSHIRE CC,ENVIRONMENT AND ECONOMY,MAINTENANCE STAFF,MATERIALS,25/05/2022,8216483012,33.18,MY TOOL SHED
OXFORDSHIRE CC,"CHILDRENS, YOUNG PEOPLE AND FAMILIES",THAME E&A HOME,MATERIALS,25/05/2022,8216483034,52.98,SMYTHSTOYS.COM
OXFORDSHIRE CC,"CHILDRENS, YOUNG PEOPLE AND FAMILIES",THAME E&A HOME,MATERIALS,25/05/2022,8216483042,49.99,AMZNMKTPLACE
OXFORDSHIRE CC,"CHILDRENS, YOUNG PEOPLE AND FAMILIES",FAMILY SOLUTIONS PLUS NON-STAFF - NORTH,PAYMENT TO GOVERNMENT DEPARTMENTS,25/05/2022,8216483572,-45.25,GEN REGISTER OFFICE
OXFORDSHIRE CC,"CHILDRENS, YOUNG PEOPLE AND FAMILIES",DIDCOT MOVE-ON HOME,DOMESTIC SUPPLIES,25/05/2022,8216483580,2.95,SAINSBURYS S/MKTS
OXFORDSHIRE CC,"CHILDRENS, YOUNG PEOPLE AND FAMILIES",DIDCOT MOVE-ON HOME,CATERING PROVISIONS,25/05/2022,8216483586,5.97,SAINSBURYS S/MKTS
OXFORDSHIRE CC,CORPORATE CORE,FARINGDON LIBRARY,"BOOKS, DVDS AND CDS",24/05/2022,8212304990,35.96,WATERSTONES
OXFORDSHIRE CC,SOCIAL AND COMMUNITY SERVICES,"	SOUTH EAST AREA MGR","BOOKS, DVDS AND CDS",24/05/2022,8212304992,13.98,WATERSTONES
OXFORDSHIRE CC,SOCIAL AND COMMUNITY SERVICES,CHILDREN IN CARE NON-STAFFING - NORTH,CATERING,24/05/2022,8212304994,3.50,COSTA COFFEE 43045430
OXFORDSHIRE CC,SOCIAL AND COMMUNITY SERVICES,CSS - OXFORD,DAY ACTIVITIES,24/05/2022,8212304902,16.05,WWW.BETTER.ORG.UK
OXFORDSHIRE CC,"CHILDRENS, YOUNG PEOPLE AND FAMILIES","	LOOKED AFTER CITY 1",TRANSPORT TO SCHOOL,24/05/2022,8212304900,79.00,WWW.THEKEY.CO.UK
OXFORDSHIRE CC,"CHILDRENS, YOUNG PEOPLE AND FAMILIES",EYNSHAM,VEHICLE FUEL,24/05/2022,8212304916,14.76,SHELL MARCHAM ROAD
OXFORDSHIRE CC,ENVIRONMENT AND ECONOMY,HARD FM,OTHER TRANSPORT ARRANGEMENTS,24/05/2022,8212304904,5.85,NCP BANBURY MARLBOROUG
OXFORDSHIRE CC,"CHILDRENS, YOUNG PEOPLE AND FAMILIES","	LEAVING CARE NORTH",BANK CHARGES,24/05/2022,8212304906,50.00,ACT CREDIT MANAGEMENT
OXFORDSHIRE CC,SOCIAL AND COMMUNITY SERVICES,CSS BICESTER,CATERING PROVISIONS,24/05/2022,8212304908,76.70,TESCO STORE 2162
OXFORDSHIRE CC,SOCIAL AND COMMUNITY SERVICES,CSS BICESTER,MATERIALS,24/05/2022,8212304910,47.94,TESCO SUBSCRIPTION
OXFORDSHIRE CC,SOCIAL AND COMMUNITY SERVICES,"	HISTORY SERVICE","BOOKS, DVDS AND CDS",24/05/2022,8212304958,20.06,AMZNMKTPLACE
OXFORDSHIRE CC,"CHILDRENS, YOUNG PEOPLE AND FAMILIES",THAME E&A HOME,CATERING PROVISIONS,24/05/2022,8212304968,259.06,TESCO STORES 2038
OXFORDSHIRE CC,"CHILDRENS, YOUNG PEOPLE AND FAMILIES",THAME E&A HOME,OTHER EXPENSES,24/05/2022,8212304970,21.99,AMZNMKTPLACE
OXFORDSHIRE CC,"CHILDRENS, YOUNG PEOPLE AND FAMILIES","	OCCG GRANT",DRUGS AND MEDICAL SUPPLIES,24/05/2022,8212305006,10.49,SUPERDRUG STORES PLC
OXFORDSHIRE CC,"CHILDRENS, YOUNG PEOPLE AND FAMILIES",UASC 16&17,OTHER TRANSPORT ARRANGEMENTS,24/05/2022,8212305012,4.30,STGCOACH/CTYLINK
OXFORDSHIRE CC,"CHILDRENS, YOUNG PEOPLE AND FAMILIES",FAMILY SOLUTIONS PLUS NON-STAFF - NORTH,PAYMENTS TO TRANSPORT OPERATORS,24/05/2022,8212305014,69.00,WWW.GWR.COM
OXFORDSHIRE CC,"CHILDRENS, YOUNG PEOPLE AND FAMILIES",MANAGEMENT RECHARGES,PAYMENTS TO TRANSPORT OPERATORS,24/05/2022,8212305024,105.80,WWW.GWR.COM
OXFORDSHIRE CC,"CHILDRENS, YOUNG PEOPLE AND FAMILIES",WITNEY,CATERING PROVISIONS,24/05/2022,8212305028,11.00,SAINSBURYS S/MKTS
OXFORDSHIRE CC,ENVIRONMENT AND ECONOMY,"	ROW MAINT",EQUIPMENT,24/05/2022,8212305192,554.85,ENGINEERING & HIRE LIM
OXFORDSHIRE CC,"CHILDRENS, YOUNG PEOPLE AND FAMILIES",EYNSHAM,SUBSCRIPTIONS,24/05/2022,8212305314,6.99,TESCO SUBSCRIPTION
OXFORDSHIRE CC,CORPORATE CORE,,STATIONERY,24/05/2022,8212305316,36.49,LYRECO UK LTD
OXFORDSHIRE CC,"CHILDRENS, YOUNG PEOPLE AND FAMILIES",DIDCOT MOVE-ON HOME,CATERING PROVISIONS,24/05/2022,8212305330,19.71,TESCO STORE 2413
OXFORDSHIRE CC,"CHILDRENS, YOUNG PEOPLE AND FAMILIES","	LEAVING CARE NORTH",CATERING PROVISIONS,24/05/2022,8212305338,4.90,WELCOME BREAK-PEARTREE
OXFORDSHIRE CC,"CHILDRENS, YOUNG PEOPLE AND FAMILIES",NTH EARLY HELP-BNRBY,CATERING PROVISIONS,24/05/2022,8212305340,2.58,TESCO STORE 2064
OXFORDSHIRE CC,"CHILDRENS, YOUNG PEOPLE AND FAMILIES",FAMILY SOLUTIONS PLUS NON-STAFF � SOUTH,PAYMENTS TO TRANSPORT OPERATORS,24/05/2022,8212305342,44.62,THETRAINLINE.COM
OXFORDSHIRE CC,"CHILDRENS, YOUNG PEOPLE AND FAMILIES",FAMILY SOLUTIONS PLUS NON-STAFF - NORTH,HIRE OF ACCOMMODATION AND FACILITIES,24/05/2022,8212304918,"1,566.00",DASHWOOD APARTMENTS
OXFORDSHIRE CC,"CHILDRENS, YOUNG PEOPLE AND FAMILIES",FSP NON-STAFFING - CENTRAL,"SUPPLIES, STATIONERY AND MATERIALS",24/05/2022,8212304926,180.27,EASYSTORAGE
OXFORDSHIRE CC,CORPORATE CORE,CATERING MANAGEMENT SOFT FM,"NEWSPAPERS, PERIODICALS AND PUBLICATIONS",24/05/2022,8212304888,7.49,SP CHILDRENS BOOK O
OXFORDSHIRE CC,SOCIAL AND COMMUNITY SERVICES,CSS - ABINGDON,CATERING PROVISIONS,24/05/2022,8212304892,64.80,TESCO STORES 2008
OXFORDSHIRE CC,"CHILDRENS, YOUNG PEOPLE AND FAMILIES","	DISABILITIES TEAM-C",HIRE OF ACCOMMODATION AND FACILITIES,24/05/2022,8212304944,124.98,TRAVELODGE
OXFORDSHIRE CC,"CHILDRENS, YOUNG PEOPLE AND FAMILIES","	DISABILITIES TEAM-C",HIRE OF ACCOMMODATION AND FACILITIES,24/05/2022,8212304942,127.48,TRAVELODGE
OXFORDSHIRE CC,"CHILDRENS, YOUNG PEOPLE AND FAMILIES",FAMILY SOLUTIONS PLUS NON-STAFF � SOUTH,HIRE OF ACCOMMODATION AND FACILITIES,24/05/2022,8212304948,16.50,JURYS INN OXFORD HOTEL
OXFORDSHIRE CC,SOCIAL AND COMMUNITY SERVICES,SCHOOLS FM CATERING AREA 2,MATERIALS,24/05/2022,8212304950,76.32,AMZNMKTPLACE
OXFORDSHIRE CC,SOCIAL AND COMMUNITY SERVICES,SCHOOLS FM CATERING AREA 2,MATERIALS,24/05/2022,8212304952,38.16,AMZNMKTPLACE
OXFORDSHIRE CC,SOCIAL AND COMMUNITY SERVICES,CSS - BANBURY,MATERIALS,24/05/2022,8212304954,44.95,AMZNMKTPLACE AMAZON.CO
OXFORDSHIRE CC,SOCIAL AND COMMUNITY SERVICES,CSS - BANBURY,MATERIALS,24/05/2022,8212304956,57.46,AMZNMKTPLACE AMAZON.CO
OXFORDSHIRE CC,SOCIAL AND COMMUNITY SERVICES,ABINGDON LIBRARY,"NEWSPAPERS, PERIODICALS AND PUBLICATIONS",24/05/2022,8212305258,55.99,GUARDIAN NEWS & MEDIA
OXFORDSHIRE CC,"CHILDRENS, YOUNG PEOPLE AND FAMILIES",CNTL EARLY HELP-RHIL,MATERIALS,24/05/2022,8212305260,60.00,WWW.ANATOMYSTUFF.CO.UK
OXFORDSHIRE CC,"CHILDRENS, YOUNG PEOPLE AND FAMILIES",FSP NON-STAFFING - CENTRAL,PAYMENTS TO TRANSPORT OPERATORS,24/05/2022,8212305262,47.30,WWW.GWR.COM
OXFORDSHIRE CC,"CHILDRENS, YOUNG PEOPLE AND FAMILIES","	LEAVING CARE SOUTH",CLOTHING AND UNIFORMS,24/05/2022,8212305266,102.92,BIGDUDECLOTHING.CO.UK
OXFORDSHIRE CC,"CHILDRENS, YOUNG PEOPLE AND FAMILIES","	LEAVING CARE SOUTH",EQUIPMENT,24/05/2022,8212305268,30.00,TESCO GIFT CARD
OXFORDSHIRE CC,"CHILDRENS, YOUNG PEOPLE AND FAMILIES",FAMILY SOLUTIONS PLUS NON-STAFF � SOUTH,HIRE OF ACCOMMODATION AND FACILITIES,24/05/2022,8212305078,621.00,HAMPTON BY HILTON OXFO
OXFORDSHIRE CC,"CHILDRENS, YOUNG PEOPLE AND FAMILIES",PAUSE PROGRAMME,CATERING PROVISIONS,24/05/2022,8212305080,21.55,LIDL GB WALLINGFORD
OXFORDSHIRE CC,"CHILDRENS, YOUNG PEOPLE AND FAMILIES",PAUSE PROGRAMME,GAS,24/05/2022,8212305082,20.00,ESSO RECTORY SSTN
OXFORDSHIRE CC,SOCIAL AND COMMUNITY SERVICES,CSS WITNEY,MATERIALS,24/05/2022,8212305168,4.98,AMZNMKTPLACE
OXFORDSHIRE CC,SOCIAL AND COMMUNITY SERVICES,CSS WITNEY,MATERIALS,24/05/2022,8212305170,10.99,AMZNMKTPLACE
OXFORDSHIRE CC,"CHILDRENS, YOUNG PEOPLE AND FAMILIES",EYNSHAM,CATERING PROVISIONS,24/05/2022,8212305278,12.40,TESCO STORES 2008
OXFORDSHIRE CC,"CHILDRENS, YOUNG PEOPLE AND FAMILIES","	LOOKED AFTER NORTH",POSTAGE AND DELIVERY,24/05/2022,8212305276,5.55,POST OFFICE COUNTER
OXFORDSHIRE CC,CORPORATE CORE,MOTOR FLEET,MOTOR IF OWN DAMAGE,24/05/2022,8212305280,"1,013.16",WHOLESALE AUTOPARTS
OXFORDSHIRE CC,CORPORATE CORE,MOTOR FLEET,MOTOR IF OWN DAMAGE,24/05/2022,8212305282,823.20,WHOLESALE AUTOPARTS
OXFORDSHIRE CC,SOCIAL AND COMMUNITY SERVICES,CSS WITNEY,MATERIALS,24/05/2022,8212305178,8.99,AMZNMKTPLACE AMAZON.CO
OXFORDSHIRE CC,SOCIAL AND COMMUNITY SERVICES,CSS WITNEY,MATERIALS,24/05/2022,8212305172,13.99,AMZNMKTPLACE
OXFORDSHIRE CC,SOCIAL AND COMMUNITY SERVICES,CSS WITNEY,MATERIALS,24/05/2022,8212305174,5.99,AMZNMKTPLACE AMAZON.CO
OXFORDSHIRE CC,SOCIAL AND COMMUNITY SERVICES,CSS WITNEY,MATERIALS,24/05/2022,8212305176,8.99,AMZNMKTPLACE AMAZON.CO
OXFORDSHIRE CC,SOCIAL AND COMMUNITY SERVICES,CSS WANTAGE,ENTERTAINMENT EXPENSES,24/05/2022,8212305180,21.40,WWW.BETTER.ORG.UK
OXFORDSHIRE CC,SOCIAL AND COMMUNITY SERVICES,CSS WANTAGE,ENTERTAINMENT EXPENSES,24/05/2022,8212305182,18.00,WWW.BETTER.ORG.UK
OXFORDSHIRE CC,CORPORATE CORE,"MARKETING, COMMUNICATIONS & ENGAGEMENT","PUBLICITY, PROMOTIONS AND ADVERTISEMENT",24/05/2022,8212305098,3.19,SNAP INC SNAP SNAP ADS
OXFORDSHIRE CC,"CHILDRENS, YOUNG PEOPLE AND FAMILIES",40 THE MOORS,CATERING PROVISIONS,24/05/2022,8212305222,18.12,SAINSBURY'S S/MKT
OXFORDSHIRE CC,"CHILDRENS, YOUNG PEOPLE AND FAMILIES","	LOOKED AFTER SOUTH",DRUGS AND MEDICAL SUPPLIES,24/05/2022,8212305230,58.53,LATERALFLOWTESTS
OXFORDSHIRE CC,ENVIRONMENT AND ECONOMY,HOOK NORTON LIBRARY,"BOOKS, DVDS AND CDS",24/05/2022,8212305044,29.98,AMZN MKTP UK 256VK2244
OXFORDSHIRE CC,"CHILDRENS, YOUNG PEOPLE AND FAMILIES",UASC 16&17,TRANSPORT TO SCHOOL,24/05/2022,8212305040,89.00,OXFORD BUS CO
OXFORDSHIRE CC,"CHILDRENS, YOUNG PEOPLE AND FAMILIES",UASC 16&17,TRANSPORT TO SCHOOL,24/05/2022,8212305042,84.00,OXFORD BUS CO
OXFORDSHIRE CC,CORPORATE CORE,SCHOOLS FM CATERING AREA 4,CATERING PROVISIONS,24/05/2022,8212305046,29.50,ICELAND FOODS
OXFORDSHIRE CC,"CHILDRENS, YOUNG PEOPLE AND FAMILIES","	LEAVING CARE CITY 2",OTHER TRANSPORT ARRANGEMENTS,24/05/2022,8212305048,4.30,STGCOACH/CTYLINK
OXFORDSHIRE CC,"CHILDRENS, YOUNG PEOPLE AND FAMILIES",FAMILY SOLUTIONS PLUS NON-STAFF � SOUTH,MATERIALS,24/05/2022,8212305052,50.00,AMAZON.CO.UK 254GV9KW4
OXFORDSHIRE CC,SOCIAL AND COMMUNITY SERVICES,"	VISUAL IMP. TEAM","SUPPLIES, STATIONERY AND MATERIALS",24/05/2022,8212305120,55.00,EB  BCU AMP RWPN REHAB
OXFORDSHIRE CC,ENVIRONMENT AND ECONOMY,"	WASTE MNGMNT GEN","BOOKS, DVDS AND CDS",24/05/2022,8212305122,192.00,WWW.LETSRECYCLE.COM
OXFORDSHIRE CC,ENVIRONMENT AND ECONOMY,"	WASTE MNGMNT GEN","BOOKS, DVDS AND CDS",24/05/2022,8212305122,4.80,WWW.LETSRECYCLE.COM
OXFORDSHIRE CC,ENVIRONMENT AND ECONOMY,"	WASTE MNGMNT GEN","BOOKS, DVDS AND CDS",24/05/2022,8212305124,192.00,WWW.LETSRECYCLE.COM
OXFORDSHIRE CC,ENVIRONMENT AND ECONOMY,"	WASTE MNGMNT GEN","BOOKS, DVDS AND CDS",24/05/2022,8212305124,4.80,WWW.LETSRECYCLE.COM
OXFORDSHIRE CC,CORPORATE CORE,"MARKETING, COMMUNICATIONS & ENGAGEMENT","PUBLICITY, PROMOTIONS AND ADVERTISEMENT",24/05/2022,8212305234,57.48,LINKEDIN-788 7207034
OXFORDSHIRE CC,"CHILDRENS, YOUNG PEOPLE AND FAMILIES",FAMILY SOLUTIONS PLUS NON-STAFF - NORTH,OTHER EXPENSES,24/05/2022,8212305236,10.00,CO-OPERATIVE FOOD
OXFORDSHIRE CC,"CHILDRENS, YOUNG PEOPLE AND FAMILIES",WITNEY,VEHICLE FUEL,24/05/2022,8212305060,5.95,TESCO PFS 3418
OXFORDSHIRE CC,SOCIAL AND COMMUNITY SERVICES,SCHOOLS FM CATERING AREA 2,CATERING PROVISIONS,24/05/2022,8212305070,34.95,ICELAND FOODS
OXFORDSHIRE CC,SOCIAL AND COMMUNITY SERVICES,SCHOOLS FM CATERING AREA 2,CATERING PROVISIONS,24/05/2022,8212305072,22.68,TESCO STORE 2994
OXFORDSHIRE CC,ENVIRONMENT AND ECONOMY,"	KNIGHTS COURT",STATIONERY,24/05/2022,8212305074,4.99,AMZNMKTPLACE AMAZON.CO
OXFORDSHIRE CC,"CHILDRENS, YOUNG PEOPLE AND FAMILIES","	LOOKED AFTER CITY 2",OTHER TRANSPORT ARRANGEMENTS,24/05/2022,8212305132,6.00,OXFORDBUS.CO.UK
OXFORDSHIRE CC,"CHILDRENS, YOUNG PEOPLE AND FAMILIES",CHILDREN IN CARE NON-STAFFING - CENTRL 1,PAYMENT TO GOVERNMENT DEPARTMENTS,23/05/2022,8205640376,-7.50,GEN REGISTER OFFICE
OXFORDSHIRE CC,CORPORATE CORE,BUSINESS INTELLECTUAL PROPERTY CENTRE,MATERIALS,23/05/2022,8205641110,28.99,AMZNMKTPLACE
OXFORDSHIRE CC,CORPORATE CORE,BUSINESS INTELLECTUAL PROPERTY CENTRE,MATERIALS,23/05/2022,8205641112,210.91,AMZNMKTPLACE
OXFORDSHIRE CC,CORPORATE CORE,SCHOOLS FM CATERING AREA 4,CATERING PROVISIONS,23/05/2022,8205641114,20.80,SAINSBURYS S/MKTS
OXFORDSHIRE CC,"CHILDRENS, YOUNG PEOPLE AND FAMILIES",WITNEY,CATERING PROVISIONS,23/05/2022,8205641116,41.72,LIDL GB WITNEY
OXFORDSHIRE CC,"CHILDRENS, YOUNG PEOPLE AND FAMILIES",WITNEY,CATERING PROVISIONS,23/05/2022,8205641118,12.20,TESCO STORE 2994
OXFORDSHIRE CC,SOCIAL AND COMMUNITY SERVICES,CSS WITNEY,CATERING PROVISIONS,23/05/2022,8205641132,9.00,CO-OP GROUP 070582
OXFORDSHIRE CC,"CHILDRENS, YOUNG PEOPLE AND FAMILIES",WITNEY,CATERING PROVISIONS,23/05/2022,8205641122,41.39,TESCO STORE 2994
OXFORDSHIRE CC,"CHILDRENS, YOUNG PEOPLE AND FAMILIES","	LAC PUPIL PREMIUM",PURCHASE OF IT EQUIPMENT,23/05/2022,8205641126,39.80,AMZNMKTPLACE AMAZON.CO
OXFORDSHIRE CC,"CHILDRENS, YOUNG PEOPLE AND FAMILIES","	LOOKED AFTER NORTH",CATERING,23/05/2022,8205641790,5.85,COSTA COFFEE 43043735
OXFORDSHIRE CC,"CHILDRENS, YOUNG PEOPLE AND FAMILIES","	LOOKED AFTER NORTH",OTHER TRANSPORT ARRANGEMENTS,23/05/2022,8205641792,4.70,M6 TOLL
OXFORDSHIRE CC,"CHILDRENS, YOUNG PEOPLE AND FAMILIES","	LOOKED AFTER NORTH",VEHICLE FUEL,23/05/2022,8205641794,35.96,SHELL DUCKLINGTON
OXFORDSHIRE CC,"CHILDRENS, YOUNG PEOPLE AND FAMILIES",KINGFISHER,HIRED AND CONTRACTED SERVICES,23/05/2022,8205641798,25.00,EYNSHAM BARBERS
OXFORDSHIRE CC,SOCIAL AND COMMUNITY SERVICES,CSS - OXFORD,CATERING PROVISIONS,23/05/2022,8205640416,12.86,ALDI STORES 775-142
OXFORDSHIRE CC,SOCIAL AND COMMUNITY SERVICES,PROPERTY CLEANING,CATERING PROVISIONS,23/05/2022,8205640400,8.75,MILK AND MORE (RECUR
OXFORDSHIRE CC,"CHILDRENS, YOUNG PEOPLE AND FAMILIES",ATV ADOPTION OXFORD,HIRE OF ACCOMMODATION AND FACILITIES,23/05/2022,8205640404,170.97,PAYPAL  TRAVELODGEH
OXFORDSHIRE CC,SOCIAL AND COMMUNITY SERVICES,CSS - OXFORD,CATERING PROVISIONS,23/05/2022,8205640410,9.87,ALDI STORES 775-142
OXFORDSHIRE CC,"CHILDRENS, YOUNG PEOPLE AND FAMILIES","	LEAVING CARE CITY 1",CATERING PROVISIONS,23/05/2022,8205640430,6.50,COSTA @ TESCO
OXFORDSHIRE CC,SOCIAL AND COMMUNITY SERVICES,CICC,MATERIALS,23/05/2022,8205640440,10.00,AMAZON.CO.UK 252J83HL4
OXFORDSHIRE CC,"CHILDRENS, YOUNG PEOPLE AND FAMILIES",PAUSE PROGRAMME,CATERING,23/05/2022,8205641136,7.80,COFFEE NO 1 WITNEY
OXFORDSHIRE CC,"CHILDRENS, YOUNG PEOPLE AND FAMILIES",WITNEY,CATERING PROVISIONS,23/05/2022,8205641144,8.55,SAINSBURYS S/MKTS
OXFORDSHIRE CC,"CHILDRENS, YOUNG PEOPLE AND FAMILIES","	SUPERVISED CONTACT",PAYMENTS TO TRANSPORT OPERATORS,23/05/2022,8205641148,63.37,THETRAINLINE.COM
OXFORDSHIRE CC,"CHILDRENS, YOUNG PEOPLE AND FAMILIES","	SUPERVISED CONTACT",MATERIALS,23/05/2022,8205641150,62.95,ARGOS LTD
OXFORDSHIRE CC,ENVIRONMENT AND ECONOMY,HARD FM,HARDWARE AND CROCKERY,23/05/2022,8205640278,103.13,DULUX DECORATOR CENTRE
OXFORDSHIRE CC,ENVIRONMENT AND ECONOMY,HARD FM,MATERIALS,23/05/2022,8205640268,23.59,AMZNMKTPLACE
OXFORDSHIRE CC,"CHILDRENS, YOUNG PEOPLE AND FAMILIES","	LOOKED AFTER CITY 1",RESIDENTIAL ACTIVITIES,23/05/2022,8205640246,28.99,THE GYM LIMITED
OXFORDSHIRE CC,ENVIRONMENT AND ECONOMY,HARD FM,HARDWARE AND CROCKERY,23/05/2022,8205640284,18.00,WICKES OXFORD
OXFORDSHIRE CC,"CHILDRENS, YOUNG PEOPLE AND FAMILIES","	LOOKED AFTER CITY 1",OTHER EXPENSES,23/05/2022,8205640248,72.00,PRIMARK 440
OXFORDSHIRE CC,SOCIAL AND COMMUNITY SERVICES,CSS - OXFORD,CATERING PROVISIONS,23/05/2022,8205640252,2.01,ALDI STORES 775-142
OXFORDSHIRE CC,SOCIAL AND COMMUNITY SERVICES,CSS - OXFORD,EDUCATIONAL AND VOCATIONAL TRAINING ,23/05/2022,8205640254,80.00,IZ  DELTAVIOLIN
OXFORDSHIRE CC,ENVIRONMENT AND ECONOMY,"	COUNTY PRINT FINSHRS",CATERING PROVISIONS,23/05/2022,8205640290,10.50,MILK AND MORE (RECUR
OXFORDSHIRE CC,ENVIRONMENT AND ECONOMY,HARD FM,MATERIALS,23/05/2022,8205640264,279.00,AMZNMKTPLACE
OXFORDSHIRE CC,"CHILDRENS, YOUNG PEOPLE AND FAMILIES",FAMILY SOLUTIONS PLUS NON-STAFF - NORTH,HIRE OF ACCOMMODATION AND FACILITIES,23/05/2022,8205641022,52.00,TRAVELODGE
OXFORDSHIRE CC,"CHILDRENS, YOUNG PEOPLE AND FAMILIES",PAUSE PROGRAMME,CATERING,23/05/2022,8205641010,40.35,RESTORE
OXFORDSHIRE CC,CORPORATE CORE,PUBLIC HEALTH GENERA,POSTAGE AND DELIVERY,23/05/2022,8205641014,11.25,ROYAL MAIL GROUP LTD
OXFORDSHIRE CC,"CHILDRENS, YOUNG PEOPLE AND FAMILIES",FAMILY SOLUTIONS PLUS NON-STAFF - NORTH,OTHER TRANSPORT ARRANGEMENTS,23/05/2022,8205641018,127.00,NATIONAL EXPRESS LIMIT
OXFORDSHIRE CC,"CHILDRENS, YOUNG PEOPLE AND FAMILIES",THAME E&A HOME,CATERING PROVISIONS,23/05/2022,8205641058,9.21,SAINSBURYS SUPERMA
OXFORDSHIRE CC,"CHILDRENS, YOUNG PEOPLE AND FAMILIES",WITNEY,CATERING PROVISIONS,23/05/2022,8205641064,11.27,SAINSBURYS S/MKTS
OXFORDSHIRE CC,SOCIAL AND COMMUNITY SERVICES,ABINGDON LIBRARY,MATERIALS,23/05/2022,8205641716,107.92,AMZNMKTPLACE AMAZON.CO
OXFORDSHIRE CC,"CHILDRENS, YOUNG PEOPLE AND FAMILIES",DIDCOT MOVE-ON HOME,ADHOC SITE ANDGROUNDS MAINTENANCE COSTS,23/05/2022,8205641690,11.99,SCREWFIX DIR LTD
OXFORDSHIRE CC,SOCIAL AND COMMUNITY SERVICES,WALLINGFORD LIBRARY,HARDWARE AND CROCKERY,23/05/2022,8205641726,12.20,AMZNMKTPLACE
OXFORDSHIRE CC,"CHILDRENS, YOUNG PEOPLE AND FAMILIES",EYNSHAM,HARDWARE AND CROCKERY,23/05/2022,8205640310,6.19,MILLETS FARM SHOP
OXFORDSHIRE CC,"CHILDRENS, YOUNG PEOPLE AND FAMILIES",KEEP ON CARING,CATERING PROVISIONS,23/05/2022,8205640304,3.50,SAINSBURY'S S/MKT
OXFORDSHIRE CC,SOCIAL AND COMMUNITY SERVICES,SCHOOLS FM CATERING AREA 4,MATERIALS,23/05/2022,8205640348,55.96,AMZNMKTPLACE AMAZON.CO
OXFORDSHIRE CC,"CHILDRENS, YOUNG PEOPLE AND FAMILIES",CHILDREN IN CARE NON-STAFFING - NORTH,CATERING PROVISIONS,23/05/2022,8205641088,2.40,CO-OP GROUP 350035
OXFORDSHIRE CC,"CHILDRENS, YOUNG PEOPLE AND FAMILIES",UASC 16&17,RESIDENTIAL ACTIVITIES,23/05/2022,8205641082,18.99,THE GYM LIMITED
OXFORDSHIRE CC,"CHILDRENS, YOUNG PEOPLE AND FAMILIES",FAMILY SOLUTIONS PLUS NON-STAFF - NORTH,OTHER EXPENSES,23/05/2022,8205641086,1.00,ARGOS LTD
OXFORDSHIRE CC,"CHILDRENS, YOUNG PEOPLE AND FAMILIES",THAME E&A HOME,CATERING PROVISIONS,23/05/2022,8205641090,16.47,WAITROSE 206
OXFORDSHIRE CC,ENVIRONMENT AND ECONOMY,BANBURY LIBRARY,MATERIALS,23/05/2022,8205641092,10.00,WWW.THEWORKS.CO.UK
OXFORDSHIRE CC,CORPORATE CORE,BUSINESS INTELLECTUAL PROPERTY CENTRE,MATERIALS,23/05/2022,8205641100,7.60,AMAZON.CO.UK 250PW8S84
OXFORDSHIRE CC,CORPORATE CORE,BUSINESS INTELLECTUAL PROPERTY CENTRE,MATERIALS,23/05/2022,8205641104,3.51,AMAZON.CO.UK 256FX3SG4
OXFORDSHIRE CC,CORPORATE CORE,BUSINESS INTELLECTUAL PROPERTY CENTRE,MATERIALS,23/05/2022,8205641106,31.99,AMZNMKTPLACE
OXFORDSHIRE CC,CORPORATE CORE,BUSINESS INTELLECTUAL PROPERTY CENTRE,MATERIALS,23/05/2022,8205641108,57.93,AMZNMKTPLACE
OXFORDSHIRE CC,"CHILDRENS, YOUNG PEOPLE AND FAMILIES",EYNSHAM,CATERING PROVISIONS,23/05/2022,8205641772,155.59,TESCO STORES 2008
OXFORDSHIRE CC,"CHILDRENS, YOUNG PEOPLE AND FAMILIES",EYNSHAM,CATERING PROVISIONS,23/05/2022,8205641778,7.50,MAYFIELDEGGS
OXFORDSHIRE CC,"CHILDRENS, YOUNG PEOPLE AND FAMILIES","	LEAVING CARE SOUTH",OTHER EXPENSES,23/05/2022,8205641760,6.50,LA BAGUETTE
OXFORDSHIRE CC,CORPORATE CORE,ICT OPERATIONS & MAI,MATERIALS,23/05/2022,8205641764,29.59,AMAZON.CO.UK 257U38SG4
OXFORDSHIRE CC,"CHILDRENS, YOUNG PEOPLE AND FAMILIES","	LEAVING CARE CITY 2",CATERING PROVISIONS,23/05/2022,8205640362,10.00,TESCO GIFT CARD
OXFORDSHIRE CC,"CHILDRENS, YOUNG PEOPLE AND FAMILIES","	DISABILITIES TEAM-N",EDUCATIONAL AND VOCATIONAL TRAINING ,23/05/2022,8205640368,18.50,THOMLEY
OXFORDSHIRE CC,ENVIRONMENT AND ECONOMY,"	ROW MAINT",EQUIPMENT,23/05/2022,8205641578,47.08,SP SAM TURNER & SONS
OXFORDSHIRE CC,ENVIRONMENT AND ECONOMY,"	ROW MAINT",EQUIPMENT,23/05/2022,8205641582,49.15,UKTOOLCENTRE
OXFORDSHIRE CC,SOCIAL AND COMMUNITY SERVICES,CSS - ABINGDON,MATERIALS,23/05/2022,8205640158,14.97,AMZNMKTPLACE
OXFORDSHIRE CC,SOCIAL AND COMMUNITY SERVICES,CSS - ABINGDON,MATERIALS,23/05/2022,8205640156,9.97,AMZNMKTPLACE
OXFORDSHIRE CC,SOCIAL AND COMMUNITY SERVICES,CSS WANTAGE,PRINTING,23/05/2022,8205640164,56.95,THE FRANCIS FRITH COLL
OXFORDSHIRE CC,CORPORATE CORE,LIBRARY COLLECTIONS,"BOOKS, DVDS AND CDS",23/05/2022,8205640928,144.02,OVERDRIVE DIST
OXFORDSHIRE CC,"CHILDRENS, YOUNG PEOPLE AND FAMILIES",UASC 16&17,OTHER TRANSPORT ARRANGEMENTS,23/05/2022,8205640946,26.25,WWW.THEKEY.CO.UK
OXFORDSHIRE CC,"CHILDRENS, YOUNG PEOPLE AND FAMILIES","	RIVERSIDE CENTRE",CATERING PROVISIONS,23/05/2022,8205640956,6.00,SAINSBURYS S/MKTS
OXFORDSHIRE CC,"CHILDRENS, YOUNG PEOPLE AND FAMILIES","	RIVERSIDE CENTRE",VEHICLE FUEL,23/05/2022,8205640958,120.40,SAINSBURYS PETROL
OXFORDSHIRE CC,"CHILDRENS, YOUNG PEOPLE AND FAMILIES",FAMILY SOLUTIONS PLUS NON-STAFF - NORTH,PAYMENTS TO TRANSPORT OPERATORS,23/05/2022,8205640962,56.10,WWW.GWR.COM
OXFORDSHIRE CC,"CHILDRENS, YOUNG PEOPLE AND FAMILIES",FAMILY SOLUTIONS PLUS NON-STAFF - NORTH,FURNITURE,23/05/2022,8205640966,419.97,WWW.BEDKINGDOM.CO.UK
OXFORDSHIRE CC,"CHILDRENS, YOUNG PEOPLE AND FAMILIES",40 THE MOORS,CATERING PROVISIONS,23/05/2022,8205641620,309.49,SAINSBURYS.CO.UK
OXFORDSHIRE CC,"CHILDRENS, YOUNG PEOPLE AND FAMILIES",THAME E&A HOME,CATERING PROVISIONS,23/05/2022,8205640212,11.54,TESCO STORES 6817
OXFORDSHIRE CC,"CHILDRENS, YOUNG PEOPLE AND FAMILIES",UASC 16&17,TRANSPORT TO SCHOOL,23/05/2022,8205640218,25.00,WWW.THEKEY.CO.UK
OXFORDSHIRE CC,"CHILDRENS, YOUNG PEOPLE AND FAMILIES",UASC 16&17,TRANSPORT TO SCHOOL,23/05/2022,8205640222,25.00,WWW.THEKEY.CO.UK
OXFORDSHIRE CC,"CHILDRENS, YOUNG PEOPLE AND FAMILIES",FAMILY SOLUTIONS PLUS NON-STAFF - NORTH,PAYMENT TO GOVERNMENT DEPARTMENTS,23/05/2022,8205640968,45.25,GEN REGISTER OFFICE
OXFORDSHIRE CC,"CHILDRENS, YOUNG PEOPLE AND FAMILIES","	LOOKED AFTER SOUTH",CATERING PROVISIONS,23/05/2022,8205640992,37.89,ONEBELOW
OXFORDSHIRE CC,CORPORATE CORE,INCOME TEAM,PAYMENT TO GOVERNMENT DEPARTMENTS,23/05/2022,8205640980,205.00,WWW.MONEYCLAIM.GOV
OXFORDSHIRE CC,"CHILDRENS, YOUNG PEOPLE AND FAMILIES",DIDCOT MOVE-ON HOME,DOMESTIC SUPPLIES,23/05/2022,8205640982,17.50,SAINSBURYS S/MKTS
OXFORDSHIRE CC,"CHILDRENS, YOUNG PEOPLE AND FAMILIES",DIDCOT MOVE-ON HOME,CATERING PROVISIONS,23/05/2022,8205640986,6.68,SAINSBURYS S/MKTS
OXFORDSHIRE CC,"CHILDRENS, YOUNG PEOPLE AND FAMILIES","	LOOKED AFTER CITY 2",CATERING,23/05/2022,8205641428,5.65,COSTA TEMPLARS
OXFORDSHIRE CC,"CHILDRENS, YOUNG PEOPLE AND FAMILIES",FAMILY SOLUTIONS PLUS NON-STAFF - NORTH,HIRE OF ACCOMMODATION AND FACILITIES,23/05/2022,8205640748,703.00,NEWTON HOUSE
OXFORDSHIRE CC,"CHILDRENS, YOUNG PEOPLE AND FAMILIES",40 THE MOORS,OTHER EXPENSES,23/05/2022,8205641466,58.73,EE LIMITED
OXFORDSHIRE CC,"CHILDRENS, YOUNG PEOPLE AND FAMILIES","	RIVERSIDE CENTRE",STATIONERY,23/05/2022,8205641448,4.00,SAINSBURYS S/MKTS
OXFORDSHIRE CC,ENVIRONMENT AND ECONOMY,"	OXFORDSHIRE MUSEUM",SUBSCRIPTIONS,23/05/2022,8205641458,205.00,MUSEUMS ASCTN
OXFORDSHIRE CC,SOCIAL AND COMMUNITY SERVICES,"	MUSEUMS COLLECTIONS",OTHER SERVICES,23/05/2022,8205641472,38.95,DUNELM
OXFORDSHIRE CC,"CHILDRENS, YOUNG PEOPLE AND FAMILIES",PAUSE PROGRAMME,POSTAGE AND DELIVERY,23/05/2022,8205640804,2.40,UPS LTD
OXFORDSHIRE CC,"CHILDRENS, YOUNG PEOPLE AND FAMILIES",PAUSE PROGRAMME,OTHER TRANSPORT ARRANGEMENTS,23/05/2022,8205640810,6.00,OXFORDBUS.CO.UK
OXFORDSHIRE CC,"CHILDRENS, YOUNG PEOPLE AND FAMILIES",PAUSE PROGRAMME,OTHER TRANSPORT ARRANGEMENTS,23/05/2022,8205640816,34.80,UPS LTD
OXFORDSHIRE CC,"CHILDRENS, YOUNG PEOPLE AND FAMILIES",UASC 16&17,"SUPPLIES, STATIONERY AND MATERIALS",23/05/2022,8205640838,18.99,SPORTSDIRECT 218
OXFORDSHIRE CC,"CHILDRENS, YOUNG PEOPLE AND FAMILIES",PAUSE PROGRAMME,OTHER TRANSPORT ARRANGEMENTS,23/05/2022,8205640822,10.44,UPS LTD
OXFORDSHIRE CC,SOCIAL AND COMMUNITY SERVICES,CSS WANTAGE,ENTERTAINMENT EXPENSES,23/05/2022,8205641548,3.50,HOLLYWOOD BOWL
OXFORDSHIRE CC,SOCIAL AND COMMUNITY SERVICES,CSS WANTAGE,ENTERTAINMENT EXPENSES,23/05/2022,8205641542,29.00,BEALE WILDLIFE PARK
OXFORDSHIRE CC,"CHILDRENS, YOUNG PEOPLE AND FAMILIES",CSS WALLINGFORD,MATERIALS,23/05/2022,8205640140,14.84,AMZNMKTPLACE
OXFORDSHIRE CC,"CHILDRENS, YOUNG PEOPLE AND FAMILIES",CSS WALLINGFORD,MATERIALS,23/05/2022,8205640136,3.78,AMZNMKTPLACE
OXFORDSHIRE CC,"CHILDRENS, YOUNG PEOPLE AND FAMILIES",CSS WALLINGFORD,CATERING PROVISIONS,23/05/2022,8205640134,22.05,WAITROSE 675
OXFORDSHIRE CC,"CHILDRENS, YOUNG PEOPLE AND FAMILIES",CHILDREN IN CARE NON-STAFFING - NORTH,REGISTRATION AND INSPECTION FEES,23/05/2022,8205640856,22.00,GEN REGISTER OFFICE
OXFORDSHIRE CC,"CHILDRENS, YOUNG PEOPLE AND FAMILIES",THAME E&A HOME,OTHER TRANSPORT ARRANGEMENTS,23/05/2022,8205640896,4.20,OXFORDBUS.CO.UK
OXFORDSHIRE CC,"CHILDRENS, YOUNG PEOPLE AND FAMILIES",THAME E&A HOME,OTHER TRANSPORT ARRANGEMENTS,23/05/2022,8205640904,5.20,ARRIVA UK BUS
OXFORDSHIRE CC,ENVIRONMENT AND ECONOMY,"	SAMUELSON HOUSE",OTHER PREMISES RELATED COSTS,23/05/2022,8205640882,4.99,AMZNMKTPLACE AMAZON.CO
OXFORDSHIRE CC,ENVIRONMENT AND ECONOMY,"	SAMUELSON HOUSE",POSTAGE AND DELIVERY,23/05/2022,8205640888,33.99,AMZNMKTPLACE AMAZON.CO
OXFORDSHIRE CC,ENVIRONMENT AND ECONOMY,"	FLEET OPERATIONS",CATERING PROVISIONS,23/05/2022,8205641590,14.24,MILK AND MORE (RECUR
OXFORDSHIRE CC,"CHILDRENS, YOUNG PEOPLE AND FAMILIES",DIDCOT MOVE-ON HOME,CATERING PROVISIONS,23/05/2022,8205642040,22.98,B&M 514 - DICOT
OXFORDSHIRE CC,CORPORATE CORE,OPERATIONS,MATERIALS,23/05/2022,8205641376,4.95,AMZNMKTPLACE
OXFORDSHIRE CC,SOCIAL AND COMMUNITY SERVICES,CSS - OXFORD,CATERING EQUIPMENT,23/05/2022,8205641396,17.97,AMZNMKTPLACE AMAZON.CO
OXFORDSHIRE CC,ENVIRONMENT AND ECONOMY,MUSEUMS COLLECTIONS,HARDWARE AND CROCKERY,23/05/2022,8205642054,307.15,JEWSON
OXFORDSHIRE CC,CORPORATE CORE,CATERING MANAGEMENT SOFT FM,CATERING PROVISIONS,23/05/2022,8205642044,7.20,SAINSBURYS S/MKTS
OXFORDSHIRE CC,"CHILDRENS, YOUNG PEOPLE AND FAMILIES",EDT,HIRE OF ACCOMMODATION AND FACILITIES,23/05/2022,8205642048,447.00,OXFORD THAMES HOTEL
OXFORDSHIRE CC,"CHILDRENS, YOUNG PEOPLE AND FAMILIES",EDT,HIRE OF ACCOMMODATION AND FACILITIES,23/05/2022,8205642050,447.00,OXFORD THAMES HOTEL
OXFORDSHIRE CC,ENVIRONMENT AND ECONOMY,"	NAT TRAILS GENERAL",PAYMENTS TO VOLUNTARY BODIES,23/05/2022,8205642060,50.00,PAYPAL  RIVERTHAMES RI
OXFORDSHIRE CC,ENVIRONMENT AND ECONOMY,"	NAT TRAILS GENERAL",EQUIPMENT,23/05/2022,8205642064,298.20,SP PWDIRECT.CO.UK
OXFORDSHIRE CC,CORPORATE CORE,LEADERSHIP TEAM,PAYMENTS TO TRANSPORT OPERATORS,23/05/2022,8205640728,59.90,WWW.GWR.COM
OXFORDSHIRE CC,CORPORATE CORE,LEADERSHIP TEAM,PAYMENTS TO TRANSPORT OPERATORS,23/05/2022,8205640730,217.30,WWW.GWR.COM
OXFORDSHIRE CC,CORPORATE CORE,LEADERSHIP TEAM,PAYMENTS TO TRANSPORT OPERATORS,23/05/2022,8205640718,80.30,WWW.GWR.COM
OXFORDSHIRE CC,CORPORATE CORE,LEADERSHIP TEAM,PAYMENTS TO TRANSPORT OPERATORS,23/05/2022,8205640722,61.20,WWW.GWR.COM
OXFORDSHIRE CC,CORPORATE CORE,LEADERSHIP TEAM,PAYMENTS TO TRANSPORT OPERATORS,23/05/2022,8205640726,61.60,WWW.GWR.COM
OXFORDSHIRE CC,SOCIAL AND COMMUNITY SERVICES,"	MUSEUMS COLLECTIONS",CATERING PROVISIONS,23/05/2022,8205641424,3.50,MILK AND MORE (RECUR
OXFORDSHIRE CC,ENVIRONMENT AND ECONOMY,"	NAT TRAILS GENERAL",VEHICLE FUEL,23/05/2022,8205641248,100.40,MFG EYNSHAM
OXFORDSHIRE CC,ENVIRONMENT AND ECONOMY,"	NAT TRAILS GENERAL",CATERING PROVISIONS,23/05/2022,8205641244,1.85,CO OPERATIVE FOOD
OXFORDSHIRE CC,"CHILDRENS, YOUNG PEOPLE AND FAMILIES",FAMILY SOLUTIONS PLUS NON-STAFF - NORTH,TELEPHONE - EQUIPMENT,23/05/2022,8205641266,10.00,THREE
OXFORDSHIRE CC,"CHILDRENS, YOUNG PEOPLE AND FAMILIES",PAUSE PROGRAMME,CATERING,23/05/2022,8205641250,34.20,BEEFEATER40014640
OXFORDSHIRE CC,"CHILDRENS, YOUNG PEOPLE AND FAMILIES",DIDCOT MOVE-ON HOME,CATERING PROVISIONS,23/05/2022,8205641274,55.58,TESCO STORE 2413
OXFORDSHIRE CC,"CHILDRENS, YOUNG PEOPLE AND FAMILIES","	LEAVING CARE NORTH",CLOTHING AND UNIFORMS,23/05/2022,8205640634,56.29,BOOHOO.COM
OXFORDSHIRE CC,"CHILDRENS, YOUNG PEOPLE AND FAMILIES",40 THE MOORS,MATERIALS,23/05/2022,8205640606,53.70,AMZNMKTPLACE
OXFORDSHIRE CC,"CHILDRENS, YOUNG PEOPLE AND FAMILIES","	LEAVING CARE NORTH",CLOTHING AND UNIFORMS,23/05/2022,8205640638,106.00,WWW.ASOS.COM
OXFORDSHIRE CC,"CHILDRENS, YOUNG PEOPLE AND FAMILIES","	LEAVING CARE SOUTH",CATERING,23/05/2022,8205640624,7.00,CAFFE NERO WITNEY
OXFORDSHIRE CC,SOCIAL AND COMMUNITY SERVICES,CHILDREN IN CARE NON-STAFFING - NORTH,DAY ACTIVITIES,23/05/2022,8205640630,30.74,HOLLYWOOD BOWL
OXFORDSHIRE CC,CORPORATE CORE,"MARKETING, COMMUNICATIONS & ENGAGEMENT","PUBLICITY, PROMOTIONS AND ADVERTISEMENT",23/05/2022,8205641290,3.86,SNAP INC SNAP SNAP ADS
OXFORDSHIRE CC,CORPORATE CORE,"MARKETING, COMMUNICATIONS & ENGAGEMENT","PUBLICITY, PROMOTIONS AND ADVERTISEMENT",23/05/2022,8205641296,4.13,SNAP INC SNAP SNAP ADS
OXFORDSHIRE CC,CORPORATE CORE,"MARKETING, COMMUNICATIONS & ENGAGEMENT","PUBLICITY, PROMOTIONS AND ADVERTISEMENT",23/05/2022,8205641298,3.98,SNAP INC SNAP SNAP ADS
OXFORDSHIRE CC,SOCIAL AND COMMUNITY SERVICES,CSS - BANBURY,OTHER TRANSPORT ARRANGEMENTS,23/05/2022,8205640476,1.95,NCP PARK PASS
OXFORDSHIRE CC,"CHILDRENS, YOUNG PEOPLE AND FAMILIES",,HIRE OF ACCOMMODATION AND FACILITIES,23/05/2022,8205640452,401.81,TRAVELODGE
OXFORDSHIRE CC,CORPORATE CORE,CENTRAL BUYING TEAM,PAYMENTS TO TRANSPORT OPERATORS,23/05/2022,8205640456,43.50,WWW.GWR.COM
OXFORDSHIRE CC,SOCIAL AND COMMUNITY SERVICES,CSS - BANBURY,MATERIALS,23/05/2022,8205640462,16.99,AMZNMKTPLACE AMAZON.CO
OXFORDSHIRE CC,SOCIAL AND COMMUNITY SERVICES,CSS - BANBURY,MATERIALS,23/05/2022,8205640468,12.99,AMZNMKTPLACE AMAZON.CO
OXFORDSHIRE CC,SOCIAL AND COMMUNITY SERVICES,CSS - BANBURY,MATERIALS,23/05/2022,8205640472,6.95,AMZNMKTPLACE AMAZON.CO
OXFORDSHIRE CC,"CHILDRENS, YOUNG PEOPLE AND FAMILIES",FSP NON-STAFFING - CENTRAL,MATERIALS,23/05/2022,8205641176,22.98,JUST MILK
OXFORDSHIRE CC,SOCIAL AND COMMUNITY SERVICES,SCHOOLS FM CATERING AREA 2,CATERING PROVISIONS,23/05/2022,8205641180,16.40,SAINSBURYS S/MKTS
OXFORDSHIRE CC,"CHILDRENS, YOUNG PEOPLE AND FAMILIES","	LOOKED AFTER CITY 1",OTHER TRANSPORT ARRANGEMENTS,23/05/2022,8205641186,7.10,M6 TOLL
OXFORDSHIRE CC,"CHILDRENS, YOUNG PEOPLE AND FAMILIES","	LOOKED AFTER CITY 1",OTHER TRANSPORT ARRANGEMENTS,23/05/2022,8205641190,7.10,M6 TOLL
OXFORDSHIRE CC,"CHILDRENS, YOUNG PEOPLE AND FAMILIES","	LOOKED AFTER CITY 1",PAYMENTS TO TRANSPORT OPERATORS,23/05/2022,8205641192,23.02,THETRAINLINE.COM
OXFORDSHIRE CC,ENVIRONMENT AND ECONOMY,"	KNIGHTS COURT",CATERING PROVISIONS,23/05/2022,8205641202,1.50,CO-OPERATIVE FOOD
OXFORDSHIRE CC,ENVIRONMENT AND ECONOMY,"	KNIGHTS COURT",STATIONERY,23/05/2022,8205641210,-5.99,AMZ GOCABLETIES LTD
OXFORDSHIRE CC,"CHILDRENS, YOUNG PEOPLE AND FAMILIES",EYNSHAM,OTHER TRANS CONTRACT,23/05/2022,8205641906,4.00,WESTGATE OXFORD CAR PA
OXFORDSHIRE CC,"CHILDRENS, YOUNG PEOPLE AND FAMILIES",EYNSHAM,CATERING EQUIPMENT,23/05/2022,8205641908,8.97,HOME BARGAINS
OXFORDSHIRE CC,"CHILDRENS, YOUNG PEOPLE AND FAMILIES",FAMILY SOLUTIONS PLUS NON-STAFF - NORTH,TELEPHONE - EQUIPMENT,23/05/2022,8205641910,49.99,REPAIR MY PHONE TODAY
OXFORDSHIRE CC,"CHILDRENS, YOUNG PEOPLE AND FAMILIES",THAME E&A HOME,CATERING PROVISIONS,23/05/2022,8205640520,37.50,TESCO STORES 4480
OXFORDSHIRE CC,"CHILDRENS, YOUNG PEOPLE AND FAMILIES",THAME E&A HOME,CATERING PROVISIONS,23/05/2022,8205640514,188.83,TESCO STORES 2038
OXFORDSHIRE CC,"CHILDRENS, YOUNG PEOPLE AND FAMILIES",THAME E&A HOME,CATERING PROVISIONS,23/05/2022,8205640518,21.96,ASDA STORE 4442
OXFORDSHIRE CC,SOCIAL AND COMMUNITY SERVICES,CSS - OXFORD,CATERING PROVISIONS,23/05/2022,8205640526,59.40,ALDI STORES 775-142
OXFORDSHIRE CC,SOCIAL AND COMMUNITY SERVICES,CSS - OXFORD,CATERING PROVISIONS,23/05/2022,8205640530,11.96,ALDI STORES 775-142
OXFORDSHIRE CC,"CHILDRENS, YOUNG PEOPLE AND FAMILIES",FAMILY SOLUTIONS PLUS NON-STAFF � SOUTH,HIRE OF ACCOMMODATION AND FACILITIES,23/05/2022,8205641232,423.72,HAMPTON BY HILTON OXFO
OXFORDSHIRE CC,"CHILDRENS, YOUNG PEOPLE AND FAMILIES",FAMILY SOLUTIONS PLUS NON-STAFF � SOUTH,HIRE OF ACCOMMODATION AND FACILITIES,23/05/2022,8205641234,423.70,HAMPTON BY HILTON OXFO
OXFORDSHIRE CC,"CHILDRENS, YOUNG PEOPLE AND FAMILIES",FAMILY SOLUTIONS PLUS NON-STAFF � SOUTH,HIRE OF ACCOMMODATION AND FACILITIES,23/05/2022,8205641236,162.00,HAMPTON INN HOTELS
OXFORDSHIRE CC,"CHILDRENS, YOUNG PEOPLE AND FAMILIES",FAMILY SOLUTIONS PLUS NON-STAFF � SOUTH,HIRE OF ACCOMMODATION AND FACILITIES,23/05/2022,8205641240,-240.00,MERCURE THAME LAMBERT
OXFORDSHIRE CC,"CHILDRENS, YOUNG PEOPLE AND FAMILIES",EYNSHAM,EQUIPMENT,23/05/2022,8205641920,33.50,PRIMARK 440
OXFORDSHIRE CC,"CHILDRENS, YOUNG PEOPLE AND FAMILIES",FAMILY SOLUTIONS PLUS NON-STAFF - NORTH,CLOTHING AND UNIFORMS,23/05/2022,8205641914,11.00,J D SPORTS FASHION
OXFORDSHIRE CC,"CHILDRENS, YOUNG PEOPLE AND FAMILIES",FAMILY SOLUTIONS PLUS NON-STAFF - NORTH,CLOTHING AND UNIFORMS,23/05/2022,8205641916,52.50,PRIMARK 440
OXFORDSHIRE CC,"CHILDRENS, YOUNG PEOPLE AND FAMILIES",EYNSHAM,DRUGS AND MEDICAL SUPPLIES,23/05/2022,8205641924,3.98,SUPERDRUG STORES PLC
OXFORDSHIRE CC,SOCIAL AND COMMUNITY SERVICES,ADULTS AT RISK,HIRE OF ACCOMMODATION AND FACILITIES,23/05/2022,8205641930,309.01,TRAVELODGE
OXFORDSHIRE CC,"CHILDRENS, YOUNG PEOPLE AND FAMILIES",DIDCOT MOVE-ON HOME,CATERING PROVISIONS,23/05/2022,8205641942,17.60,TESCO STORE 2413
OXFORDSHIRE CC,"CHILDRENS, YOUNG PEOPLE AND FAMILIES",DIDCOT MOVE-ON HOME,CLEANING MATERIALS,23/05/2022,8205641946,1.80,TESCO STORE 2413
OXFORDSHIRE CC,"CHILDRENS, YOUNG PEOPLE AND FAMILIES",FSP NON-STAFFING - CENTRAL,PAYMENTS TO TRANSPORT OPERATORS,20/05/2022,8197839966,52.20,WWW.GWR.COM
OXFORDSHIRE CC,SOCIAL AND COMMUNITY SERVICES,CSS - ABINGDON,CLOTHING AND UNIFORMS,20/05/2022,8197838818,66.24,WORKWEAR EXPRESS
OXFORDSHIRE CC,ENVIRONMENT AND ECONOMY,"	COUNTRYSIDE PREMISES",GENERAL REFUSE COLLECTION AND DISPOSAL,20/05/2022,8197838830,408.00,M & M SKIP HIRE
OXFORDSHIRE CC,"CHILDRENS, YOUNG PEOPLE AND FAMILIES",KINGFISHER,CATERING PROVISIONS,20/05/2022,8197838834,50.00,TESCO GIFT CARD
OXFORDSHIRE CC,"CHILDRENS, YOUNG PEOPLE AND FAMILIES",KINGFISHER,TELEPHONE - EQUIPMENT,20/05/2022,8197838840,39.00,TESCO ONLINE
OXFORDSHIRE CC,"CHILDRENS, YOUNG PEOPLE AND FAMILIES",KINGFISHER,CATERING PROVISIONS,20/05/2022,8197838846,100.00,TESCO GIFT CARD
OXFORDSHIRE CC,"CHILDRENS, YOUNG PEOPLE AND FAMILIES",PAUSE PROGRAMME,CATERING,20/05/2022,8197839384,14.50,COSTA COFFEE 43043010
OXFORDSHIRE CC,"CHILDRENS, YOUNG PEOPLE AND FAMILIES",UASC UNDER 16,RESIDENTIAL ACTIVITIES,20/05/2022,8197839378,59.95,AMZNMKTPLACE
OXFORDSHIRE CC,"CHILDRENS, YOUNG PEOPLE AND FAMILIES",UASC 16&17,OTHER TRANSPORT ARRANGEMENTS,20/05/2022,8197839376,26.25,WWW.THEKEY.CO.UK
OXFORDSHIRE CC,SOCIAL AND COMMUNITY SERVICES,"	SHARED LIVES",CATERING PROVISIONS,20/05/2022,8197839974,13.99,WAITROSE 211
OXFORDSHIRE CC,CORPORATE CORE,ICT OPERATIONS & MAI,MATERIALS,20/05/2022,8197839970,13.49,AMZNMKTPLACE
OXFORDSHIRE CC,"CHILDRENS, YOUNG PEOPLE AND FAMILIES","	DIRECTOR'S OFFICE",PAYMENTS TO VOLUNTARY BODIES,20/05/2022,8197839988,195.50,JUSTGIVING
OXFORDSHIRE CC,"CHILDRENS, YOUNG PEOPLE AND FAMILIES",START WELL STAFFING,"NEWSPAPERS, PERIODICALS AND PUBLICATIONS",20/05/2022,8197839994,298.80,MAG EVENTS
OXFORDSHIRE CC,"CHILDRENS, YOUNG PEOPLE AND FAMILIES",START WELL STAFFING,"NEWSPAPERS, PERIODICALS AND PUBLICATIONS",20/05/2022,8197840000,298.80,MAG EVENTS
OXFORDSHIRE CC,"CHILDRENS, YOUNG PEOPLE AND FAMILIES","	LOOKED AFTER CITY 1",RESIDENTIAL ACTIVITIES,20/05/2022,8197838878,18.99,THE GYM LIMITED
OXFORDSHIRE CC,ENVIRONMENT AND ECONOMY,HARD FM,HARDWARE AND CROCKERY,20/05/2022,8197838886,26.98,SCREWFIX DIR LTD
OXFORDSHIRE CC,ENVIRONMENT AND ECONOMY,HARD FM,HARDWARE AND CROCKERY,20/05/2022,8197838892,54.98,SCREWFIX DIR LTD
OXFORDSHIRE CC,ENVIRONMENT AND ECONOMY,HARD FM,HARDWARE AND CROCKERY,20/05/2022,8197838898,22.89,B AND Q
OXFORDSHIRE CC,ENVIRONMENT AND ECONOMY,HARD FM,HARDWARE AND CROCKERY,20/05/2022,8197838904,9.50,WICKES OXFORD
OXFORDSHIRE CC,ENVIRONMENT AND ECONOMY,HARD FM,HARDWARE AND CROCKERY,20/05/2022,8197839400,139.99,WWW.SCREWFIX.COM
OXFORDSHIRE CC,"CHILDRENS, YOUNG PEOPLE AND FAMILIES","	RIVERSIDE CENTRE",EDUCATIONAL AND VOCATIONAL TRAINING ,20/05/2022,8197839388,5.00,OXFORD BROOKES UNI
OXFORDSHIRE CC,"CHILDRENS, YOUNG PEOPLE AND FAMILIES","	RIVERSIDE CENTRE",MATERIALS,20/05/2022,8197839392,42.93,DECATHLON
OXFORDSHIRE CC,"CHILDRENS, YOUNG PEOPLE AND FAMILIES","	LAC PUPIL PREMIUM",PURCHASE OF IT EQUIPMENT,20/05/2022,8197839396,14.33,AMZNMKTPLACE AMAZON.CO
OXFORDSHIRE CC,ENVIRONMENT AND ECONOMY,HARD FM,MATERIALS,20/05/2022,8197839404,9.88,HALFORDS 0837
OXFORDSHIRE CC,"CHILDRENS, YOUNG PEOPLE AND FAMILIES",DIDCOT MOVE-ON HOME,"SUPPLIES, STATIONERY AND MATERIALS",20/05/2022,8197839408,8.00,SAINSBURYS S/MKTS
OXFORDSHIRE CC,"CHILDRENS, YOUNG PEOPLE AND FAMILIES","	LEAVING CARE NORTH",IT SOFTWARE,20/05/2022,8197839234,5.00,EMAP UK
OXFORDSHIRE CC,"CHILDRENS, YOUNG PEOPLE AND FAMILIES",FAMILY SOLUTIONS PLUS NON-STAFF - NORTH,MATERIALS,20/05/2022,8197839256,11.10,AMZNMKTPLACE
OXFORDSHIRE CC,"CHILDRENS, YOUNG PEOPLE AND FAMILIES",FAMILY SOLUTIONS PLUS NON-STAFF - NORTH,MATERIALS,20/05/2022,8197839268,12.25,AMZNMKTPLACE
OXFORDSHIRE CC,"CHILDRENS, YOUNG PEOPLE AND FAMILIES",FAMILY SOLUTIONS PLUS NON-STAFF - NORTH,MATERIALS,20/05/2022,8197839262,7.64,AMZNMKTPLACE AMAZON.CO
OXFORDSHIRE CC,"CHILDRENS, YOUNG PEOPLE AND FAMILIES",FAMILY SOLUTIONS PLUS NON-STAFF - NORTH,MATERIALS,20/05/2022,8197839264,11.99,AMZNMKTPLACE AMAZON.CO
OXFORDSHIRE CC,"CHILDRENS, YOUNG PEOPLE AND FAMILIES","	PARENT PARTNERSHIP",MATERIALS,20/05/2022,8197839872,47.94,AMZNMKTPLACE
OXFORDSHIRE CC,"CHILDRENS, YOUNG PEOPLE AND FAMILIES",40 THE MOORS,FURNITURE,20/05/2022,8197839876,320.00,BEDS TO U
OXFORDSHIRE CC,SOCIAL AND COMMUNITY SERVICES,CSS WANTAGE,MATERIALS,20/05/2022,8197838764,15.78,TESCO STORE 2919
OXFORDSHIRE CC,"CHILDRENS, YOUNG PEOPLE AND FAMILIES",PAUSE PROGRAMME,OTHER TRANSPORT ARRANGEMENTS,20/05/2022,8197839332,6.00,OXFORDBUS.CO.UK
OXFORDSHIRE CC,"CHILDRENS, YOUNG PEOPLE AND FAMILIES",HOUSE PROJECT,HOSPITALITY EXPENSES,20/05/2022,8197839338,7.20,THE UP IN ARMS PUB
OXFORDSHIRE CC,"CHILDRENS, YOUNG PEOPLE AND FAMILIES",HOUSE PROJECT,HOSPITALITY EXPENSES,20/05/2022,8197839342,14.95,THE UP IN ARMS PUB
OXFORDSHIRE CC,CORPORATE CORE,OPERATIONS,MATERIALS,20/05/2022,8197839680,4.29,AMZNMKTPLACE AMAZON.CO
OXFORDSHIRE CC,"CHILDRENS, YOUNG PEOPLE AND FAMILIES",NTS UASC AGENCY,CATERING PROVISIONS,20/05/2022,8197839758,12.31,ALDI STORES 775-142
OXFORDSHIRE CC,SOCIAL AND COMMUNITY SERVICES,"	MUSEUMS COLLECTIONS",OTHER SERVICES,20/05/2022,8197839766,10.74,AMZNMKTPLACE
OXFORDSHIRE CC,SOCIAL AND COMMUNITY SERVICES,"	MUSEUMS COLLECTIONS",OTHER SERVICES,20/05/2022,8197839768,85.49,AMZNMKTPLACE
OXFORDSHIRE CC,SOCIAL AND COMMUNITY SERVICES,"	MUSEUMS COLLECTIONS",OTHER SERVICES,20/05/2022,8197839770,64.56,PRESERVATION EQUIP
OXFORDSHIRE CC,SOCIAL AND COMMUNITY SERVICES,"	MUSEUMS COLLECTIONS",OTHER SERVICES,20/05/2022,8197839772,34.74,PRESERVATION EQUIP
OXFORDSHIRE CC,"CHILDRENS, YOUNG PEOPLE AND FAMILIES","	LEAVING CARE NORTH",OTHER TRANSPORT ARRANGEMENTS,20/05/2022,8197839790,30.00,OXFORDBUS.CO.UK
OXFORDSHIRE CC,"CHILDRENS, YOUNG PEOPLE AND FAMILIES","	LEAVING CARE NORTH",CATERING,20/05/2022,8197839792,8.35,COSTA TEMPLARS
OXFORDSHIRE CC,SOCIAL AND COMMUNITY SERVICES,CSS WITNEY,CATERING PROVISIONS,20/05/2022,8197839800,6.98,WM MORRISONS STORE
OXFORDSHIRE CC,SOCIAL AND COMMUNITY SERVICES,CSS WANTAGE,ENTERTAINMENT EXPENSES,20/05/2022,8197839812,10.70,WWW.BETTER.ORG.UK
OXFORDSHIRE CC,SOCIAL AND COMMUNITY SERVICES,CSS WANTAGE,ENTERTAINMENT EXPENSES,20/05/2022,8197839804,14.00,HOLLYWOOD BOWL
OXFORDSHIRE CC,SOCIAL AND COMMUNITY SERVICES,CSS WANTAGE,ENTERTAINMENT EXPENSES,20/05/2022,8197839810,14.00,HOLLYWOOD BOWL
OXFORDSHIRE CC,"CHILDRENS, YOUNG PEOPLE AND FAMILIES","	SEN/ICT EQUIPMENT",PURCHASE OF IT EQUIPMENT,20/05/2022,8197839814,13.99,AMZNMKTPLACE AMAZON.CO
OXFORDSHIRE CC,"CHILDRENS, YOUNG PEOPLE AND FAMILIES","	SEN/ICT EQUIPMENT",PURCHASE OF IT EQUIPMENT,20/05/2022,8197839818,21.59,AMZNMKTPLACE AMAZON.CO
OXFORDSHIRE CC,"CHILDRENS, YOUNG PEOPLE AND FAMILIES",40 THE MOORS,HARDWARE AND CROCKERY,20/05/2022,8197839188,44.89,AMZNMKTPLACE
OXFORDSHIRE CC,"CHILDRENS, YOUNG PEOPLE AND FAMILIES","	LEAVING CARE SOUTH",CATERING PROVISIONS,20/05/2022,8197839226,2.80,SIP CARS PARKS (1) LI
OXFORDSHIRE CC,"CHILDRENS, YOUNG PEOPLE AND FAMILIES","	MALTFIELD HOUSE",CATERING PROVISIONS,20/05/2022,8197839850,6.20,SAINSBURYS S/MKTS
OXFORDSHIRE CC,"CHILDRENS, YOUNG PEOPLE AND FAMILIES","	MALTFIELD HOUSE",CATERING PROVISIONS,20/05/2022,8197839852,9.52,SAINSBURYS S/MKTS
OXFORDSHIRE CC,"CHILDRENS, YOUNG PEOPLE AND FAMILIES","	MALTFIELD HOUSE",CATERING PROVISIONS,20/05/2022,8197839854,5.30,SAINSBURYS S/MKTS
OXFORDSHIRE CC,"CHILDRENS, YOUNG PEOPLE AND FAMILIES",,HIRE OF ACCOMMODATION AND FACILITIES,20/05/2022,8197839058,92.29,TRAVELODGE
OXFORDSHIRE CC,SOCIAL AND COMMUNITY SERVICES,CSS - BANBURY,CATERING PROVISIONS,20/05/2022,8197839062,6.61,TESCO STORE 2064
OXFORDSHIRE CC,SOCIAL AND COMMUNITY SERVICES,CSS WALLINGFORD,CATERING PROVISIONS,20/05/2022,8197839064,9.15,WAITROSE 675
OXFORDSHIRE CC,"CHILDRENS, YOUNG PEOPLE AND FAMILIES",PAUSE PROGRAMME,OTHER TRANSPORT ARRANGEMENTS,20/05/2022,8197839518,20.00,STGCOACH/CTYLINK
OXFORDSHIRE CC,"CHILDRENS, YOUNG PEOPLE AND FAMILIES",HOUSE PROJECT,CATERING PROVISIONS,20/05/2022,8197839534,31.85,SAINSBURYS S/MKTS
OXFORDSHIRE CC,"CHILDRENS, YOUNG PEOPLE AND FAMILIES",UASC 16&17,RESIDENTIAL ACTIVITIES,20/05/2022,8197839540,18.99,THE GYM LIMITED
OXFORDSHIRE CC,"CHILDRENS, YOUNG PEOPLE AND FAMILIES",DIDCOT MOVE-ON HOME,CATERING PROVISIONS,20/05/2022,8197839546,11.90,WAITROSE 221
OXFORDSHIRE CC,"CHILDRENS, YOUNG PEOPLE AND FAMILIES",FSP NON-STAFFING - CENTRAL,HIRE OF ACCOMMODATION AND FACILITIES,20/05/2022,8197839552,51.99,TRAVELODGE
OXFORDSHIRE CC,"CHILDRENS, YOUNG PEOPLE AND FAMILIES",FSP NON-STAFFING - CENTRAL,PAYMENTS TO TRANSPORT OPERATORS,20/05/2022,8197839556,59.40,WWW.GWR.COM
OXFORDSHIRE CC,"CHILDRENS, YOUNG PEOPLE AND FAMILIES","	LEAVING CARE NORTH",CATERING PROVISIONS,20/05/2022,8197840142,5.25,WM MORRISONS STORE
OXFORDSHIRE CC,"CHILDRENS, YOUNG PEOPLE AND FAMILIES",NTS UASC AGENCY,MATERIALS,20/05/2022,8197840154,7.00,THEWORKS.CO.UK
OXFORDSHIRE CC,"CHILDRENS, YOUNG PEOPLE AND FAMILIES",CSS - DIDCOT,CATERING PROVISIONS,20/05/2022,8197839102,2.00,CO-OPERATIVE FOOD
OXFORDSHIRE CC,"CHILDRENS, YOUNG PEOPLE AND FAMILIES","	RIVERSIDE CENTRE",MATERIALS,20/05/2022,8197839112,32.00,REG TAYLOR CYCLES
OXFORDSHIRE CC,"CHILDRENS, YOUNG PEOPLE AND FAMILIES",FAMILY SOLUTIONS PLUS NON-STAFF - NORTH,MATERIALS,20/05/2022,8197839560,62.95,ARGOS LTD
OXFORDSHIRE CC,ENVIRONMENT AND ECONOMY,MAJOR INFRASTRUCTURE DELIVERY,POSTAGE AND DELIVERY,20/05/2022,8197839566,15.45,ROYAL MAIL GROUP LTD
OXFORDSHIRE CC,"CHILDRENS, YOUNG PEOPLE AND FAMILIES","	LOOKED AFTER CITY 2",PAYMENTS TO TRANSPORT OPERATORS,20/05/2022,8197839598,19.66,TRAINLINE.COM
OXFORDSHIRE CC,"CHILDRENS, YOUNG PEOPLE AND FAMILIES","	LOOKED AFTER CITY 1",VEHICLE FUEL,20/05/2022,8197839588,48.12,TESCO PFS 3968
OXFORDSHIRE CC,"CHILDRENS, YOUNG PEOPLE AND FAMILIES","	LOOKED AFTER CITY 1",VEHICLE FUEL,20/05/2022,8197839592,44.00,TESCO PAY AT PUMP 3968
OXFORDSHIRE CC,"CHILDRENS, YOUNG PEOPLE AND FAMILIES","ABINGDON CC, STRATTON WAY",CATERING PROVISIONS,20/05/2022,8197839122,1.00,POUNDLAND LTD 1366
OXFORDSHIRE CC,"CHILDRENS, YOUNG PEOPLE AND FAMILIES",EYNSHAM,TELEPHONE - EQUIPMENT,20/05/2022,8197839158,10.00,GIFFGAFF
OXFORDSHIRE CC,"CHILDRENS, YOUNG PEOPLE AND FAMILIES",FSP NON-STAFFING - CENTRAL,MATERIALS,20/05/2022,8197839170,14.99,AMZNMKTPLACE
OXFORDSHIRE CC,"CHILDRENS, YOUNG PEOPLE AND FAMILIES","	LEAVING CARE CITY 2",CATERING PROVISIONS,20/05/2022,8197839606,8.30,WELCOME BREAK-PEARTREE
OXFORDSHIRE CC,ENVIRONMENT AND ECONOMY,"	NAT TRAILS GENERAL",CATERING PROVISIONS,20/05/2022,8197839612,2.60,CO OPERATIVE FOOD
OXFORDSHIRE CC,"CHILDRENS, YOUNG PEOPLE AND FAMILIES",PAUSE PROGRAMME,CATERING PROVISIONS,20/05/2022,8197839616,18.00,SAINSBURYS S/MKTS
OXFORDSHIRE CC,SOCIAL AND COMMUNITY SERVICES,CSS WITNEY,HARDWARE AND CROCKERY,20/05/2022,8197839632,143.84,WWW.MILLETSFARMCENTRE.
OXFORDSHIRE CC,CORPORATE CORE,"MARKETING, COMMUNICATIONS & ENGAGEMENT",MATERIALS,20/05/2022,8197839638,24.98,LINKEDIN 7875245264
OXFORDSHIRE CC,CORPORATE CORE,"MARKETING, COMMUNICATIONS & ENGAGEMENT","BOOKS, DVDS AND CDS",20/05/2022,8197839644,15.81,GETAUDIOGRAM.COM
OXFORDSHIRE CC,CORPORATE CORE,"MARKETING, COMMUNICATIONS & ENGAGEMENT","PUBLICITY, PROMOTIONS AND ADVERTISEMENT",20/05/2022,8197839648,4.01,SNAP INC SNAP SNAP ADS
OXFORDSHIRE CC,ENVIRONMENT AND ECONOMY,"	TVERC",POSTAGE AND DELIVERY,20/05/2022,8197838932,11.40,POST OFFICE COUNTER
OXFORDSHIRE CC,ENVIRONMENT AND ECONOMY,HARD FM,HARDWARE AND CROCKERY,20/05/2022,8197838910,23.91,SCREWFIX DIR LTD
OXFORDSHIRE CC,ENVIRONMENT AND ECONOMY,HARD FM,HARDWARE AND CROCKERY,20/05/2022,8197838918,26.00,WICKES OXFORD
OXFORDSHIRE CC,ENVIRONMENT AND ECONOMY,HARD FM,HARDWARE AND CROCKERY,20/05/2022,8197838924,22.99,WWW.SCREWFIX.COM
OXFORDSHIRE CC,SOCIAL AND COMMUNITY SERVICES,CSS BICESTER,DRUGS AND MEDICAL SUPPLIES,20/05/2022,8197838934,12.68,SUPERDRUG STORES PLC
OXFORDSHIRE CC,SOCIAL AND COMMUNITY SERVICES,UASC 16&17,CATERING PROVISIONS,20/05/2022,8197838938,20.00,MARKS&SPENCER PLC
OXFORDSHIRE CC,"CHILDRENS, YOUNG PEOPLE AND FAMILIES",THAME E&A HOME,CATERING PROVISIONS,20/05/2022,8197838944,8.00,SAINSBURYS SUPERMA
OXFORDSHIRE CC,COMMUNITY SAFETY,ON ST PARK OXFD SPA,MATERIALS,20/05/2022,8197838980,9.95,AMZNMKTPLACE AMAZON.CO
OXFORDSHIRE CC,"CHILDRENS, YOUNG PEOPLE AND FAMILIES",KINGFISHER,CATERING,20/05/2022,8197839432,7.08,MCDONALDS
OXFORDSHIRE CC,"CHILDRENS, YOUNG PEOPLE AND FAMILIES",40 THE MOORS,MATERIALS,20/05/2022,8197839436,25.74,AMZNMKTPLACE AMAZON.CO
OXFORDSHIRE CC,"CHILDRENS, YOUNG PEOPLE AND FAMILIES",FAMILY SOLUTIONS PLUS NON-STAFF � SOUTH,HIRE OF ACCOMMODATION AND FACILITIES,20/05/2022,8197839448,-928.50,JURYS INN OXFORD HOTEL
OXFORDSHIRE CC,"CHILDRENS, YOUNG PEOPLE AND FAMILIES",UASC 16&17,OTHER TRANSPORT ARRANGEMENTS,20/05/2022,8197839458,7.10,RINGGO PARKING
OXFORDSHIRE CC,"CHILDRENS, YOUNG PEOPLE AND FAMILIES",UASC 16&17,OTHER TRANSPORT ARRANGEMENTS,20/05/2022,8197839462,3.50,OXFORD BUS COMPANY
OXFORDSHIRE CC,"CHILDRENS, YOUNG PEOPLE AND FAMILIES",FAMILY SOLUTIONS PLUS NON-STAFF - NORTH,OTHER TRANSPORT ARRANGEMENTS,20/05/2022,8197839466,83.50,STAGECOACH SERVICE
OXFORDSHIRE CC,"CHILDRENS, YOUNG PEOPLE AND FAMILIES",EYNSHAM,MATERIALS,20/05/2022,8197840062,19.99,AMZNMKTPLACE
OXFORDSHIRE CC,"CHILDRENS, YOUNG PEOPLE AND FAMILIES",EYNSHAM,EQUIPMENT,20/05/2022,8197840056,239.00,ARGOS LTD
OXFORDSHIRE CC,CORPORATE CORE,,STATIONERY,20/05/2022,8197840066,22.32,LYRECO UK LTD
OXFORDSHIRE CC,CORPORATE CORE,,STATIONERY,20/05/2022,8197840072,4.73,LYRECO UK LTD
OXFORDSHIRE CC,CORPORATE CORE,,STATIONERY,20/05/2022,8197840074,25.82,LYRECO UK LTD
OXFORDSHIRE CC,CORPORATE CORE,,STATIONERY,20/05/2022,8197840078,8.74,LYRECO UK LTD
OXFORDSHIRE CC,CORPORATE CORE,,STATIONERY,20/05/2022,8197840084,19.20,LYRECO UK LTD
OXFORDSHIRE CC,CORPORATE CORE,,STATIONERY,20/05/2022,8197840086,74.21,LYRECO UK LTD
OXFORDSHIRE CC,"CHILDRENS, YOUNG PEOPLE AND FAMILIES",CHILDREN IN CARE NON-STAFFING - CENTRL 1,SUBSCRIPTIONS,20/05/2022,8197839020,18.90,FUSION LIFESTYLE
OXFORDSHIRE CC,"CHILDRENS, YOUNG PEOPLE AND FAMILIES",FAMILY SOLUTIONS PLUS NON-STAFF � SOUTH,HIRE OF ACCOMMODATION AND FACILITIES,20/05/2022,8197839024,203.85,JURYS INN OXFORD HOTEL
OXFORDSHIRE CC,"CHILDRENS, YOUNG PEOPLE AND FAMILIES",FAMILY SOLUTIONS PLUS NON-STAFF � SOUTH,HIRE OF ACCOMMODATION AND FACILITIES,20/05/2022,8197839026,516.25,JURYS INN OXFORD HOTEL
OXFORDSHIRE CC,SOCIAL AND COMMUNITY SERVICES,CSS BICESTER,MATERIALS,20/05/2022,8197839030,2.40,AMZNMKTPLACE AMAZON.CO
OXFORDSHIRE CC,SOCIAL AND COMMUNITY SERVICES,CSS BICESTER,MATERIALS,20/05/2022,8197839034,17.55,AMZNMKTPLACE AMAZON.CO
OXFORDSHIRE CC,CORPORATE CORE,BUSINESS INTELLECTUAL PROPERTY CENTRE,MATERIALS,20/05/2022,8197839478,13.99,AMZNMKTPLACE
OXFORDSHIRE CC,CORPORATE CORE,BUSINESS INTELLECTUAL PROPERTY CENTRE,PRINTING,20/05/2022,8197839474,"1,170.00",WWW.OXFORD.MINUTEMANPR
OXFORDSHIRE CC,"CHILDRENS, YOUNG PEOPLE AND FAMILIES",HOUSE PROJECT,HOSPITALITY EXPENSES,20/05/2022,8197839504,7.20,THE UP IN ARMS PUB
OXFORDSHIRE CC,CORPORATE CORE,SCHOOLS FM CATERING AREA 4,CATERING PROVISIONS,20/05/2022,8197839482,96.58,SAINSBURYS S/MKTS
OXFORDSHIRE CC,CORPORATE CORE,SCHOOLS FM CATERING AREA 4,CATERING PROVISIONS,20/05/2022,8197839486,39.45,SAINSBURYS.CO.UK
OXFORDSHIRE CC,CORPORATE CORE,SCHOOLS FM CATERING AREA 4,CATERING,20/05/2022,8197839490,61.82,BOOKER LIMITED OXFORD
OXFORDSHIRE CC,"CHILDRENS, YOUNG PEOPLE AND FAMILIES",WITNEY,CATERING PROVISIONS,20/05/2022,8197839494,20.82,SAINSBURYS S/MKTS
OXFORDSHIRE CC,"CHILDRENS, YOUNG PEOPLE AND FAMILIES",FAMILY SOLUTIONS PLUS NON-STAFF � SOUTH,OTHER TRANSPORT ARRANGEMENTS,20/05/2022,8197839498,70.80,GOGREENT
OXFORDSHIRE CC,"CHILDRENS, YOUNG PEOPLE AND FAMILIES",HOUSE PROJECT,HOSPITALITY EXPENSES,20/05/2022,8197839502,3.60,THE UP IN ARMS PUB
OXFORDSHIRE CC,CORPORATE CORE,,STATIONERY,20/05/2022,8197840100,214.87,LYRECO UK LTD
OXFORDSHIRE CC,CORPORATE CORE,,STATIONERY,20/05/2022,8197840092,46.90,LYRECO UK LTD
OXFORDSHIRE CC,CORPORATE CORE,,STATIONERY,20/05/2022,8197840096,49.98,LYRECO UK LTD
OXFORDSHIRE CC,CORPORATE CORE,,STATIONERY,20/05/2022,8197840098,44.83,LYRECO UK LTD
OXFORDSHIRE CC,CORPORATE CORE,,STATIONERY,20/05/2022,8197840126,133.87,LYRECO UK LTD
OXFORDSHIRE CC,CORPORATE CORE,,STATIONERY,20/05/2022,8197840108,187.20,LYRECO UK LTD
OXFORDSHIRE CC,CORPORATE CORE,,STATIONERY,20/05/2022,8197840112,13.20,LYRECO UK LTD
OXFORDSHIRE CC,CORPORATE CORE,,STATIONERY,20/05/2022,8197840116,17.90,LYRECO UK LTD
OXFORDSHIRE CC,CORPORATE CORE,,STATIONERY,20/05/2022,8197840118,22.33,LYRECO UK LTD
OXFORDSHIRE CC,CORPORATE CORE,,STATIONERY,20/05/2022,8197840122,24.70,LYRECO UK LTD
OXFORDSHIRE CC,"CHILDRENS, YOUNG PEOPLE AND FAMILIES","	LEAVING CARE CITY 1",CATERING PROVISIONS,20/05/2022,8197839054,4.10,COSTA BICESTER
OXFORDSHIRE CC,SOCIAL AND COMMUNITY SERVICES,CSS - OXFORD,CATERING PROVISIONS,20/05/2022,8197839042,31.98,ALDI STORES 775-142
OXFORDSHIRE CC,SOCIAL AND COMMUNITY SERVICES,CSS - OXFORD,CATERING PROVISIONS,20/05/2022,8197839044,19.00,ALDI STORES 775-142
OXFORDSHIRE CC,SOCIAL AND COMMUNITY SERVICES,CSS - OXFORD,MATERIALS,20/05/2022,8197839048,29.96,AMZNMKTPLACE AMAZON.CO
OXFORDSHIRE CC,"CHILDRENS, YOUNG PEOPLE AND FAMILIES",FAMILY SOLUTIONS PLUS NON-STAFF - NORTH,MANAGEMENT CONSULTANT FEES,19/05/2022,8192117696,95.00,MMS.CARDSAVEONLINEPAYM
OXFORDSHIRE CC,"CHILDRENS, YOUNG PEOPLE AND FAMILIES",FSP NON-STAFFING - CENTRAL,HIRE OF ACCOMMODATION AND FACILITIES,19/05/2022,8192117878,66.28,TRAVELODGE
OXFORDSHIRE CC,"CHILDRENS, YOUNG PEOPLE AND FAMILIES","	LEAVING CARE NORTH",CATERING PROVISIONS,19/05/2022,8192117886,12.95,SAINSBURYS S/MKTS
OXFORDSHIRE CC,"CHILDRENS, YOUNG PEOPLE AND FAMILIES","	LEAVING CARE NORTH",MATERIALS,19/05/2022,8192117890,70.00,JD SPORTS INTERNET
OXFORDSHIRE CC,"CHILDRENS, YOUNG PEOPLE AND FAMILIES","	LEAVING CARE CITY 2",OTHER TRANSPORT ARRANGEMENTS,19/05/2022,8192117930,2.00,HORIZON TRAVELODGE OXF
OXFORDSHIRE CC,"CHILDRENS, YOUNG PEOPLE AND FAMILIES","	LEAVING CARE CITY 2",CATERING,19/05/2022,8192117926,3.25,COSTA COFFEE
OXFORDSHIRE CC,"CHILDRENS, YOUNG PEOPLE AND FAMILIES",THAME E&A HOME,OTHER TRANSPORT ARRANGEMENTS,19/05/2022,8192118280,1.50,VALE_OF_WH_PARKING_FEE
OXFORDSHIRE CC,"CHILDRENS, YOUNG PEOPLE AND FAMILIES",THAME E&A HOME,HARDWARE AND CROCKERY,19/05/2022,8192118274,38.30,HOMEBASE LTD 091
OXFORDSHIRE CC,ENVIRONMENT AND ECONOMY,LEARNING & ACCESS,"SUPPLIES, STATIONERY AND MATERIALS",19/05/2022,8192118324,21.39,AMZNMKTPLACE AMAZON.CO
OXFORDSHIRE CC,SOCIAL AND COMMUNITY SERVICES,CHILDREN IN CARE NON-STAFFING - NORTH,SUBSCRIPTIONS,19/05/2022,8192118336,85.90,FUSION LIFESTYLE
OXFORDSHIRE CC,SOCIAL AND COMMUNITY SERVICES,CHILDREN IN CARE NON-STAFFING - NORTH,SUBSCRIPTIONS,19/05/2022,8192118344,16.40,FUSION LIFESTYLE
OXFORDSHIRE CC,SOCIAL AND COMMUNITY SERVICES,CSS - BANBURY,CATERING PROVISIONS,19/05/2022,8192118640,15.45,TESCO STORE 2064
OXFORDSHIRE CC,"CHILDRENS, YOUNG PEOPLE AND FAMILIES",40 THE MOORS,CLOTHING AND UNIFORMS,19/05/2022,8192118662,30.00,NEW ERA
OXFORDSHIRE CC,"CHILDRENS, YOUNG PEOPLE AND FAMILIES",THAME E&A HOME,ENTERTAINMENT EXPENSES,19/05/2022,8192118902,40.50,TICKETS.WWFC.COM/CASHD
OXFORDSHIRE CC,SOCIAL AND COMMUNITY SERVICES,BICESTER LIBRARY,MATERIALS,19/05/2022,8192118908,58.33,AMZNMKTPLACE
OXFORDSHIRE CC,CORPORATE CORE,THAME LIBRARY,MATERIALS,19/05/2022,8192118964,8.97,AMZNMKTPLACE
OXFORDSHIRE CC,CORPORATE CORE,CATERING MANAGEMENT SOFT FM,MATERIALS,19/05/2022,8192119152,59.48,AMZNMKTPLACE
OXFORDSHIRE CC,"CHILDRENS, YOUNG PEOPLE AND FAMILIES","	LEAVING CARE NORTH",CATERING,19/05/2022,8192119162,9.00,WOOLLEY EDGE N/E COSTA
OXFORDSHIRE CC,SOCIAL AND COMMUNITY SERVICES,CSS - ABINGDON,CATERING PROVISIONS,19/05/2022,8192116736,11.25,WAITROSE 211
OXFORDSHIRE CC,ENVIRONMENT AND ECONOMY,HARD FM,HARDWARE AND CROCKERY,19/05/2022,8192116796,64.80,CITY PLUMBING
OXFORDSHIRE CC,ENVIRONMENT AND ECONOMY,HARD FM,HARDWARE AND CROCKERY,19/05/2022,8192116774,29.48,OXON FASTENING SYSTEMS
OXFORDSHIRE CC,ENVIRONMENT AND ECONOMY,HARD FM,HARDWARE AND CROCKERY,19/05/2022,8192116782,46.00,B & Q 1062
OXFORDSHIRE CC,"CHILDRENS, YOUNG PEOPLE AND FAMILIES","	LEAVING CARE SOUTH",CATERING,19/05/2022,8192117290,6.62,BURGER KING
OXFORDSHIRE CC,SHARED SERVICES,CSC SUPP & SERVICES,PURCHASE OF IT EQUIPMENT,19/05/2022,8192117296,25.20,AMZNMKTPLACE
OXFORDSHIRE CC,ENVIRONMENT AND ECONOMY,"	TVERC",HIRED AND CONTRACTED SERVICES,19/05/2022,8192116826,6.00,LAND REGISTRY ECOM CCC
OXFORDSHIRE CC,ENVIRONMENT AND ECONOMY,"	TVERC",HIRED AND CONTRACTED SERVICES,19/05/2022,8192116814,6.00,LAND REGISTRY ECOM CCC
OXFORDSHIRE CC,ENVIRONMENT AND ECONOMY,"	TVERC",HIRED AND CONTRACTED SERVICES,19/05/2022,8192116820,6.00,LAND REGISTRY ECOM CCC
OXFORDSHIRE CC,"CHILDRENS, YOUNG PEOPLE AND FAMILIES",THAME E&A HOME,CATERING PROVISIONS,19/05/2022,8192116832,3.05,CO-OPERATIVE FOOD
OXFORDSHIRE CC,"CHILDRENS, YOUNG PEOPLE AND FAMILIES",FSP NON-STAFFING - CENTRAL,MATERIALS,19/05/2022,8192116844,294.00,M & M SKIP HIRE
OXFORDSHIRE CC,ENTERPRISEVC,BUSINESS SYST STAFF,ENTERTAINMENT EXPENSES,19/05/2022,8192116876,50.00,WESTBURY VILLAGE HALL
OXFORDSHIRE CC,"CHILDRENS, YOUNG PEOPLE AND FAMILIES",CSS - DIDCOT,CATERING PROVISIONS,19/05/2022,8192117120,83.92,ALDI 99 775
OXFORDSHIRE CC,"CHILDRENS, YOUNG PEOPLE AND FAMILIES",CSS - DIDCOT,MATERIALS,19/05/2022,8192117126,-9.99,AMZ AURANSO OFFICIAL-U
OXFORDSHIRE CC,SOCIAL AND COMMUNITY SERVICES,CSS - OXFORD,MATERIALS,19/05/2022,8192117134,26.79,ALDI STORES 775-142
OXFORDSHIRE CC,SOCIAL AND COMMUNITY SERVICES,CSS - OXFORD,MATERIALS,19/05/2022,8192117140,10.56,ALDI STORES 775-142
OXFORDSHIRE CC,"CHILDRENS, YOUNG PEOPLE AND FAMILIES",FAMILY SOLUTIONS PLUS NON-STAFF - NORTH,HIRE OF ACCOMMODATION AND FACILITIES,19/05/2022,8192117366,717.49,TRAVELODGE
OXFORDSHIRE CC,"CHILDRENS, YOUNG PEOPLE AND FAMILIES",FAMILY SOLUTIONS PLUS NON-STAFF - NORTH,MATERIALS,19/05/2022,8192117362,12.15,AMZNMKTPLACE
OXFORDSHIRE CC,"CHILDRENS, YOUNG PEOPLE AND FAMILIES",CHILDREN IN CARE NON-STAFFING - NORTH,OTHER TRANSPORT ARRANGEMENTS,19/05/2022,8192117426,69.20,WWW.GWR.COM
OXFORDSHIRE CC,"CHILDRENS, YOUNG PEOPLE AND FAMILIES",PAUSE PROGRAMME,OTHER TRANSPORT ARRANGEMENTS,19/05/2022,8192117386,6.00,OXFORDBUS.CO.UK
OXFORDSHIRE CC,"CHILDRENS, YOUNG PEOPLE AND FAMILIES",PAUSE PROGRAMME,CATERING PROVISIONS,19/05/2022,8192117394,25.20,ASDA STORE 4442
OXFORDSHIRE CC,"CHILDRENS, YOUNG PEOPLE AND FAMILIES",HOUSE PROJECT,OTHER TRANSPORT ARRANGEMENTS,19/05/2022,8192117400,9.00,WESTGATE OXFORD CAR PA
OXFORDSHIRE CC,"CHILDRENS, YOUNG PEOPLE AND FAMILIES",MANAGEMENT RECHARGES,PAYMENTS TO VOLUNTARY BODIES,19/05/2022,8192117678,149.00,CVAA UK LTD
OXFORDSHIRE CC,ENVIRONMENT AND ECONOMY,WITNEY LIBRARY,OTHER SALES,19/05/2022,8192117674,30.00,WATERSTONES
OXFORDSHIRE CC,"CHILDRENS, YOUNG PEOPLE AND FAMILIES",THAME E&A HOME,MATERIALS,19/05/2022,8192117682,40.00,OXFORD UNITED FOOT
OXFORDSHIRE CC,"CHILDRENS, YOUNG PEOPLE AND FAMILIES",THAME E&A HOME,MATERIALS,19/05/2022,8192117686,6.00,OXFORD UNITED FOOT
OXFORDSHIRE CC,SOCIAL AND COMMUNITY SERVICES,CSS - OXFORD,CATERING PROVISIONS,19/05/2022,8192117708,20.80,ALDI STORES 775-142
OXFORDSHIRE CC,"CHILDRENS, YOUNG PEOPLE AND FAMILIES",THAME E&A HOME,MATERIALS,19/05/2022,8192117692,70.20,SPORTSDIRECT 218
OXFORDSHIRE CC,"CHILDRENS, YOUNG PEOPLE AND FAMILIES",CNTL EARLY HELP-RHIL,MATERIALS,19/05/2022,8192118800,340.00,AO RETAIL LIMITED
OXFORDSHIRE CC,ENTERPRISEVC,,CAR LEASING - PRIVATE RENTALS,19/05/2022,8192119046,41.75,ENTERPRISE RENT-A-CAR
OXFORDSHIRE CC,ENTERPRISEVC,,CAR LEASING - PRIVATE RENTALS,19/05/2022,8192119032,73.46,ENTERPRISE RENT-A-CAR
OXFORDSHIRE CC,ENTERPRISEVC,,CAR LEASING - PRIVATE RENTALS,19/05/2022,8192119038,26.75,ENTERPRISE RENT-A-CAR
OXFORDSHIRE CC,ENTERPRISEVC,,CAR LEASING - PRIVATE RENTALS,19/05/2022,8192119042,47.15,ENTERPRISE RENT-A-CAR
OXFORDSHIRE CC,ENTERPRISEVC,,CAR LEASING - PRIVATE RENTALS,19/05/2022,8192119054,75.64,ENTERPRISE RENT-A-CAR
OXFORDSHIRE CC,ENTERPRISEVC,,CAR LEASING - PRIVATE RENTALS,19/05/2022,8192119060,46.93,ENTERPRISE RENT-A-CAR
OXFORDSHIRE CC,ENTERPRISEVC,,CAR LEASING - PRIVATE RENTALS,19/05/2022,8192119066,31.55,ENTERPRISE RENT-A-CAR
OXFORDSHIRE CC,"CHILDRENS, YOUNG PEOPLE AND FAMILIES",NTH EARLY HELP-WITNY,CATERING PROVISIONS,19/05/2022,8192119076,2.70,WAITROSE 142
OXFORDSHIRE CC,"CHILDRENS, YOUNG PEOPLE AND FAMILIES","	FOSTER CARE RECRUIT","PUBLICITY, PROMOTIONS AND ADVERTISEMENT",19/05/2022,8192118238,180.00,FYNE ASSOCIATED
OXFORDSHIRE CC,"CHILDRENS, YOUNG PEOPLE AND FAMILIES","	FOSTER CARE RECRUIT",OTHER SERVICES,19/05/2022,8192118244,900.00,ROUND & ABOUT PUBLICAT
OXFORDSHIRE CC,"CHILDRENS, YOUNG PEOPLE AND FAMILIES","	LOOKED AFTER CITY 2",OTHER TRANSPORT ARRANGEMENTS,19/05/2022,8192118212,5.30,STAGECOACH BUS
OXFORDSHIRE CC,"CHILDRENS, YOUNG PEOPLE AND FAMILIES","	LOOKED AFTER CITY 2",OTHER TRANSPORT ARRANGEMENTS,19/05/2022,8192118218,9.00,OXFORDBUS.CO.UK
OXFORDSHIRE CC,"CHILDRENS, YOUNG PEOPLE AND FAMILIES","	PARENT PARTNERSHIP",MATERIALS,19/05/2022,8192118588,9.99,AMZNMKTPLACE
OXFORDSHIRE CC,"CHILDRENS, YOUNG PEOPLE AND FAMILIES",40 THE MOORS,CATERING,19/05/2022,8192118610,13.98,KFC
OXFORDSHIRE CC,"CHILDRENS, YOUNG PEOPLE AND FAMILIES",40 THE MOORS,CATERING PROVISIONS,19/05/2022,8192118616,56.95,ASDA GEORGE COM LEEDS
OXFORDSHIRE CC,"CHILDRENS, YOUNG PEOPLE AND FAMILIES",40 THE MOORS,DISABILITY AIDS AND EQUIPMENT,19/05/2022,8192118620,184.10,SPECSVRS
OXFORDSHIRE CC,"CHILDRENS, YOUNG PEOPLE AND FAMILIES",40 THE MOORS,TELEPHONE - EQUIPMENT,19/05/2022,8192118626,30.00,MY PHONE
OXFORDSHIRE CC,"CHILDRENS, YOUNG PEOPLE AND FAMILIES","	LEAVING CARE SOUTH",CLOTHING AND UNIFORMS,19/05/2022,8192118846,89.97,BLUE INC
OXFORDSHIRE CC,"CHILDRENS, YOUNG PEOPLE AND FAMILIES","	LEAVING CARE SOUTH",MATERIALS,19/05/2022,8192118832,13.50,AMZNMKTPLACE
OXFORDSHIRE CC,"CHILDRENS, YOUNG PEOPLE AND FAMILIES",THAME E&A HOME,ENTERTAINMENT EXPENSES,19/05/2022,8192118892,7.50,SQ  WYCOMBE WANDERERS
OXFORDSHIRE CC,"CHILDRENS, YOUNG PEOPLE AND FAMILIES","	LEAVING CARE SOUTH",MATERIALS,19/05/2022,8192118840,34.99,AMZNMKTPLACE
OXFORDSHIRE CC,"CHILDRENS, YOUNG PEOPLE AND FAMILIES","	LEAVING CARE SOUTH",OTHER EXPENSES,19/05/2022,8192118852,1.90,MARTIN MCCOLL
OXFORDSHIRE CC,"CHILDRENS, YOUNG PEOPLE AND FAMILIES",THAME E&A HOME,ENTERTAINMENT EXPENSES,19/05/2022,8192118896,21.00,SQ  WYCOMBE WANDERERS
OXFORDSHIRE CC,"CHILDRENS, YOUNG PEOPLE AND FAMILIES",DIDCOT MOVE-ON HOME,CATERING PROVISIONS,19/05/2022,8192119108,6.00,MARKS&SPENCER PLC SACA
OXFORDSHIRE CC,"CHILDRENS, YOUNG PEOPLE AND FAMILIES",DIDCOT MOVE-ON HOME,CATERING PROVISIONS,19/05/2022,8192119114,23.62,TESCO STORE 2413
OXFORDSHIRE CC,ENVIRONMENT AND ECONOMY,HARD FM,HARDWARE AND CROCKERY,19/05/2022,8192116786,42.00,B & Q 1062
OXFORDSHIRE CC,"CHILDRENS, YOUNG PEOPLE AND FAMILIES",CHILDREN IN CARE NON-STAFFING - SOUTH,OTHER EXPENSES,19/05/2022,8192116696,189.50,ARGOS LTD
OXFORDSHIRE CC,"CHILDRENS, YOUNG PEOPLE AND FAMILIES",CHILDREN IN CARE NON-STAFFING - SOUTH,OTHER TRANSPORT ARRANGEMENTS,19/05/2022,8192116700,27.00,SUMUP   TAXI SERVICE
OXFORDSHIRE CC,SOCIAL AND COMMUNITY SERVICES,CICC,CATERING,19/05/2022,8192116992,23.93,KFC
OXFORDSHIRE CC,SOCIAL AND COMMUNITY SERVICES,CSS WALLINGFORD,CATERING PROVISIONS,19/05/2022,8192117024,14.60,WAITROSE 675
OXFORDSHIRE CC,"CHILDRENS, YOUNG PEOPLE AND FAMILIES",DIDCOT MOVE-ON HOME,CATERING PROVISIONS,19/05/2022,8192117572,4.27,SAINSBURYS S/MKTS
OXFORDSHIRE CC,"CHILDRENS, YOUNG PEOPLE AND FAMILIES",40 THE MOORS,MATERIALS,19/05/2022,8192117628,6.89,AMZNMKTPLACE
OXFORDSHIRE CC,"CHILDRENS, YOUNG PEOPLE AND FAMILIES",40 THE MOORS,MATERIALS,19/05/2022,8192117636,16.49,AMZNMKTPLACE
OXFORDSHIRE CC,CORPORATE CORE,OPERATIONS,MATERIALS,19/05/2022,8192118120,6.41,AMZNMKTPLACE
OXFORDSHIRE CC,CORPORATE CORE,OPERATIONS,MATERIALS,19/05/2022,8192118112,4.19,AMZNMKTPLACE AMAZON.CO
OXFORDSHIRE CC,CORPORATE CORE,OPERATIONS,EQUIPMENT,19/05/2022,8192118126,56.99,AMZNMKTPLACE
OXFORDSHIRE CC,ENVIRONMENT AND ECONOMY,MAINTENANCE STAFF,MATERIALS,19/05/2022,8192118152,68.00,AMAZON.CO.UK 255BD6G64
OXFORDSHIRE CC,SOCIAL AND COMMUNITY SERVICES,CSS WANTAGE,DAY ACTIVITIES,19/05/2022,8192116662,10.00,ASDA STORES 5123
OXFORDSHIRE CC,COMMUNITY SAFETY,ON ST PARK OXFD SPA,MATERIALS,19/05/2022,8192116884,-5.95,AMZ AMAZON.CO.UK
OXFORDSHIRE CC,SOCIAL AND COMMUNITY SERVICES,CSS BICESTER,MATERIALS,19/05/2022,8192116962,14.99,AMZNMKTPLACE AMAZON.CO
OXFORDSHIRE CC,"CHILDRENS, YOUNG PEOPLE AND FAMILIES",CHILDREN IN CARE NON-STAFFING - CENTRL 1,MATERIALS,19/05/2022,8192116908,79.98,TESCO ONLINE
OXFORDSHIRE CC,CORPORATE CORE,BUSINESS INTELLECTUAL PROPERTY CENTRE,HARDWARE AND CROCKERY,19/05/2022,8192116928,60.97,WF  WAYFAIR2681939188
OXFORDSHIRE CC,"CHILDRENS, YOUNG PEOPLE AND FAMILIES",KINGFISHER,HIRE OF ACCOMMODATION AND FACILITIES,19/05/2022,8192117180,"5,344.00",PAYPAL  VRBO
OXFORDSHIRE CC,"CHILDRENS, YOUNG PEOPLE AND FAMILIES",KINGFISHER,HIRE OF ACCOMMODATION AND FACILITIES,19/05/2022,8192117184,617.53,TRAVELODGE
OXFORDSHIRE CC,"CHILDRENS, YOUNG PEOPLE AND FAMILIES",FAMILY SOLUTIONS PLUS NON-STAFF � SOUTH,TELEPHONE - EQUIPMENT,19/05/2022,8192117190,34.99,AMZN MKTP UK 250B23P84
OXFORDSHIRE CC,"CHILDRENS, YOUNG PEOPLE AND FAMILIES",NTS UASC AGENCY,CATERING,19/05/2022,8192117522,72.48,JUST EAT
OXFORDSHIRE CC,"CHILDRENS, YOUNG PEOPLE AND FAMILIES",PAUSE PROGRAMME,CATERING,19/05/2022,8192117530,14.55,COSTA COFFEE 43042160
OXFORDSHIRE CC,"CHILDRENS, YOUNG PEOPLE AND FAMILIES","	LAC PUPIL PREMIUM",PURCHASE OF IT EQUIPMENT,19/05/2022,8192117556,10.99,AMZNMKTPLACE AMAZON.CO
OXFORDSHIRE CC,CORPORATE CORE,CHERWELL & WEST,FURNITURE,19/05/2022,8192117534,499.96,FLEXISPOT LIMITED
OXFORDSHIRE CC,"CHILDRENS, YOUNG PEOPLE AND FAMILIES",FAMILY SOLUTIONS PLUS NON-STAFF - NORTH,CATERING,19/05/2022,8192117544,26.89,UBER    EATS
OXFORDSHIRE CC,"CHILDRENS, YOUNG PEOPLE AND FAMILIES","	LAC PUPIL PREMIUM",PURCHASE OF IT EQUIPMENT,19/05/2022,8192117552,17.90,AMZNMKTPLACE AMAZON.CO
OXFORDSHIRE CC,"CHILDRENS, YOUNG PEOPLE AND FAMILIES",WITNEY,CATERING PROVISIONS,19/05/2022,8192117566,16.22,SAINSBURYS S/MKTS
OXFORDSHIRE CC,ENVIRONMENT AND ECONOMY,DIDCOT LIBRARY,"SUPPLIES, STATIONERY AND MATERIALS",19/05/2022,8192117782,8.00,WILKO RETAIL LIMITED
OXFORDSHIRE CC,SOCIAL AND COMMUNITY SERVICES,SCHOOLS FM CATERING AREA 1,CATERING PROVISIONS,19/05/2022,8192117774,18.00,SAINSBURYS S/MKTS
OXFORDSHIRE CC,ENVIRONMENT AND ECONOMY,DIDCOT LIBRARY,"BOOKS, DVDS AND CDS",19/05/2022,8192117788,26.57,WATERSTONES
OXFORDSHIRE CC,"CHILDRENS, YOUNG PEOPLE AND FAMILIES","	LEAVING CARE CITY 2",OTHER TRANSPORT ARRANGEMENTS,19/05/2022,8192117792,4.30,STGCOACH/CTYLINK
OXFORDSHIRE CC,"CHILDRENS, YOUNG PEOPLE AND FAMILIES","	LEAVING CARE CITY 2",OTHER TRANSPORT ARRANGEMENTS,19/05/2022,8192117798,6.40,STGCOACH/CTYLINK
OXFORDSHIRE CC,CORPORATE CORE,"MARKETING, COMMUNICATIONS & ENGAGEMENT","PUBLICITY, PROMOTIONS AND ADVERTISEMENT",19/05/2022,8192118034,500.00,FACEBK AM58FE3AZ2
OXFORDSHIRE CC,CORPORATE CORE,"MARKETING, COMMUNICATIONS & ENGAGEMENT",PHOTOCOPYING,19/05/2022,8192118026,4.65,CANVA  03424-7632109
OXFORDSHIRE CC,CORPORATE CORE,"MARKETING, COMMUNICATIONS & ENGAGEMENT","PUBLICITY, PROMOTIONS AND ADVERTISEMENT",19/05/2022,8192118036,3.53,SNAP INC SNAP SNAP ADS
OXFORDSHIRE CC,SOCIAL AND COMMUNITY SERVICES,CSS WITNEY,CATERING PROVISIONS,19/05/2022,8192118474,9.23,POUNDSTRETCHER 700
OXFORDSHIRE CC,"CHILDRENS, YOUNG PEOPLE AND FAMILIES",THAME E&A HOME,MATERIALS,19/05/2022,8192116666,-24.99,AMZNMKTPLACE AMAZON.CO
OXFORDSHIRE CC,ENVIRONMENT AND ECONOMY,LIB ICT SUPPRT&MAINT,MATERIALS,19/05/2022,8192117500,180.00,AMZNMKTPLACE AMAZON.CO
OXFORDSHIRE CC,CORPORATE CORE,LIBRARY COLLECTIONS,"BOOKS, DVDS AND CDS",19/05/2022,8192117482,258.20,OVERDRIVE DIST
OXFORDSHIRE CC,"CHILDRENS, YOUNG PEOPLE AND FAMILIES",FAMILY SOLUTIONS PLUS NON-STAFF - NORTH,HIRE OF ACCOMMODATION AND FACILITIES,19/05/2022,8192117736,628.75,TRAVELODGE
OXFORDSHIRE CC,"CHILDRENS, YOUNG PEOPLE AND FAMILIES",UASC 16&17,TRANSPORT TO SCHOOL,19/05/2022,8192117718,9.00,OXFORD BUS COMPANY
OXFORDSHIRE CC,"CHILDRENS, YOUNG PEOPLE AND FAMILIES",UASC 16&17,OTHER TRANSPORT ARRANGEMENTS,19/05/2022,8192117722,1.00,OXFORD BUS COMPANY
OXFORDSHIRE CC,"CHILDRENS, YOUNG PEOPLE AND FAMILIES",UASC 16&17,"SUPPLIES, STATIONERY AND MATERIALS",19/05/2022,8192117728,50.00,PARENTPAY E-COM R
OXFORDSHIRE CC,"CHILDRENS, YOUNG PEOPLE AND FAMILIES",FAMILY SOLUTIONS PLUS NON-STAFF - NORTH,HIRE OF ACCOMMODATION AND FACILITIES,19/05/2022,8192117742,16.50,TRAVELODGE
OXFORDSHIRE CC,"CHILDRENS, YOUNG PEOPLE AND FAMILIES",FAMILY SOLUTIONS PLUS NON-STAFF - NORTH,HIRE OF ACCOMMODATION AND FACILITIES,19/05/2022,8192117742,247.13,TRAVELODGE
OXFORDSHIRE CC,"CHILDRENS, YOUNG PEOPLE AND FAMILIES",FAMILY SOLUTIONS PLUS NON-STAFF � SOUTH,HIRE OF ACCOMMODATION AND FACILITIES,19/05/2022,8192117944,480.00,MERCURE THAME LAMBERT
OXFORDSHIRE CC,"CHILDRENS, YOUNG PEOPLE AND FAMILIES",DIDCOT MOVE-ON HOME,CATERING PROVISIONS,19/05/2022,8192117986,9.20,SAINSBURYS S/MKTS
OXFORDSHIRE CC,"CHILDRENS, YOUNG PEOPLE AND FAMILIES","	LEAVING CARE CITY 2",OTHER TRANSPORT ARRANGEMENTS,19/05/2022,8192117936,2.70,SUMMERTOWN CAR PARK
OXFORDSHIRE CC,"CHILDRENS, YOUNG PEOPLE AND FAMILIES",PAUSE PROGRAMME,CATERING,19/05/2022,8192117954,6.30,COSTA COFFEE 43042160
OXFORDSHIRE CC,"CHILDRENS, YOUNG PEOPLE AND FAMILIES",PAUSE PROGRAMME,OTHER EXPENSES,19/05/2022,8192117960,8.25,DIDCOT WAVE LEISURE PO
OXFORDSHIRE CC,"CHILDRENS, YOUNG PEOPLE AND FAMILIES",PAUSE PROGRAMME,CATERING PROVISIONS,19/05/2022,8192117964,.80,TESCO STORES
OXFORDSHIRE CC,ENVIRONMENT AND ECONOMY,"	ABBEY HOUSE",CATERING PROVISIONS,19/05/2022,8192117970,1.35,WAITROSE 211
OXFORDSHIRE CC,SOCIAL AND COMMUNITY SERVICES,CSS WITNEY,HARDWARE AND CROCKERY,19/05/2022,8192117976,54.96,CHARLBURY GARDEN CENTR
OXFORDSHIRE CC,SOCIAL AND COMMUNITY SERVICES,CHILDREN IN CARE NON-STAFFING - NORTH,SUBSCRIPTIONS,19/05/2022,8192118350,4.20,FUSION LIFESTYLE
OXFORDSHIRE CC,CORPORATE CORE,"	CORPORATE FINANCE","SUPPLIES, STATIONERY AND MATERIALS",19/05/2022,8192118358,654.00,REDACTIVE
OXFORDSHIRE CC,CORPORATE CORE,"	CORPORATE FINANCE","SUPPLIES, STATIONERY AND MATERIALS",19/05/2022,8192118364,-714.00,REDACTIVE
OXFORDSHIRE CC,ENVIRONMENT AND ECONOMY,"	MOUNT HOUSE",POSTAGE AND DELIVERY,19/05/2022,8192118400,2.50,ROYAL MAIL CHARGES
OXFORDSHIRE CC,CORPORATE CORE,THAME LIBRARY,MATERIALS,19/05/2022,8192118970,14.77,AMZNMKTPLACE
OXFORDSHIRE CC,CORPORATE CORE,THAME LIBRARY,MATERIALS,19/05/2022,8192118976,14.19,AMZNMKTPLACE
OXFORDSHIRE CC,ENTERPRISEVC,,CAR LEASING - PRIVATE RENTALS,19/05/2022,8192119022,73.46,ENTERPRISE RENT-A-CAR
OXFORDSHIRE CC,ENTERPRISEVC,,CAR LEASING - PRIVATE RENTALS,19/05/2022,8192119016,196.90,ENTERPRISE RENT-A-CAR
OXFORDSHIRE CC,ENTERPRISEVC,,CAR LEASING - PRIVATE RENTALS,19/05/2022,8192119028,51.95,ENTERPRISE RENT-A-CAR
OXFORDSHIRE CC,"CHILDRENS, YOUNG PEOPLE AND FAMILIES",NTS UASC AGENCY,CATERING PROVISIONS,19/05/2022,8192119226,1.70,ASDA STORE 4442
OXFORDSHIRE CC,"CHILDRENS, YOUNG PEOPLE AND FAMILIES",UASC 16&17,CATERING PROVISIONS,19/05/2022,8192119202,6.81,SAINSBURYS S/MKTS
OXFORDSHIRE CC,"CHILDRENS, YOUNG PEOPLE AND FAMILIES",NTS UASC AGENCY,CATERING PROVISIONS,19/05/2022,8192119230,12.74,TESCO STORE 2994
OXFORDSHIRE CC,"CHILDRENS, YOUNG PEOPLE AND FAMILIES",MANAGEMENT RECHARGES,HIRED AND CONTRACTED SERVICES,18/05/2022,8186770372,150.00,SLEEMANS
OXFORDSHIRE CC,"CHILDRENS, YOUNG PEOPLE AND FAMILIES","	RIVERSIDE CENTRE",VEHICLE FUEL,18/05/2022,8186771440,45.00,SANDBACH NORTH MWSA
OXFORDSHIRE CC,CORPORATE CORE,"	LEGAL SERVICES",PURCHASE OF IT EQUIPMENT,18/05/2022,8186771432,29.68,AMZNMKTPLACE AMAZON.CO
OXFORDSHIRE CC,SOCIAL AND COMMUNITY SERVICES,SCHOOLS FM CATERING AREA 2,CATERING,18/05/2022,8186770410,25.16,BOOKER LIMITED OXFORD
OXFORDSHIRE CC,"CHILDRENS, YOUNG PEOPLE AND FAMILIES",THAME E&A HOME,MATERIALS,18/05/2022,8186770428,"1,500.00",IZ  THAME CYCLES L
OXFORDSHIRE CC,SOCIAL AND COMMUNITY SERVICES,CSS - BANBURY,CATERING PROVISIONS,18/05/2022,8186770438,70.25,SAINSBURYS.CO.UK
OXFORDSHIRE CC,"CHILDRENS, YOUNG PEOPLE AND FAMILIES",DISABILITIES TEAM S,HIRE OF ACCOMMODATION AND FACILITIES,18/05/2022,8186770444,71.50,WITNEY TOWN COUNCIL
OXFORDSHIRE CC,ENVIRONMENT AND ECONOMY,MUSEUM CAFE,EQUIPMENT,18/05/2022,8186771480,40.45,AMZNMKTPLACE
OXFORDSHIRE CC,ENVIRONMENT AND ECONOMY,LEARNING & ACCESS,"SUPPLIES, STATIONERY AND MATERIALS",18/05/2022,8186771472,12.77,GLS EDUCATIONAL SU
OXFORDSHIRE CC,CORPORATE CORE,"	CORPORATE FINANCE","SUPPLIES, STATIONERY AND MATERIALS",18/05/2022,8186771516,714.00,REDACTIVE
OXFORDSHIRE CC,ENVIRONMENT AND ECONOMY,MUSEUM CAFE,EQUIPMENT,18/05/2022,8186771484,20.00,AMZNMKTPLACE
OXFORDSHIRE CC,"CHILDRENS, YOUNG PEOPLE AND FAMILIES","	OCCG GRANT",CATERING PROVISIONS,18/05/2022,8186771496,393.00,WORTON FARMS
OXFORDSHIRE CC,"CHILDRENS, YOUNG PEOPLE AND FAMILIES","	OCCG GRANT",STATIONERY,18/05/2022,8186771500,12.74,AMZNMKTPLACE AMAZON.CO
OXFORDSHIRE CC,ENVIRONMENT AND ECONOMY,WASTE REDUCTION GEN,"PUBLICITY, PROMOTIONS AND ADVERTISEMENT",18/05/2022,8186770502,73.25,FACEBK PV3YUEX7M2
OXFORDSHIRE CC,SOCIAL AND COMMUNITY SERVICES,CSS - OXFORD,CATERING PROVISIONS,18/05/2022,8186770512,33.37,ALDI STORES 775-142
OXFORDSHIRE CC,SOCIAL AND COMMUNITY SERVICES,CSS - OXFORD,MATERIALS,18/05/2022,8186770518,21.32,ALDI STORES 775-142
OXFORDSHIRE CC,SOCIAL AND COMMUNITY SERVICES,CSS WANTAGE,CATERING PROVISIONS,18/05/2022,8186771640,12.72,SAINSBURYS S/MKTS
OXFORDSHIRE CC,"CHILDRENS, YOUNG PEOPLE AND FAMILIES","	AAC EQUIPMENT",PURCHASE OF IT EQUIPMENT,18/05/2022,8186771644,11.99,AMZNMKTPLACE
OXFORDSHIRE CC,SOCIAL AND COMMUNITY SERVICES,CSS - ABINGDON,CATERING PROVISIONS,18/05/2022,8186770158,23.68,TESCO STORES 2008
OXFORDSHIRE CC,"CHILDRENS, YOUNG PEOPLE AND FAMILIES",TRANSPORT COSTS,TRANSPORT TO SCHOOL,18/05/2022,8186770142,79.00,WWW.THEKEY.CO.UK
OXFORDSHIRE CC,"CHILDRENS, YOUNG PEOPLE AND FAMILIES",TRANSPORT COSTS,TRANSPORT TO SCHOOL,18/05/2022,8186770136,79.00,WWW.THEKEY.CO.UK
OXFORDSHIRE CC,"CHILDRENS, YOUNG PEOPLE AND FAMILIES",CSS WANTAGE,HARDWARE AND CROCKERY,18/05/2022,8186770186,24.99,SCREWFIX DIR LTD
OXFORDSHIRE CC,"CHILDRENS, YOUNG PEOPLE AND FAMILIES",CSS WANTAGE,LAUNDRY AND DRY CLEANING,18/05/2022,8186770192,15.00,SUMUP   ADVANCED CAR W
OXFORDSHIRE CC,"CHILDRENS, YOUNG PEOPLE AND FAMILIES",KINGFISHER,MATERIALS,18/05/2022,8186770198,84.55,AMAZON.CO.UK 253VX30Q4
OXFORDSHIRE CC,CORPORATE CORE,"MARKETING, COMMUNICATIONS & ENGAGEMENT","PUBLICITY, PROMOTIONS AND ADVERTISEMENT",18/05/2022,8186771192,3.98,SNAP INC SNAP SNAP ADS
OXFORDSHIRE CC,"CHILDRENS, YOUNG PEOPLE AND FAMILIES","	LOOKED AFTER CITY 1",OTHER EXPENSES,18/05/2022,8186770228,10.00,CO-OPERATIVE FOOD
OXFORDSHIRE CC,SOCIAL AND COMMUNITY SERVICES,CSS - ABINGDON,MATERIALS,18/05/2022,8186770234,16.50,AMZNMKTPLACE AMAZON.CO
OXFORDSHIRE CC,ENVIRONMENT AND ECONOMY,HARD FM,HARDWARE AND CROCKERY,18/05/2022,8186770242,13.17,B & Q 1062
OXFORDSHIRE CC,ENVIRONMENT AND ECONOMY,HARD FM,HARDWARE AND CROCKERY,18/05/2022,8186770246,66.20,WICKES OXFORD
OXFORDSHIRE CC,ENVIRONMENT AND ECONOMY,HARD FM,HARDWARE AND CROCKERY,18/05/2022,8186770250,112.54,JOHN NICHOLLS KIDLINGT
OXFORDSHIRE CC,ENVIRONMENT AND ECONOMY,HARD FM,HARDWARE AND CROCKERY,18/05/2022,8186770256,79.06,SCREWFIX DIR. LTD
OXFORDSHIRE CC,CORPORATE CORE,OPERATIONS,MATERIALS,18/05/2022,8186771254,16.73,AMZNMKTPLACE AMAZON.CO
OXFORDSHIRE CC,CORPORATE CORE,OPERATIONS,MATERIALS,18/05/2022,8186771242,4.71,AMZNMKTPLACE
OXFORDSHIRE CC,CORPORATE CORE,OPERATIONS,MATERIALS,18/05/2022,8186771244,6.49,AMZNMKTPLACE AMAZON.CO
OXFORDSHIRE CC,CORPORATE CORE,OPERATIONS,MATERIALS,18/05/2022,8186771250,6.41,AMZNMKTPLACE AMAZON.CO
OXFORDSHIRE CC,CORPORATE CORE,OPERATIONS,EQUIPMENT,18/05/2022,8186771258,19.99,AMZNMKTPLACE
OXFORDSHIRE CC,CORPORATE CORE,OPERATIONS,MATERIALS,18/05/2022,8186771264,5.00,AMZNMKTPLACE
OXFORDSHIRE CC,ENVIRONMENT AND ECONOMY,"	WASTE MNGMNT GEN",MATERIALS,18/05/2022,8186771270,9.99,AMAZON.CO.UK 253AL6EN4
OXFORDSHIRE CC,"CHILDRENS, YOUNG PEOPLE AND FAMILIES","	LEAVING CARE CITY 1",MATERIALS,18/05/2022,8186770292,15.00,VEOLIA ES UK LTD
OXFORDSHIRE CC,"CHILDRENS, YOUNG PEOPLE AND FAMILIES","	DISABILITIES TEAM-C",PAYMENTS TO TRANSPORT OPERATORS,18/05/2022,8186770278,180.96,TRAINLINE.COM
OXFORDSHIRE CC,"CHILDRENS, YOUNG PEOPLE AND FAMILIES","	DISABILITIES TEAM-C",MATERIALS,18/05/2022,8186770284,-11.65,AMZNMKTPLACE AMAZON.CO
OXFORDSHIRE CC,"CHILDRENS, YOUNG PEOPLE AND FAMILIES","	LEAVING CARE CITY 1",CATERING,18/05/2022,8186770300,3.05,FOUR CANDLES
OXFORDSHIRE CC,SOCIAL AND COMMUNITY SERVICES,CSS - OXFORD,ENTERTAINMENT EXPENSES,18/05/2022,8186771294,16.05,WWW.BETTER.ORG.UK
OXFORDSHIRE CC,"CHILDRENS, YOUNG PEOPLE AND FAMILIES","	LOOKED AFTER CITY 2",PAYMENTS TO TRANSPORT OPERATORS,18/05/2022,8186771352,32.85,TRAINLINE
OXFORDSHIRE CC,"CHILDRENS, YOUNG PEOPLE AND FAMILIES","	LOOKED AFTER CITY 2",PAYMENTS TO TRANSPORT OPERATORS,18/05/2022,8186771358,7.54,THETRAINLINE.COM
OXFORDSHIRE CC,"CHILDRENS, YOUNG PEOPLE AND FAMILIES","	LOOKED AFTER CITY 2",OTHER TRANSPORT ARRANGEMENTS,18/05/2022,8186771362,9.00,OXFORDBUS.CO.UK
OXFORDSHIRE CC,CORPORATE CORE,,STATIONERY,18/05/2022,8186772062,28.80,LYRECO UK LTD
OXFORDSHIRE CC,CORPORATE CORE,,STATIONERY,18/05/2022,8186772052,18.00,LYRECO UK LTD
OXFORDSHIRE CC,CORPORATE CORE,,STATIONERY,18/05/2022,8186772056,33.60,LYRECO UK LTD
OXFORDSHIRE CC,ENTERPRISEVC,,CAR LEASING - PRIVATE RENTALS,18/05/2022,8186772066,565.75,ENTERPRISE RENT-A-CAR
OXFORDSHIRE CC,CORPORATE CORE,CATERING MANAGEMENT SOFT FM,CATERING,18/05/2022,8186772072,122.34,BRAKES (STORED CARDS)
OXFORDSHIRE CC,CORPORATE CORE,CATERING MANAGEMENT SOFT FM,CATERING,18/05/2022,8186772078,5.94,BRAKES (STORED CARDS)
OXFORDSHIRE CC,"CHILDRENS, YOUNG PEOPLE AND FAMILIES",FAMILY SOLUTIONS PLUS NON-STAFF � SOUTH,PAYMENTS TO TRANSPORT OPERATORS,18/05/2022,8186770996,21.39,TRAINLINE.COM
OXFORDSHIRE CC,"CHILDRENS, YOUNG PEOPLE AND FAMILIES",PAUSE PROGRAMME,MATERIALS,18/05/2022,8186771004,5.50,POUNDLAND LTD
OXFORDSHIRE CC,CORPORATE CORE,CATERING MANAGEMENT SOFT FM,MATERIALS,18/05/2022,8186772150,66.04,AMZNMKTPLACE
OXFORDSHIRE CC,CORPORATE CORE,CATERING MANAGEMENT SOFT FM,MATERIALS,18/05/2022,8186772152,15.99,AMZNMKTPLACE
OXFORDSHIRE CC,ENVIRONMENT AND ECONOMY,"	KNIGHTS COURT",CATERING PROVISIONS,18/05/2022,8186771100,1.50,CO-OPERATIVE FOOD
OXFORDSHIRE CC,"CHILDRENS, YOUNG PEOPLE AND FAMILIES",FAMILY SOLUTIONS PLUS NON-STAFF - NORTH,PAYMENTS TO TRANSPORT OPERATORS,18/05/2022,8186771044,32.39,TRAINLINE.COM
OXFORDSHIRE CC,"CHILDRENS, YOUNG PEOPLE AND FAMILIES",FAMILY SOLUTIONS PLUS NON-STAFF - NORTH,PAYMENTS TO TRANSPORT OPERATORS,18/05/2022,8186771050,64.19,TRAINLINE.COM
OXFORDSHIRE CC,"CHILDRENS, YOUNG PEOPLE AND FAMILIES",FAMILY SOLUTIONS PLUS NON-STAFF - NORTH,OTHER TRANSPORT ARRANGEMENTS,18/05/2022,8186771054,72.00,SQ  1ST CALL SWINDON T
OXFORDSHIRE CC,"CHILDRENS, YOUNG PEOPLE AND FAMILIES",FAMILY SOLUTIONS PLUS NON-STAFF - NORTH,PAYMENT TO GOVERNMENT DEPARTMENTS,18/05/2022,8186771058,100.00,CHERWELL DISTRICT COUN
OXFORDSHIRE CC,"CHILDRENS, YOUNG PEOPLE AND FAMILIES",DEPUTY DIRECTOR &MAN,HIRE OF ACCOMMODATION AND FACILITIES,18/05/2022,8186771064,237.60,THE MIDLAND ECOM ROOMS
OXFORDSHIRE CC,CORPORATE CORE,REGISTRAR,MATERIALS,18/05/2022,8186771086,79.90,AMZNMKTPLACE AMAZON.CO
OXFORDSHIRE CC,SOCIAL AND COMMUNITY SERVICES,SCHOOLS FM CATERING AREA 2,CATERING PROVISIONS,18/05/2022,8186771092,17.20,SAINSBURY'S S/MKT
OXFORDSHIRE CC,"CHILDRENS, YOUNG PEOPLE AND FAMILIES","	LEAVING CARE NORTH",CATERING,18/05/2022,8186772158,3.10,COSTA COFFEE ABINGDON
OXFORDSHIRE CC,"CHILDRENS, YOUNG PEOPLE AND FAMILIES",THAME E&A HOME,MATERIALS,18/05/2022,8186770092,24.99,AMZNMKTPLACE AMAZON.CO
OXFORDSHIRE CC,"CHILDRENS, YOUNG PEOPLE AND FAMILIES",THAME E&A HOME,MATERIALS,18/05/2022,8186770100,7.49,AMZNMKTPLACE
OXFORDSHIRE CC,"CHILDRENS, YOUNG PEOPLE AND FAMILIES",CHILDREN IN CARE NON-STAFFING - SOUTH,HIRE OF ACCOMMODATION AND FACILITIES,18/05/2022,8186770130,72.00,PREMIER INN
OXFORDSHIRE CC,"CHILDRENS, YOUNG PEOPLE AND FAMILIES",FAMILY SOLUTIONS PLUS NON-STAFF � SOUTH,HIRE OF ACCOMMODATION AND FACILITIES,18/05/2022,8186771126,480.00,MERCURE THAME LAMBERT
OXFORDSHIRE CC,"CHILDRENS, YOUNG PEOPLE AND FAMILIES",FAMILY SOLUTIONS PLUS NON-STAFF � SOUTH,PAYMENTS TO TRANSPORT OPERATORS,18/05/2022,8186771130,-132.71,WWW.TRAVELUP.CO.UK
OXFORDSHIRE CC,"CHILDRENS, YOUNG PEOPLE AND FAMILIES",PAUSE PROGRAMME,TELEPHONE - EQUIPMENT,18/05/2022,8186771136,10.00,GIFFGAFF
OXFORDSHIRE CC,"CHILDRENS, YOUNG PEOPLE AND FAMILIES",UASC 16&17,RESIDENTIAL ACTIVITIES,18/05/2022,8186770792,5.00,POUNDLAND LTD
OXFORDSHIRE CC,"CHILDRENS, YOUNG PEOPLE AND FAMILIES",UASC 16&17,OTHER TRANSPORT ARRANGEMENTS,18/05/2022,8186770796,4.50,OXFORD BUS COMPANY
OXFORDSHIRE CC,"CHILDRENS, YOUNG PEOPLE AND FAMILIES",PAUSE PROGRAMME,CATERING,18/05/2022,8186770798,9.80,POSH FISH
OXFORDSHIRE CC,"CHILDRENS, YOUNG PEOPLE AND FAMILIES",PAUSE PROGRAMME,CATERING,18/05/2022,8186770804,5.40,ASDA LIVING CAFE
OXFORDSHIRE CC,"CHILDRENS, YOUNG PEOPLE AND FAMILIES",EYNSHAM,CATERING PROVISIONS,18/05/2022,8186771874,72.30,TESCO STORES 2008
OXFORDSHIRE CC,"CHILDRENS, YOUNG PEOPLE AND FAMILIES",THAME E&A HOME,MATERIALS,18/05/2022,8186771914,53.05,AMZNMKTPLACE
OXFORDSHIRE CC,"CHILDRENS, YOUNG PEOPLE AND FAMILIES",CNTL EARLY HELP-RHIL,GENERAL REFUSE COLLECTION AND DISPOSAL,18/05/2022,8186770808,294.00,M & M SKIP HIRE
OXFORDSHIRE CC,"CHILDRENS, YOUNG PEOPLE AND FAMILIES",FSP NON-STAFFING - CENTRAL,CATERING PROVISIONS,18/05/2022,8186770816,8.20,TESCO STORES 4377
OXFORDSHIRE CC,"CHILDRENS, YOUNG PEOPLE AND FAMILIES",PAUSE PROGRAMME,CATERING PROVISIONS,18/05/2022,8186770846,16.49,ALDI 99 775
OXFORDSHIRE CC,"CHILDRENS, YOUNG PEOPLE AND FAMILIES",SCHOOLS FM CATERING AREA 3,CATERING PROVISIONS,18/05/2022,8186770852,13.14,ALDI STORES 775-141
OXFORDSHIRE CC,CORPORATE CORE,CENTRAL BUYING TEAM,MATERIALS,18/05/2022,8186771970,19.49,AMZNMKTPLACE AMAZON.CO
OXFORDSHIRE CC,"CHILDRENS, YOUNG PEOPLE AND FAMILIES",THAME E&A HOME,CATERING PROVISIONS,18/05/2022,8186770882,28.99,ICELAND FOODS
OXFORDSHIRE CC,"CHILDRENS, YOUNG PEOPLE AND FAMILIES",WITNEY,CATERING PROVISIONS,18/05/2022,8186770906,8.58,SAINSBURYS S/MKTS
OXFORDSHIRE CC,"CHILDRENS, YOUNG PEOPLE AND FAMILIES",FAMILY SOLUTIONS PLUS NON-STAFF - NORTH,OTHER TRANSPORT ARRANGEMENTS,18/05/2022,8186770936,71.00,NATIONAL EXPRESS LIMIT
OXFORDSHIRE CC,"CHILDRENS, YOUNG PEOPLE AND FAMILIES",FAMILY SOLUTIONS PLUS NON-STAFF - NORTH,OTHER EXPENSES,18/05/2022,8186770940,264.00,MICKS SKIPS LTD
OXFORDSHIRE CC,CORPORATE CORE,,STATIONERY,18/05/2022,8186772048,28.08,LYRECO UK LTD
OXFORDSHIRE CC,"CHILDRENS, YOUNG PEOPLE AND FAMILIES",EYNSHAM,MATERIALS,18/05/2022,8186772018,29.49,AMZNMKTPLACE AMAZON.CO
OXFORDSHIRE CC,"CHILDRENS, YOUNG PEOPLE AND FAMILIES",EYNSHAM,MATERIALS,18/05/2022,8186772026,4.49,AMZNMKTPLACE AMAZON.CO
OXFORDSHIRE CC,"CHILDRENS, YOUNG PEOPLE AND FAMILIES",EYNSHAM,MATERIALS,18/05/2022,8186772032,27.99,AMZNMKTPLACE AMAZON.CO
OXFORDSHIRE CC,"CHILDRENS, YOUNG PEOPLE AND FAMILIES",EYNSHAM,MATERIALS,18/05/2022,8186772036,24.27,AMZNMKTPLACE
OXFORDSHIRE CC,"CHILDRENS, YOUNG PEOPLE AND FAMILIES",EYNSHAM,MATERIALS,18/05/2022,8186772042,3.99,AMZNMKTPLACE
OXFORDSHIRE CC,CORPORATE CORE,,STATIONERY,18/05/2022,8186772044,27.67,LYRECO UK LTD
OXFORDSHIRE CC,"CHILDRENS, YOUNG PEOPLE AND FAMILIES","	LEAVING CARE CITY 2",OTHER TRANSPORT ARRANGEMENTS,18/05/2022,8186770958,6.40,STGCOACH/CTYLINK
OXFORDSHIRE CC,"CHILDRENS, YOUNG PEOPLE AND FAMILIES","	LEAVING CARE CITY 2",OTHER TRANSPORT ARRANGEMENTS,18/05/2022,8186770950,4.40,ARRIVA THE SHIRES LIMI
OXFORDSHIRE CC,"CHILDRENS, YOUNG PEOPLE AND FAMILIES","	LEAVING CARE CITY 2",OTHER TRANSPORT ARRANGEMENTS,18/05/2022,8186770954,4.30,STGCOACH/CTYLINK
OXFORDSHIRE CC,SOCIAL AND COMMUNITY SERVICES,SCHOOLS FM CATERING AREA 1,CATERING,18/05/2022,8186770944,24.86,BOOKER LIMITED OXFORD
OXFORDSHIRE CC,"CHILDRENS, YOUNG PEOPLE AND FAMILIES",40 THE MOORS,CATERING PROVISIONS,18/05/2022,8186770562,277.30,SAINSBURYS.CO.UK
OXFORDSHIRE CC,"CHILDRENS, YOUNG PEOPLE AND FAMILIES","	LEAVING CARE NORTH",OTHER EXPENSES,18/05/2022,8186770620,7.25,TESCO PFS 3418
OXFORDSHIRE CC,SOCIAL AND COMMUNITY SERVICES,CHILDREN IN CARE NON-STAFFING - NORTH,PAYMENTS TO TRANSPORT OPERATORS,18/05/2022,8186770604,30.47,TRAINLINE
OXFORDSHIRE CC,SOCIAL AND COMMUNITY SERVICES,CHILDREN IN CARE NON-STAFFING - NORTH,CATERING,18/05/2022,8186770610,3.75,THE SHAKE SHOP
OXFORDSHIRE CC,"CHILDRENS, YOUNG PEOPLE AND FAMILIES",40 THE MOORS,MATERIALS,18/05/2022,8186771728,14.59,AMZNMKTPLACE AMAZON.CO
OXFORDSHIRE CC,"CHILDRENS, YOUNG PEOPLE AND FAMILIES",PAUSE PROGRAMME,OTHER TRANSPORT ARRANGEMENTS,18/05/2022,8186770678,6.00,OXFORDBUS.CO.UK
OXFORDSHIRE CC,CORPORATE CORE,"MARKETING, COMMUNICATIONS & ENGAGEMENT","PUBLICITY, PROMOTIONS AND ADVERTISEMENT",18/05/2022,8186771758,56.45,LINKEDIN-786 6505964
OXFORDSHIRE CC,CORPORATE CORE,LIBRARY COLLECTIONS,"BOOKS, DVDS AND CDS",18/05/2022,8186770734,456.31,OVERDRIVE DIST
OXFORDSHIRE CC,CORPORATE CORE,LIBRARY COLLECTIONS,"BOOKS, DVDS AND CDS",18/05/2022,8186770718,456.31,OVERDRIVE DIST
OXFORDSHIRE CC,CORPORATE CORE,LIBRARY COLLECTIONS,"BOOKS, DVDS AND CDS",18/05/2022,8186770724,26.46,OVERDRIVE DIST
OXFORDSHIRE CC,CORPORATE CORE,LIBRARY COLLECTIONS,"BOOKS, DVDS AND CDS",18/05/2022,8186770730,456.31,OVERDRIVE DIST
OXFORDSHIRE CC,"CHILDRENS, YOUNG PEOPLE AND FAMILIES","	LEAVING CARE SOUTH",MATERIALS,18/05/2022,8186771864,22.99,AMZNMKTPLACE
OXFORDSHIRE CC,ENVIRONMENT AND ECONOMY,"	LOWER WINDRUSH PROJ",MATERIALS,18/05/2022,8186771826,20.08,VISTAPRINT
OXFORDSHIRE CC,"CHILDRENS, YOUNG PEOPLE AND FAMILIES",FSP NON-STAFFING - CENTRAL,SUBSCRIPTIONS,18/05/2022,8186771832,6.35,HOLLYWOOD BOWL
OXFORDSHIRE CC,"CHILDRENS, YOUNG PEOPLE AND FAMILIES",FSP NON-STAFFING - CENTRAL,SUBSCRIPTIONS,18/05/2022,8186771838,26.47,HOLLYWOOD BOWL
OXFORDSHIRE CC,"CHILDRENS, YOUNG PEOPLE AND FAMILIES","	LEAVING CARE SOUTH",MATERIALS,18/05/2022,8186771858,26.00,AMZNMKTPLACE
OXFORDSHIRE CC,ENVIRONMENT AND ECONOMY,LIBRARY PROJECTS,CATERING PROVISIONS,18/05/2022,8186770776,22.19,SAINSBURYS S/MKTS
OXFORDSHIRE CC,CORPORATE CORE,LIBRARY COLLECTIONS,"BOOKS, DVDS AND CDS",18/05/2022,8186770738,-454.12,OVERDRIVE DIST
OXFORDSHIRE CC,CORPORATE CORE,LIBRARY COLLECTIONS,"BOOKS, DVDS AND CDS",18/05/2022,8186770742,-454.12,OVERDRIVE DIST
OXFORDSHIRE CC,"CHILDRENS, YOUNG PEOPLE AND FAMILIES",EYNSHAM,POSTAGE AND DELIVERY,17/05/2022,10081203017,1.45,POST OFFICE COUNTER
OXFORDSHIRE CC,"CHILDRENS, YOUNG PEOPLE AND FAMILIES",EYNSHAM,MATERIALS,17/05/2022,10081203027,13.77,AMZNMKTPLACE AMAZON.CO
OXFORDSHIRE CC,"CHILDRENS, YOUNG PEOPLE AND FAMILIES",UASC 16&17,TRANSPORT TO SCHOOL,17/05/2022,10081200903,18.00,OXFORD BUS COMPANY
OXFORDSHIRE CC,ENVIRONMENT AND ECONOMY,"	ROW MAINT",EQUIPMENT,17/05/2022,10081200881,23.70,WWW.LSENGINEERS.CO.UK
OXFORDSHIRE CC,"CHILDRENS, YOUNG PEOPLE AND FAMILIES",KINGFISHER,CATERING PROVISIONS,17/05/2022,10081200895,100.00,TESCO GIFT CARD
OXFORDSHIRE CC,"CHILDRENS, YOUNG PEOPLE AND FAMILIES",UASC 16&17,RESIDENTIAL ACTIVITIES,17/05/2022,10081201521,20.00,T K MAXX
OXFORDSHIRE CC,"CHILDRENS, YOUNG PEOPLE AND FAMILIES",FAMILY SOLUTIONS PLUS NON-STAFF - NORTH,OTHER TRANSPORT ARRANGEMENTS,17/05/2022,10081201531,48.00,STAGECOACH SERVICE
OXFORDSHIRE CC,"CHILDRENS, YOUNG PEOPLE AND FAMILIES",KINGFISHER,CATERING,17/05/2022,10081201617,4.10,COSTA COFFEE
OXFORDSHIRE CC,"CHILDRENS, YOUNG PEOPLE AND FAMILIES",THAME E&A HOME,CATERING PROVISIONS,17/05/2022,10081201631,4.85,SAINSBURYS S/MKTS
OXFORDSHIRE CC,"CHILDRENS, YOUNG PEOPLE AND FAMILIES","	LOOKED AFTER CITY 1",OTHER EXPENSES,17/05/2022,10081200941,.99,TESCO STORE 2994
OXFORDSHIRE CC,"CHILDRENS, YOUNG PEOPLE AND FAMILIES",UASC 16&17,TRANSPORT TO SCHOOL,17/05/2022,10081200913,79.00,WWW.THEKEY.CO.UK
OXFORDSHIRE CC,"CHILDRENS, YOUNG PEOPLE AND FAMILIES","	LOOKED AFTER CITY 1",TRANSPORT TO SCHOOL,17/05/2022,10081200933,25.00,WWW.THEKEY.CO.UK
OXFORDSHIRE CC,CORPORATE CORE,CATERING MANAGEMENT SOFT FM,MATERIALS,17/05/2022,10081203125,7.89,AMZNMKTPLACE
OXFORDSHIRE CC,CORPORATE CORE,CATERING MANAGEMENT SOFT FM,MATERIALS,17/05/2022,10081203107,94.62,AMZNMKTPLACE
OXFORDSHIRE CC,CORPORATE CORE,CATERING MANAGEMENT SOFT FM,MATERIALS,17/05/2022,10081203117,44.65,AMZNMKTPLACE
OXFORDSHIRE CC,CORPORATE CORE,CATERING MANAGEMENT SOFT FM,MATERIALS,17/05/2022,10081203133,91.86,AMZNMKTPLACE
OXFORDSHIRE CC,ENVIRONMENT AND ECONOMY,HARD FM,OTHER TRANSPORT ARRANGEMENTS,17/05/2022,10081200981,3.90,NCP BANBURY MARLBOROUG
OXFORDSHIRE CC,SOCIAL AND COMMUNITY SERVICES,CSS - ABINGDON,MATERIALS,17/05/2022,10081200949,4.40,AMZNMKTPLACE
OXFORDSHIRE CC,ENVIRONMENT AND ECONOMY,HARD FM,HARDWARE AND CROCKERY,17/05/2022,10081200963,95.20,MERKKO BUILDERS MERCHA
OXFORDSHIRE CC,ENVIRONMENT AND ECONOMY,HARD FM,HARDWARE AND CROCKERY,17/05/2022,10081200973,66.00,HOWDENS - KIDLINGTON D
OXFORDSHIRE CC,SOCIAL AND COMMUNITY SERVICES,CSS BICESTER,CATERING PROVISIONS,17/05/2022,10081200993,69.71,TESCO STORE 2162
OXFORDSHIRE CC,ENVIRONMENT AND ECONOMY,MUSEUM CAFE,EQUIPMENT,17/05/2022,10081202417,18.50,AMZNMKTPLACE
OXFORDSHIRE CC,"CHILDRENS, YOUNG PEOPLE AND FAMILIES","	OCCG GRANT",STATIONERY,17/05/2022,10081202435,35.65,AMZNMKTPLACE AMAZON.CO
OXFORDSHIRE CC,"CHILDRENS, YOUNG PEOPLE AND FAMILIES",FAMILY SOLUTIONS PLUS NON-STAFF � SOUTH,OTHER TRANSPORT ARRANGEMENTS,17/05/2022,10081203171,92.00,OXFORDBUS.CO.UK
OXFORDSHIRE CC,"CHILDRENS, YOUNG PEOPLE AND FAMILIES",NTH EARLY HELP-BNRBY,CATERING PROVISIONS,17/05/2022,10081203139,2.58,TESCO STORE 2064
OXFORDSHIRE CC,"CHILDRENS, YOUNG PEOPLE AND FAMILIES",EDT,CATERING PROVISIONS,17/05/2022,10081203149,11.10,CO OP GROUP FOOD
OXFORDSHIRE CC,"CHILDRENS, YOUNG PEOPLE AND FAMILIES",EDT,CATERING,17/05/2022,10081203157,6.49,MCDONALDS
OXFORDSHIRE CC,CORPORATE CORE,THAME LIBRARY,MATERIALS,17/05/2022,10081202907,18.59,AMZNMKTPLACE AMAZON.CO
OXFORDSHIRE CC,"CHILDRENS, YOUNG PEOPLE AND FAMILIES",ATV ADOPTION WOODLEY,POSTAGE AND DELIVERY,17/05/2022,10081200829,2.35,POST OFFICE COUNTER
OXFORDSHIRE CC,CORPORATE CORE,OPERATIONS,MATERIALS,17/05/2022,10081202185,9.90,AMZNMKTPLACE
OXFORDSHIRE CC,CORPORATE CORE,OPERATIONS,MATERIALS,17/05/2022,10081202177,2.95,AMZNMKTPLACE
OXFORDSHIRE CC,CORPORATE CORE,OPERATIONS,EQUIPMENT,17/05/2022,10081202191,8.99,AMZNMKTPLACE
OXFORDSHIRE CC,CORPORATE CORE,THAME LIBRARY,MATERIALS,17/05/2022,10081202933,5.99,AMZNMKTPLACE
OXFORDSHIRE CC,CORPORATE CORE,THAME LIBRARY,MATERIALS,17/05/2022,10081202917,23.85,AMZNMKTPLACE AMAZON.CO
OXFORDSHIRE CC,CORPORATE CORE,THAME LIBRARY,MATERIALS,17/05/2022,10081202921,8.55,AMZNMKTPLACE AMAZON.CO
OXFORDSHIRE CC,CORPORATE CORE,THAME LIBRARY,MATERIALS,17/05/2022,10081202925,5.99,AMZNMKTPLACE AMAZON.CO
OXFORDSHIRE CC,CORPORATE CORE,THAME LIBRARY,MATERIALS,17/05/2022,10081202937,17.99,AMZNMKTPLACE
OXFORDSHIRE CC,"CHILDRENS, YOUNG PEOPLE AND FAMILIES",EYNSHAM,CATERING,17/05/2022,10081200841,15.95,TESCO PFS 2488
OXFORDSHIRE CC,"CHILDRENS, YOUNG PEOPLE AND FAMILIES","	LOOKED AFTER NORTH",OTHER TRANSPORT ARRANGEMENTS,17/05/2022,10081201449,1.00,CHERWELL
OXFORDSHIRE CC,"CHILDRENS, YOUNG PEOPLE AND FAMILIES",UASC 16&17,DAY ACTIVITIES,17/05/2022,10081201513,20.00,SUMUP   RAJA GIFT LIMI
OXFORDSHIRE CC,"CHILDRENS, YOUNG PEOPLE AND FAMILIES",EYNSHAM,MATERIALS,17/05/2022,10081203037,-56.99,AMZ AMAZON BUSINESS UK
OXFORDSHIRE CC,ENVIRONMENT AND ECONOMY,P&S OPERATIONAL REV,OTHER SERVICES,17/05/2022,10081201179,298.80,EMAP PUBLISHING LTD OX
OXFORDSHIRE CC,"CHILDRENS, YOUNG PEOPLE AND FAMILIES",UASC 16&17,OTHER EXPENSES,17/05/2022,10081201941,13.50,THEWORKS.CO.UK
OXFORDSHIRE CC,"CHILDRENS, YOUNG PEOPLE AND FAMILIES",FSP NON-STAFFING - CENTRAL,CATERING PROVISIONS,17/05/2022,10081201909,183.95,ASDA GEORGE COM LEEDS
OXFORDSHIRE CC,SOCIAL AND COMMUNITY SERVICES,SCHOOLS FM CATERING AREA 2,CATERING,17/05/2022,10081201921,65.94,BOOKER LIMITED OXFORD
OXFORDSHIRE CC,"CHILDRENS, YOUNG PEOPLE AND FAMILIES",UASC 16&17,CATERING,17/05/2022,10081201931,4.00,POUNDLAND LTD 1586
OXFORDSHIRE CC,"CHILDRENS, YOUNG PEOPLE AND FAMILIES","	LEAVING CARE CITY 2",CATERING PROVISIONS,17/05/2022,10081201961,7.70,WELCOME BREAK-PEARTREE
OXFORDSHIRE CC,"CHILDRENS, YOUNG PEOPLE AND FAMILIES","	PARENT PARTNERSHIP",PAYMENT TO GOVERNMENT DEPARTMENTS,17/05/2022,10081202651,5.25,DIDCOT TOWN CNL
OXFORDSHIRE CC,"CHILDRENS, YOUNG PEOPLE AND FAMILIES",DIDCOT MOVE-ON HOME,"SUPPLIES, STATIONERY AND MATERIALS",17/05/2022,10081202017,12.00,B&M 514 - DICOT
OXFORDSHIRE CC,CORPORATE CORE,"MARKETING, COMMUNICATIONS & ENGAGEMENT","PUBLICITY, PROMOTIONS AND ADVERTISEMENT",17/05/2022,10081202069,500.00,GOOGLE ADS4896546035
OXFORDSHIRE CC,"CHILDRENS, YOUNG PEOPLE AND FAMILIES","	OCCG GRANT",STATIONERY,17/05/2022,10081202025,8.00,PHOTO ME INTERNATIONAL
OXFORDSHIRE CC,CORPORATE CORE,"MARKETING, COMMUNICATIONS & ENGAGEMENT","PUBLICITY, PROMOTIONS AND ADVERTISEMENT",17/05/2022,10081202075,5.45,SNAP INC SNAP SNAP ADS
OXFORDSHIRE CC,"CHILDRENS, YOUNG PEOPLE AND FAMILIES",40 THE MOORS,CATERING,17/05/2022,10081202713,84.53,JUST EAT
OXFORDSHIRE CC,"CHILDRENS, YOUNG PEOPLE AND FAMILIES",UASC POST 18,OTHER TRANSPORT ARRANGEMENTS,17/05/2022,10081202729,6.80,SEACOURT PARK AND RIDE
OXFORDSHIRE CC,"CHILDRENS, YOUNG PEOPLE AND FAMILIES",THAME E&A HOME,CATERING PROVISIONS,17/05/2022,10081201271,253.08,TESCO STORES 2038
OXFORDSHIRE CC,"CHILDRENS, YOUNG PEOPLE AND FAMILIES",CNTL EARLY HELP-BRTN,CATERING,17/05/2022,10081202783,3.00,TESCO PFS 2488
OXFORDSHIRE CC,CORPORATE CORE,"MARKETING, COMMUNICATIONS & ENGAGEMENT","PUBLICITY, PROMOTIONS AND ADVERTISEMENT",17/05/2022,10081202081,4.38,SNAP INC SNAP SNAP ADS
OXFORDSHIRE CC,SOCIAL AND COMMUNITY SERVICES,BUSINESS SUPPORT SERVICE,MATERIALS,17/05/2022,10081202795,4.99,AMZNMKTPLACE
OXFORDSHIRE CC,SOCIAL AND COMMUNITY SERVICES,"	CENTRAL LIBRARY",IT SOFTWARE,17/05/2022,10081202815,656.29,CURRYS BUSINESS
OXFORDSHIRE CC,"CHILDRENS, YOUNG PEOPLE AND FAMILIES","	LEAVING CARE CITY 1",OTHER TRANSPORT ARRANGEMENTS,17/05/2022,10081201005,4.50,WORCESTER STREET CAR P
OXFORDSHIRE CC,"CHILDRENS, YOUNG PEOPLE AND FAMILIES",THAME E&A HOME,CATERING PROVISIONS,17/05/2022,10081201735,4.25,COSTA THAME
OXFORDSHIRE CC,"CHILDRENS, YOUNG PEOPLE AND FAMILIES","	OCCG GRANT",PURCHASE OF IT EQUIPMENT,17/05/2022,10081202461,56.94,AMZNMKTPLACE
OXFORDSHIRE CC,"CHILDRENS, YOUNG PEOPLE AND FAMILIES","	OCCG GRANT",FURNITURE,17/05/2022,10081202445,49.99,AMZNMKTPLACE
OXFORDSHIRE CC,"CHILDRENS, YOUNG PEOPLE AND FAMILIES","	OCCG GRANT",PURCHASE OF IT EQUIPMENT,17/05/2022,10081202451,47.92,AMZNMKTPLACE
OXFORDSHIRE CC,"CHILDRENS, YOUNG PEOPLE AND FAMILIES","	OCCG GRANT",FURNITURE,17/05/2022,10081202455,100.90,AMZNMKTPLACE
OXFORDSHIRE CC,"CHILDRENS, YOUNG PEOPLE AND FAMILIES","	OCCG GRANT",PURCHASE OF IT EQUIPMENT,17/05/2022,10081202469,11.79,AMZNMKTPLACE
OXFORDSHIRE CC,"CHILDRENS, YOUNG PEOPLE AND FAMILIES",FAMILY SOLUTIONS PLUS NON-STAFF � SOUTH,PAYMENTS TO TRANSPORT OPERATORS,17/05/2022,10081203177,44.62,TRAINLINE.COM
OXFORDSHIRE CC,"CHILDRENS, YOUNG PEOPLE AND FAMILIES",FSP NON-STAFFING - CENTRAL,PAYMENTS TO TRANSPORT OPERATORS,17/05/2022,10081201039,62.50,WWW.GWR.COM
OXFORDSHIRE CC,ENTERPRISEVC,BUSINESS SYST STAFF,PAYMENTS TO TRANSPORT OPERATORS,17/05/2022,10081201061,76.00,CHILTERN RALIWAYS
OXFORDSHIRE CC,"CHILDRENS, YOUNG PEOPLE AND FAMILIES","DIDCOT CC, PARK ROAD",CATERING PROVISIONS,17/05/2022,10081201767,3.30,TESCO STORES
OXFORDSHIRE CC,SOCIAL AND COMMUNITY SERVICES,CSS WITNEY,MATERIALS,17/05/2022,10081201797,6.00,THE ENTERTAINER 92
OXFORDSHIRE CC,"CHILDRENS, YOUNG PEOPLE AND FAMILIES","	OCCG GRANT",STATIONERY,17/05/2022,10081202473,16.97,AMZNMKTPLACE
OXFORDSHIRE CC,"CHILDRENS, YOUNG PEOPLE AND FAMILIES","	OCCG GRANT",PURCHASE OF IT EQUIPMENT,17/05/2022,10081202479,175.92,AMZNMKTPLACE
OXFORDSHIRE CC,CORPORATE CORE,"	CORPORATE FINANCE",PAYMENTS TO TRANSPORT OPERATORS,17/05/2022,10081202489,34.40,WWW.GWR.COM
OXFORDSHIRE CC,"CHILDRENS, YOUNG PEOPLE AND FAMILIES",PAUSE PROGRAMME,CATERING,17/05/2022,10081201821,11.57,KFC-BANBURY
OXFORDSHIRE CC,"CHILDRENS, YOUNG PEOPLE AND FAMILIES",PAUSE PROGRAMME,CATERING PROVISIONS,17/05/2022,10081201829,19.54,ICELAND
OXFORDSHIRE CC,"CHILDRENS, YOUNG PEOPLE AND FAMILIES",DIDCOT MOVE-ON HOME,CATERING PROVISIONS,17/05/2022,10081201851,12.08,LONDIS BASINGSTOKE
OXFORDSHIRE CC,"CHILDRENS, YOUNG PEOPLE AND FAMILIES","	LEAVING CARE NORTH",OTHER TRANSPORT ARRANGEMENTS,17/05/2022,10081201863,2.00,HORIZON TRAVELODGE OXF
OXFORDSHIRE CC,SOCIAL AND COMMUNITY SERVICES,CSS WANTAGE,ENTERTAINMENT EXPENSES,17/05/2022,10081202537,18.00,WWW.BETTER.ORG.UK
OXFORDSHIRE CC,"CHILDRENS, YOUNG PEOPLE AND FAMILIES","	SEN/ICT EQUIPMENT",IT SOFTWARE,17/05/2022,10081202549,180.00,TEXTHELPLTD
OXFORDSHIRE CC,"CHILDRENS, YOUNG PEOPLE AND FAMILIES",CHILDREN IN CARE NON-STAFFING - CENTRL 1,"SUPPLIES, STATIONERY AND MATERIALS",17/05/2022,10081201111,66.45,EB  GHANA PARTY IN THE
OXFORDSHIRE CC,"CHILDRENS, YOUNG PEOPLE AND FAMILIES",MANAGEMENT RECHARGES,HIRED AND CONTRACTED SERVICES,17/05/2022,10081201133,15.98,AMZNMKTPLACE AMAZON.CO
OXFORDSHIRE CC,ENVIRONMENT AND ECONOMY,OMNICAV,PAYMENTS TO TRANSPORT OPERATORS,17/05/2022,10081201143,89.05,TRAINLINE.COM
OXFORDSHIRE CC,"CHILDRENS, YOUNG PEOPLE AND FAMILIES",FAMILY SOLUTIONS PLUS NON-STAFF - NORTH,OTHER TRANSPORT ARRANGEMENTS,17/05/2022,10081201873,72.00,SQ  1ST CALL SWINDON T
OXFORDSHIRE CC,"CHILDRENS, YOUNG PEOPLE AND FAMILIES",FAMILY SOLUTIONS PLUS NON-STAFF - NORTH,CATERING PROVISIONS,17/05/2022,10081201881,2.83,ICELAND
OXFORDSHIRE CC,"CHILDRENS, YOUNG PEOPLE AND FAMILIES",FSP NON-STAFFING - CENTRAL,OTHER TRANSPORT ARRANGEMENTS,17/05/2022,10081202615,18.00,BUS TICKET OR EMT WIFI
OXFORDSHIRE CC,"CHILDRENS, YOUNG PEOPLE AND FAMILIES",FSP NON-STAFFING - CENTRAL,FURNITURE,17/05/2022,10081202621,600.00,DREAMS LTD
OXFORDSHIRE CC,ENVIRONMENT AND ECONOMY,STRATEGY AND INFRASTRUCTURE PLANNING,TRAINING RELATED EXPENDITURE,17/05/2022,10081201189,78.00,RTPI
OXFORDSHIRE CC,CORPORATE CORE,LIBRARY COLLECTIONS,"BOOKS, DVDS AND CDS",16/05/2022,10074078119,75.26,OVERDRIVE DIST
OXFORDSHIRE CC,"CHILDRENS, YOUNG PEOPLE AND FAMILIES",UASC 16&17,CATERING PROVISIONS,16/05/2022,10074078115,41.36,TESCO STORES 4480
OXFORDSHIRE CC,"CHILDRENS, YOUNG PEOPLE AND FAMILIES",FIELDWORK UASC,OTHER TRANSPORT ARRANGEMENTS,16/05/2022,10074078149,16.00,STGCOACH/CTYLINK
OXFORDSHIRE CC,"CHILDRENS, YOUNG PEOPLE AND FAMILIES",FIELDWORK UASC,PAYMENTS TO TRANSPORT OPERATORS,16/05/2022,10074078135,9.50,LUL TICKET MACHINE
OXFORDSHIRE CC,"CHILDRENS, YOUNG PEOPLE AND FAMILIES",UASC UNDER 16,RESIDENTIAL ACTIVITIES,16/05/2022,10074078137,72.99,ARGOS LTD
OXFORDSHIRE CC,"CHILDRENS, YOUNG PEOPLE AND FAMILIES",UASC UNDER 16,RESIDENTIAL ACTIVITIES,16/05/2022,10074078143,217.97,ARGOS LTD
OXFORDSHIRE CC,"CHILDRENS, YOUNG PEOPLE AND FAMILIES",UASC 16&17,RESIDENTIAL ACTIVITIES,16/05/2022,10074078153,17.99,TK MAXX
OXFORDSHIRE CC,"CHILDRENS, YOUNG PEOPLE AND FAMILIES",UASC 16&17,OTHER TRANSPORT ARRANGEMENTS,16/05/2022,10074078147,25.00,OXFORD BUS CO
OXFORDSHIRE CC,SOCIAL AND COMMUNITY SERVICES,CSS WANTAGE,MATERIALS,16/05/2022,10074079219,12.36,AMZNMKTPLACE
OXFORDSHIRE CC,SOCIAL AND COMMUNITY SERVICES,CSS WANTAGE,ENTERTAINMENT EXPENSES,16/05/2022,10074079225,3.50,HOLLYWOOD BOWL
OXFORDSHIRE CC,ENVIRONMENT AND ECONOMY,ELEC NPR ST LTG,MATERIALS,16/05/2022,10074077079,21.74,AMZNMKTPLACE AMAZON.CO
OXFORDSHIRE CC,ENVIRONMENT AND ECONOMY,ELEC NPR ST LTG,HARDWARE AND CROCKERY,16/05/2022,10074077077,23.36,WWW.SCREWFIX.COM
OXFORDSHIRE CC,"CHILDRENS, YOUNG PEOPLE AND FAMILIES",EYNSHAM,ENTERTAINMENT EXPENSES,16/05/2022,10074077113,2.95,THE PARTYMAN CO
OXFORDSHIRE CC,"CHILDRENS, YOUNG PEOPLE AND FAMILIES",DIDCOT MOVE-ON HOME,CATERING PROVISIONS,16/05/2022,10074078197,2.41,SAINSBURYS S/MKTS
OXFORDSHIRE CC,"CHILDRENS, YOUNG PEOPLE AND FAMILIES",UASC 16&17,RESIDENTIAL ACTIVITIES,16/05/2022,10074078159,-17.99,TK MAXX
OXFORDSHIRE CC,"CHILDRENS, YOUNG PEOPLE AND FAMILIES",PAUSE PROGRAMME,CATERING,16/05/2022,10074078169,15.75,COSTA COFFEE 43042160
OXFORDSHIRE CC,"CHILDRENS, YOUNG PEOPLE AND FAMILIES",FAMILY SOLUTIONS PLUS NON-STAFF - NORTH,PAYMENTS TO TRANSPORT OPERATORS,16/05/2022,10074078183,69.00,WWW.GWR.COM
OXFORDSHIRE CC,"CHILDRENS, YOUNG PEOPLE AND FAMILIES",PAUSE PROGRAMME,MATERIALS,16/05/2022,10074078227,20.00,SMART TOP UP
OXFORDSHIRE CC,"CHILDRENS, YOUNG PEOPLE AND FAMILIES",THAME E&A HOME,CATERING,16/05/2022,10074078233,4.80,STARBUCKS COFFEE
OXFORDSHIRE CC,"CHILDRENS, YOUNG PEOPLE AND FAMILIES",THAME E&A HOME,ENTERTAINMENT EXPENSES,16/05/2022,10074078241,28.00,REBOUND REVOLUTION
OXFORDSHIRE CC,ENVIRONMENT AND ECONOMY,"	FLEET OPERATIONS",CATERING PROVISIONS,16/05/2022,10074079281,13.44,MILK AND MORE (RECUR
OXFORDSHIRE CC,CORPORATE CORE,CATERING MANAGEMENT SOFT FM,MATERIALS,16/05/2022,10074077171,225.01,COSTCO WHOLESALE #122
OXFORDSHIRE CC,CORPORATE CORE,CATERING MANAGEMENT SOFT FM,CATERING,16/05/2022,10074077177,121.64,BOOKER LIMITED OXFORD
OXFORDSHIRE CC,"CHILDRENS, YOUNG PEOPLE AND FAMILIES",THAME E&A HOME,CATERING PROVISIONS,16/05/2022,10074078255,6.75,WELCOME BREAK STARBUCK
OXFORDSHIRE CC,"CHILDRENS, YOUNG PEOPLE AND FAMILIES",THAME E&A HOME,ENTERTAINMENT EXPENSES,16/05/2022,10074078249,2.60,REBOUND REVOLUTION
OXFORDSHIRE CC,"CHILDRENS, YOUNG PEOPLE AND FAMILIES",THAME E&A HOME,CATERING PROVISIONS,16/05/2022,10074078245,27.90,SAINSBURYS S/MKTS
OXFORDSHIRE CC,"CHILDRENS, YOUNG PEOPLE AND FAMILIES",THAME E&A HOME,CATERING,16/05/2022,10074078253,13.18,MCDONALDS
OXFORDSHIRE CC,"CHILDRENS, YOUNG PEOPLE AND FAMILIES",WITNEY,CATERING PROVISIONS,16/05/2022,10074078287,5.10,SAINSBURYS S/MKTS
OXFORDSHIRE CC,"CHILDRENS, YOUNG PEOPLE AND FAMILIES",THAME E&A HOME,CATERING PROVISIONS,16/05/2022,10074078297,27.10,SAINSBURYS S/MKTS
OXFORDSHIRE CC,"CHILDRENS, YOUNG PEOPLE AND FAMILIES",40 THE MOORS,TELEPHONE - EQUIPMENT,16/05/2022,10074079403,4.47,PAYPAL  CABLES4PHON ON
OXFORDSHIRE CC,SOCIAL AND COMMUNITY SERVICES,CSS - BANBURY,MATERIALS,16/05/2022,10074079391,8.00,THE WORKS
OXFORDSHIRE CC,ENVIRONMENT AND ECONOMY,"	ROW MAINT",EQUIPMENT,16/05/2022,10074077233,116.88,WWW.LSENGINEERS.CO.UK
OXFORDSHIRE CC,ENVIRONMENT AND ECONOMY,"	ROW MAINT",MATERIALS,16/05/2022,10074077223,55.47,SCREWFIX DIR LTD
OXFORDSHIRE CC,ENVIRONMENT AND ECONOMY,"	ROW MAINT",EQUIPMENT,16/05/2022,10074077227,45.31,UKTOOLCENTRE
OXFORDSHIRE CC,"CHILDRENS, YOUNG PEOPLE AND FAMILIES",KINGFISHER,CATERING PROVISIONS,16/05/2022,10074077245,50.00,TESCO GIFT CARD
OXFORDSHIRE CC,"CHILDRENS, YOUNG PEOPLE AND FAMILIES",KINGFISHER,CATERING PROVISIONS,16/05/2022,10074077249,100.00,TESCO GIFT CARD
OXFORDSHIRE CC,"CHILDRENS, YOUNG PEOPLE AND FAMILIES",KINGFISHER,CATERING PROVISIONS,16/05/2022,10074077255,50.00,TESCO GIFT CARD
OXFORDSHIRE CC,"CHILDRENS, YOUNG PEOPLE AND FAMILIES",KINGFISHER,OTHER TRANSPORT ARRANGEMENTS,16/05/2022,10074077263,20.70,DRAGONTAXIVCARS
OXFORDSHIRE CC,"CHILDRENS, YOUNG PEOPLE AND FAMILIES",KINGFISHER,CATERING PROVISIONS,16/05/2022,10074077267,-50.00,TESCO GIFT CARD
OXFORDSHIRE CC,"CHILDRENS, YOUNG PEOPLE AND FAMILIES",THAME E&A HOME,CATERING,16/05/2022,10074077279,18.46,MCDONALDS
OXFORDSHIRE CC,"CHILDRENS, YOUNG PEOPLE AND FAMILIES",WITNEY,CATERING PROVISIONS,16/05/2022,10074078323,56.19,SAINSBURY'S S/MKT
OXFORDSHIRE CC,"CHILDRENS, YOUNG PEOPLE AND FAMILIES",THAME E&A HOME,CATERING PROVISIONS,16/05/2022,10074078299,6.00,SAINSBURYS SUPERMA
OXFORDSHIRE CC,"CHILDRENS, YOUNG PEOPLE AND FAMILIES",FAMILY SOLUTIONS PLUS NON-STAFF � SOUTH,HIRE OF ACCOMMODATION AND FACILITIES,16/05/2022,10074078315,10.35,JURYS INN OXFORD HOTEL
OXFORDSHIRE CC,"CHILDRENS, YOUNG PEOPLE AND FAMILIES",FAMILY SOLUTIONS PLUS NON-STAFF - NORTH,HIRE OF ACCOMMODATION AND FACILITIES,16/05/2022,10074078329,93.00,WWW.ASHLEAGUESTHOUSE.C
OXFORDSHIRE CC,SOCIAL AND COMMUNITY SERVICES,CSS - OXFORD,CATERING PROVISIONS,16/05/2022,10074078337,21.35,ALDI STORES 775-142
OXFORDSHIRE CC,"CHILDRENS, YOUNG PEOPLE AND FAMILIES",FAMILY SOLUTIONS PLUS NON-STAFF � SOUTH,HIRE OF ACCOMMODATION AND FACILITIES,16/05/2022,10074078345,960.00,MERCURE THAME LAMBERT
OXFORDSHIRE CC,"CHILDRENS, YOUNG PEOPLE AND FAMILIES",FAMILY SOLUTIONS PLUS NON-STAFF - NORTH,OTHER TRANSPORT ARRANGEMENTS,16/05/2022,10074078351,56.00,NATIONAL EXPRESS LIMIT
OXFORDSHIRE CC,"CHILDRENS, YOUNG PEOPLE AND FAMILIES",FAMILY SOLUTIONS PLUS NON-STAFF - NORTH,MATERIALS,16/05/2022,10074078353,2.99,AMZNMKTPLACE
OXFORDSHIRE CC,"CHILDRENS, YOUNG PEOPLE AND FAMILIES","	LOOKED AFTER CITY 1",VEHICLE FUEL,16/05/2022,10074077303,11.12,SAINSBURYS PETROL
OXFORDSHIRE CC,ENVIRONMENT AND ECONOMY,HARD FM,MATERIALS,16/05/2022,10074077355,24.89,AMZNMKTPLACE
OXFORDSHIRE CC,SOCIAL AND COMMUNITY SERVICES,CSS - OXFORD,DAY ACTIVITIES,16/05/2022,10074077315,109.89,HOLLYWOOD BOWL
OXFORDSHIRE CC,SOCIAL AND COMMUNITY SERVICES,CSS - ABINGDON,MATERIALS,16/05/2022,10074077331,13.84,AMZNMKTPLACE
OXFORDSHIRE CC,SOCIAL AND COMMUNITY SERVICES,CSS - ABINGDON,MATERIALS,16/05/2022,10074077339,23.59,AMZNMKTPLACE AMAZON.CO
OXFORDSHIRE CC,SOCIAL AND COMMUNITY SERVICES,CSS - ABINGDON,MATERIALS,16/05/2022,10074077345,11.30,AMZNMKTPLACE
OXFORDSHIRE CC,SOCIAL AND COMMUNITY SERVICES,CSS - ABINGDON,MATERIALS,16/05/2022,10074077349,30.31,AMZNMKTPLACE
OXFORDSHIRE CC,ENVIRONMENT AND ECONOMY,HARD FM,HARDWARE AND CROCKERY,16/05/2022,10074077363,70.20,WICKES OXFORD
OXFORDSHIRE CC,ENVIRONMENT AND ECONOMY,BANBURY LIBRARY,MATERIALS,16/05/2022,10074078367,9.77,AMZNMKTPLACE AMAZON.CO
OXFORDSHIRE CC,"CHILDRENS, YOUNG PEOPLE AND FAMILIES",FAMILY SOLUTIONS PLUS NON-STAFF - NORTH,HIRE OF ACCOMMODATION AND FACILITIES,16/05/2022,10074078357,505.00,NEWTON HOUSE
OXFORDSHIRE CC,CORPORATE CORE,SCHOOLS FM CATERING AREA 4,CATERING PROVISIONS,16/05/2022,10074078371,13.50,CO-OPERATIVE FOOD
OXFORDSHIRE CC,CORPORATE CORE,SCHOOLS FM CATERING AREA 4,CATERING PROVISIONS,16/05/2022,10074078375,20.40,SAINSBURYS S/MKTS
OXFORDSHIRE CC,CORPORATE CORE,SCHOOLS FM CATERING AREA 4,CATERING PROVISIONS,16/05/2022,10074078377,89.45,ASDA GROCERIES ONLINE
OXFORDSHIRE CC,"CHILDRENS, YOUNG PEOPLE AND FAMILIES","	LEAVING CARE CITY 2",MATERIALS,16/05/2022,10074078381,39.99,AMZNMKTPLACE AMAZON.CO
OXFORDSHIRE CC,ENVIRONMENT AND ECONOMY,"	COUNTY PRINT FINSHRS",CATERING PROVISIONS,16/05/2022,10074077403,9.72,MILK AND MORE (RECUR
OXFORDSHIRE CC,ENVIRONMENT AND ECONOMY,HARD FM,HARDWARE AND CROCKERY,16/05/2022,10074077369,66.64,MERKKO BUILDERS MERCHA
OXFORDSHIRE CC,ENVIRONMENT AND ECONOMY,HARD FM,HARDWARE AND CROCKERY,16/05/2022,10074077373,35.47,SCREWFIX DIR LTD
OXFORDSHIRE CC,ENVIRONMENT AND ECONOMY,HARD FM,HARDWARE AND CROCKERY,16/05/2022,10074077379,41.87,OXON FASTENING SYSTEMS
OXFORDSHIRE CC,ENVIRONMENT AND ECONOMY,HARD FM,HARDWARE AND CROCKERY,16/05/2022,10074077383,809.76,JEWSON LTD
OXFORDSHIRE CC,ENVIRONMENT AND ECONOMY,HARD FM,HARDWARE AND CROCKERY,16/05/2022,10074077391,29.99,SCREWFIX DIR LTD
OXFORDSHIRE CC,ENVIRONMENT AND ECONOMY,HARD FM,HARDWARE AND CROCKERY,16/05/2022,10074077395,60.00,WICKES OXFORD
OXFORDSHIRE CC,"CHILDRENS, YOUNG PEOPLE AND FAMILIES","	LEAVING CARE NORTH",CATERING PROVISIONS,16/05/2022,10074077399,50.00,WM MORRISONS STORE
OXFORDSHIRE CC,"CHILDRENS, YOUNG PEOPLE AND FAMILIES",KEEP ON CARING,CATERING,16/05/2022,10074077415,10.17,BURGER KINGBURGER KING
OXFORDSHIRE CC,"CHILDRENS, YOUNG PEOPLE AND FAMILIES","	LEAVING CARE CITY 1",MATERIALS,16/05/2022,10074077421,252.95,ARGOS LTD
OXFORDSHIRE CC,"CHILDRENS, YOUNG PEOPLE AND FAMILIES",THAME E&A HOME,CATERING PROVISIONS,16/05/2022,10074078435,19.25,OXFORD PEARTREE KFC
OXFORDSHIRE CC,"CHILDRENS, YOUNG PEOPLE AND FAMILIES",HOUSE PROJECT,MATERIALS,16/05/2022,10074078445,16.50,POUNDLAND LTD 1586
OXFORDSHIRE CC,"CHILDRENS, YOUNG PEOPLE AND FAMILIES","	LEAVING CARE SOUTH",OTHER TRANSPORT ARRANGEMENTS,16/05/2022,10074078403,75.00,OXFORDBUS.CO.UK
OXFORDSHIRE CC,"CHILDRENS, YOUNG PEOPLE AND FAMILIES",DIDCOT MOVE-ON HOME,ADHOC SITE ANDGROUNDS MAINTENANCE COSTS,16/05/2022,10074079591,65.90,HOME BARGAINS
OXFORDSHIRE CC,"CHILDRENS, YOUNG PEOPLE AND FAMILIES",KIDLINGTON LIBRARY,MATERIALS,16/05/2022,10074079637,5.00,THEWORKS.CO.UK
OXFORDSHIRE CC,SOCIAL AND COMMUNITY SERVICES,ABINGDON LIBRARY,STATIONERY,16/05/2022,10074079643,3.99,AMZNMKTPLACE
OXFORDSHIRE CC,"CHILDRENS, YOUNG PEOPLE AND FAMILIES",FSP NON-STAFFING - CENTRAL,MATERIALS,16/05/2022,10074077455,112.95,ARGOS LTD
OXFORDSHIRE CC,"CHILDRENS, YOUNG PEOPLE AND FAMILIES","	LEAVING CARE CITY 1",SUBSCRIPTIONS,16/05/2022,10074077431,15.00,FEELFITGYM
OXFORDSHIRE CC,"CHILDRENS, YOUNG PEOPLE AND FAMILIES",THAME E&A HOME,MATERIALS,16/05/2022,10074077443,4.50,HOBBYCRAFT
OXFORDSHIRE CC,"CHILDRENS, YOUNG PEOPLE AND FAMILIES",THAME E&A HOME,CLOTHING AND UNIFORMS,16/05/2022,10074077449,12.50,MATALAN
OXFORDSHIRE CC,"CHILDRENS, YOUNG PEOPLE AND FAMILIES",CNTL EARLY HELP-RHIL,MATERIALS,16/05/2022,10074077463,3.99,AMZNMKTPLACE
OXFORDSHIRE CC,"CHILDRENS, YOUNG PEOPLE AND FAMILIES","	LOOKED AFTER SOUTH",OTHER TRANSPORT ARRANGEMENTS,16/05/2022,10074077471,56.25,WWW.THEKEY.CO.UK
OXFORDSHIRE CC,"CHILDRENS, YOUNG PEOPLE AND FAMILIES","	LOOKED AFTER SOUTH",PAYMENT TO GOVERNMENT DEPARTMENTS,16/05/2022,10074077477,-7.50,GEN REGISTER OFFICE
OXFORDSHIRE CC,CORPORATE CORE,GROWTH BOARD,HIRE OF ACCOMMODATION AND FACILITIES,16/05/2022,10074077485,75.80,HOTEL ON BOOKING.COM
OXFORDSHIRE CC,CORPORATE CORE,GROWTH BOARD,HIRE OF ACCOMMODATION AND FACILITIES,16/05/2022,10074077489,454.80,HOTEL ON BOOKING.COM
OXFORDSHIRE CC,"CHILDRENS, YOUNG PEOPLE AND FAMILIES","	LEAVING CARE CITY 1",CATERING PROVISIONS,16/05/2022,10074077427,2.65,SAINSBURYS S/MKTS
OXFORDSHIRE CC,"CHILDRENS, YOUNG PEOPLE AND FAMILIES",PAUSE PROGRAMME,CATERING,16/05/2022,10074078483,13.05,MCDONALDS
OXFORDSHIRE CC,"CHILDRENS, YOUNG PEOPLE AND FAMILIES",PAUSE PROGRAMME,VEHICLE FUEL,16/05/2022,10074078489,3.00,TESCO PFS 3418
OXFORDSHIRE CC,"CHILDRENS, YOUNG PEOPLE AND FAMILIES",UASC 16&17,RESIDENTIAL ACTIVITIES,16/05/2022,10074078517,30.00,IZ  LULA S ETHIOPI
OXFORDSHIRE CC,"CHILDRENS, YOUNG PEOPLE AND FAMILIES",DIDCOT MOVE-ON HOME,CATERING PROVISIONS,16/05/2022,10074078531,14.95,LIDL GB BASINGSTOKE
OXFORDSHIRE CC,"CHILDRENS, YOUNG PEOPLE AND FAMILIES","	LEAVING CARE SOUTH",PAYMENTS TO TRANSPORT OPERATORS,16/05/2022,10074079691,6.83,THETRAINLINE.COM
OXFORDSHIRE CC,SOCIAL AND COMMUNITY SERVICES,ABINGDON LIBRARY,STATIONERY,16/05/2022,10074079653,9.99,AMZNMKTPLACE
OXFORDSHIRE CC,"CHILDRENS, YOUNG PEOPLE AND FAMILIES",CNTL EARLY HELP-RHIL,MATERIALS,16/05/2022,10074079665,280.00,ARGOS LTD
OXFORDSHIRE CC,SOCIAL AND COMMUNITY SERVICES,SOUTH OXFORDSHIRE TEAM,HIRE OF ACCOMMODATION AND FACILITIES,16/05/2022,10074079675,280.51,EXPRESS BY HOLIDAY INN
OXFORDSHIRE CC,CORPORATE CORE,ICT OPERATIONS & MAI,IT SERVICES,16/05/2022,10074079701,21.16,GITHUB
OXFORDSHIRE CC,SOCIAL AND COMMUNITY SERVICES,ABINGDON LIBRARY,STATIONERY,16/05/2022,10074079657,6.79,AMZNMKTPLACE
OXFORDSHIRE CC,"CHILDRENS, YOUNG PEOPLE AND FAMILIES",EYNSHAM,CATERING PROVISIONS,16/05/2022,10074079725,187.94,TESCO STORES 2008
OXFORDSHIRE CC,SOCIAL AND COMMUNITY SERVICES,ABINGDON LIBRARY,STATIONERY,16/05/2022,10074079659,5.50,AMZNMKTPLACE
OXFORDSHIRE CC,"CHILDRENS, YOUNG PEOPLE AND FAMILIES",THAME E&A HOME,CATERING PROVISIONS,16/05/2022,10074077535,10.40,SAINSBURYS S/MKTS
OXFORDSHIRE CC,"CHILDRENS, YOUNG PEOPLE AND FAMILIES",THAME E&A HOME,CATERING PROVISIONS,16/05/2022,10074077541,.20,SAINSBURYS S/MKTS
OXFORDSHIRE CC,"CHILDRENS, YOUNG PEOPLE AND FAMILIES","	LEAVING CARE CITY 2",OTHER TRANSPORT ARRANGEMENTS,16/05/2022,10074077551,3.00,WESTGATE OXFORD CAR PA
OXFORDSHIRE CC,"CHILDRENS, YOUNG PEOPLE AND FAMILIES",FSP NON-STAFFING - CENTRAL,OTHER TRANSPORT ARRANGEMENTS,16/05/2022,10074078551,92.00,WWW.THEKEY.CO.UK
OXFORDSHIRE CC,"CHILDRENS, YOUNG PEOPLE AND FAMILIES",DIDCOT MOVE-ON HOME,CATERING PROVISIONS,16/05/2022,10074078535,17.31,TESCO STORE 2413
OXFORDSHIRE CC,"CHILDRENS, YOUNG PEOPLE AND FAMILIES",FAMILY SOLUTIONS PLUS NON-STAFF � SOUTH,MATERIALS,16/05/2022,10074078543,77.95,ARGOS LTD
OXFORDSHIRE CC,"CHILDRENS, YOUNG PEOPLE AND FAMILIES",WITNEY,MATERIALS,16/05/2022,10074078547,22.50,THEWORKS
OXFORDSHIRE CC,"CHILDRENS, YOUNG PEOPLE AND FAMILIES",UASC 16&17,CLOTHING AND UNIFORMS,16/05/2022,10074078599,32.00,ASDA STORE 4442
OXFORDSHIRE CC,"CHILDRENS, YOUNG PEOPLE AND FAMILIES","	LEAVING CARE NORTH",CATERING,16/05/2022,10074078561,11.10,BICESTER STARBUCK
OXFORDSHIRE CC,"CHILDRENS, YOUNG PEOPLE AND FAMILIES","	LEAVING CARE NORTH",CATERING,16/05/2022,10074078565,10.76,MCDONALDS 1519
OXFORDSHIRE CC,"CHILDRENS, YOUNG PEOPLE AND FAMILIES","	LEAVING CARE NORTH",OTHER TRANSPORT ARRANGEMENTS,16/05/2022,10074078569,1.50,REEF LONDON LIMITED
OXFORDSHIRE CC,"CHILDRENS, YOUNG PEOPLE AND FAMILIES",FAMILY SOLUTIONS PLUS NON-STAFF - NORTH,OTHER TRANSPORT ARRANGEMENTS,16/05/2022,10074078581,78.00,STAGECOACH SERVICE
OXFORDSHIRE CC,"CHILDRENS, YOUNG PEOPLE AND FAMILIES",FAMILY SOLUTIONS PLUS NON-STAFF - NORTH,OTHER TRANSPORT ARRANGEMENTS,16/05/2022,10074078589,78.00,STAGECOACH SERVICE
OXFORDSHIRE CC,"CHILDRENS, YOUNG PEOPLE AND FAMILIES",EYNSHAM,CATERING,16/05/2022,10074079755,56.94,DOMINO S PIZZA
OXFORDSHIRE CC,"CHILDRENS, YOUNG PEOPLE AND FAMILIES",EYNSHAM,CATERING PROVISIONS,16/05/2022,10074079731,7.50,MAYFIELDEGGS
OXFORDSHIRE CC,"CHILDRENS, YOUNG PEOPLE AND FAMILIES",UASC 16&17,OTHER EXPENSES,16/05/2022,10074079799,84.99,EBAY O 14-08622-42992
OXFORDSHIRE CC,"CHILDRENS, YOUNG PEOPLE AND FAMILIES",UASC 16&17,OTHER EXPENSES,16/05/2022,10074079795,59.90,EBAY O 06-08624-64243
OXFORDSHIRE CC,"CHILDRENS, YOUNG PEOPLE AND FAMILIES",CHILDREN IN CARE NON-STAFFING - CENTRL 1,PAYMENTS TO TRANSPORT OPERATORS,16/05/2022,10074077569,27.60,THETRAINLINE.COM
OXFORDSHIRE CC,"CHILDRENS, YOUNG PEOPLE AND FAMILIES",CHILDREN IN CARE NON-STAFFING - CENTRL 1,HIRE OF ACCOMMODATION AND FACILITIES,16/05/2022,10074077575,342.00,JURYS INN OXFORD HOTEL
OXFORDSHIRE CC,"CHILDRENS, YOUNG PEOPLE AND FAMILIES",FAMILY SOLUTIONS PLUS NON-STAFF � SOUTH,HIRE OF ACCOMMODATION AND FACILITIES,16/05/2022,10074077583,507.20,JURYS INN OXFORD HOTEL
OXFORDSHIRE CC,"CHILDRENS, YOUNG PEOPLE AND FAMILIES",FAMILY SOLUTIONS PLUS NON-STAFF � SOUTH,HIRE OF ACCOMMODATION AND FACILITIES,16/05/2022,10074077587,500.00,JURYS INN OXFORD HOTEL
OXFORDSHIRE CC,"CHILDRENS, YOUNG PEOPLE AND FAMILIES","	LEAVING CARE CITY 2",CATERING,16/05/2022,10074078609,4.35,BICESTER STARBUCK
OXFORDSHIRE CC,"CHILDRENS, YOUNG PEOPLE AND FAMILIES",FAMILY SOLUTIONS PLUS NON-STAFF � SOUTH,PAYMENTS TO TRANSPORT OPERATORS,16/05/2022,10074078617,62.50,WWW.TAXICODE.COM
OXFORDSHIRE CC,SOCIAL AND COMMUNITY SERVICES,CSS WITNEY,CATERING PROVISIONS,16/05/2022,10074078659,5.60,TESCO STORES
OXFORDSHIRE CC,"CHILDRENS, YOUNG PEOPLE AND FAMILIES",FAMILY SOLUTIONS PLUS NON-STAFF � SOUTH,OTHER TRANSPORT ARRANGEMENTS,16/05/2022,10074078619,58.80,GOGREENT
OXFORDSHIRE CC,ENVIRONMENT AND ECONOMY,"	ABBEY HOUSE",MATERIALS,16/05/2022,10074078633,5.00,POUNDLAND LTD 1366
OXFORDSHIRE CC,"CHILDRENS, YOUNG PEOPLE AND FAMILIES",CNTL ERLY HELP-BBLEY,CATERING,16/05/2022,10074079825,30.00,NANDOS DIDCOT
OXFORDSHIRE CC,SOCIAL AND COMMUNITY SERVICES,PROPERTY CLEANING,CATERING PROVISIONS,16/05/2022,10074077639,8.40,MILK AND MORE (RECUR
OXFORDSHIRE CC,SOCIAL AND COMMUNITY SERVICES,SCHOOLS FM CATERING AREA 2,CATERING PROVISIONS,16/05/2022,10074077705,56.75,SAINSBURY'S S/MKT
OXFORDSHIRE CC,ENVIRONMENT AND ECONOMY,OXFDSHIRE PUBLIC SPACE INNOVATION NETWK,PAYMENTS TO TRANSPORT OPERATORS,16/05/2022,10074077667,87.32,THETRAINLINE.COM
OXFORDSHIRE CC,"CHILDRENS, YOUNG PEOPLE AND FAMILIES",MARKETING,MATERIALS,16/05/2022,10074077677,-9.99,CURRYS ONLINE
OXFORDSHIRE CC,"CHILDRENS, YOUNG PEOPLE AND FAMILIES",EYNSHAM,SUBSCRIPTIONS,16/05/2022,10074079903,10.99,NETFLIX.COM
OXFORDSHIRE CC,SOCIAL AND COMMUNITY SERVICES,FLEET OPERATIONS,EDUCATIONAL AND VOCATIONAL TRAINING ,16/05/2022,10074079893,240.00,PROTRAININGS
OXFORDSHIRE CC,CORPORATE CORE,,STATIONERY,16/05/2022,10074079911,38.11,LYRECO UK LTD
OXFORDSHIRE CC,CORPORATE CORE,,STATIONERY,16/05/2022,10074079915,90.14,LYRECO UK LTD
OXFORDSHIRE CC,CORPORATE CORE,,STATIONERY,16/05/2022,10074079917,10.56,LYRECO UK LTD
OXFORDSHIRE CC,CORPORATE CORE,,STATIONERY,16/05/2022,10074079923,100.51,LYRECO UK LTD
OXFORDSHIRE CC,CORPORATE CORE,,STATIONERY,16/05/2022,10074079929,154.37,LYRECO UK LTD
OXFORDSHIRE CC,SOCIAL AND COMMUNITY SERVICES,"	HISTORY SERVICE",OTHER TRAINING COURSES AND QUALIFICATION,16/05/2022,10074077737,102.00,SJA SUPPLIES TRAINING
OXFORDSHIRE CC,CORPORATE CORE,CENTRAL BUYING TEAM,PAYMENT TO GOVERNMENT DEPARTMENTS,16/05/2022,10074077719,600.00,WWW.CENTRALBEDFORDSHIR
OXFORDSHIRE CC,SOCIAL AND COMMUNITY SERVICES,CSS - BANBURY,MATERIALS,16/05/2022,10074077731,22.95,AMZNMKTPLACE AMAZON.CO
OXFORDSHIRE CC,CORPORATE CORE,"MARKETING, COMMUNICATIONS & ENGAGEMENT","PUBLICITY, PROMOTIONS AND ADVERTISEMENT",16/05/2022,10074078749,500.00,FACEBK TJ2V9EB9Z2
OXFORDSHIRE CC,CORPORATE CORE,"MARKETING, COMMUNICATIONS & ENGAGEMENT","PUBLICITY, PROMOTIONS AND ADVERTISEMENT",16/05/2022,10074078751,6.02,SNAP INC SNAP SNAP ADS
OXFORDSHIRE CC,CORPORATE CORE,"MARKETING, COMMUNICATIONS & ENGAGEMENT","PUBLICITY, PROMOTIONS AND ADVERTISEMENT",16/05/2022,10074078739,17.93,SNAP INC SNAP SNAP ADS
OXFORDSHIRE CC,CORPORATE CORE,"MARKETING, COMMUNICATIONS & ENGAGEMENT","PUBLICITY, PROMOTIONS AND ADVERTISEMENT",16/05/2022,10074078745,5.47,SNAP INC SNAP SNAP ADS
OXFORDSHIRE CC,"CHILDRENS, YOUNG PEOPLE AND FAMILIES",DIDCOT MOVE-ON HOME,DOMESTIC AND CLEANING EQUIPMENT,16/05/2022,10074079967,50.49,B&M 514 - DICOT
OXFORDSHIRE CC,SOCIAL AND COMMUNITY SERVICES,LIBRARY PROJECTS,MATERIALS,16/05/2022,10074079951,7.99,AMAZON PRIME 2572J5L74
OXFORDSHIRE CC,"CHILDRENS, YOUNG PEOPLE AND FAMILIES",DIDCOT MOVE-ON HOME,CATERING PROVISIONS,16/05/2022,10074079973,43.76,TESCO STORE 2413
OXFORDSHIRE CC,"CHILDRENS, YOUNG PEOPLE AND FAMILIES",THAME E&A HOME,CATERING PROVISIONS,16/05/2022,10074077835,185.32,TESCO STORES 2038
OXFORDSHIRE CC,SOCIAL AND COMMUNITY SERVICES,CSS - OXFORD,CATERING PROVISIONS,16/05/2022,10074077859,54.56,ALDI STORES 775-142
OXFORDSHIRE CC,"CHILDRENS, YOUNG PEOPLE AND FAMILIES",THAME E&A HOME,PURCHASE OF IT EQUIPMENT,16/05/2022,10074077843,39.21,AMZNMKTPLACE AMAZON.CO
OXFORDSHIRE CC,CORPORATE CORE,OPERATIONS,HEALTH AND SAFETY EQUIPMENT,16/05/2022,10074078833,41.31,AMZNMKTPLACE
OXFORDSHIRE CC,CORPORATE CORE,OPERATIONS,HEALTH AND SAFETY EQUIPMENT,16/05/2022,10074078837,27.54,AMZNMKTPLACE
OXFORDSHIRE CC,CORPORATE CORE,OPERATIONS,MATERIALS,16/05/2022,10074078839,4.89,AMZNMKTPLACE
OXFORDSHIRE CC,"CHILDRENS, YOUNG PEOPLE AND FAMILIES",FAMILY SOLUTIONS PLUS NON-STAFF � SOUTH,PAYMENTS TO TRANSPORT OPERATORS,16/05/2022,10074077891,73.97,TRAINLINE.COM
OXFORDSHIRE CC,CORPORATE CORE,"	PERSONNEL",PROFESSIONAL SUBSCRIPTIONS,16/05/2022,10074077899,163.00,CIPD MEMBERSHIP FEE
OXFORDSHIRE CC,"CHILDRENS, YOUNG PEOPLE AND FAMILIES",DIDCOT MOVE-ON HOME,MATERIALS,16/05/2022,10074080073,38.48,AMZNMKTPLACE
OXFORDSHIRE CC,"CHILDRENS, YOUNG PEOPLE AND FAMILIES","	LEAVING CARE NORTH",CATERING PROVISIONS,16/05/2022,10074080083,67.35,BBCLOTHING.CO.UK
OXFORDSHIRE CC,"CHILDRENS, YOUNG PEOPLE AND FAMILIES","	LEAVING CARE NORTH",MATERIALS,16/05/2022,10074080087,200.00,AMAZON.CO.UK 2D1P21YV4
OXFORDSHIRE CC,"CHILDRENS, YOUNG PEOPLE AND FAMILIES",FAMILY SOLUTIONS PLUS NON-STAFF � SOUTH,MATERIALS,16/05/2022,10074080091,96.00,ARGOS LTD
OXFORDSHIRE CC,"CHILDRENS, YOUNG PEOPLE AND FAMILIES",THAME E&A HOME,MATERIALS,16/05/2022,10074080099,20.54,AMAZON.CO.UK 253L12OS4
OXFORDSHIRE CC,"CHILDRENS, YOUNG PEOPLE AND FAMILIES",THAME E&A HOME,CATERING PROVISIONS,16/05/2022,10074080107,1.25,SAINSBURYS S/MKTS
OXFORDSHIRE CC,"CHILDRENS, YOUNG PEOPLE AND FAMILIES",THAME E&A HOME,ENTERTAINMENT EXPENSES,16/05/2022,10074080111,63.98,ABSOLUTELY LEISURE.
OXFORDSHIRE CC,SHARED SERVICES,CSC SUPP & SERVICES,PURCHASE OF IT EQUIPMENT,16/05/2022,10074077991,5.69,AMZNMKTPLACE
OXFORDSHIRE CC,"CHILDRENS, YOUNG PEOPLE AND FAMILIES",40 THE MOORS,CATERING PROVISIONS,16/05/2022,10074077957,334.91,TESCO STORES 4480
OXFORDSHIRE CC,"CHILDRENS, YOUNG PEOPLE AND FAMILIES",40 THE MOORS,HARDWARE AND CROCKERY,16/05/2022,10074077961,107.96,WWW.SCREWFIX.COM
OXFORDSHIRE CC,"CHILDRENS, YOUNG PEOPLE AND FAMILIES","	LOOKED AFTER CITY 2",OTHER TRANSPORT ARRANGEMENTS,16/05/2022,10074078961,9.00,OXFORDBUS.CO.UK
OXFORDSHIRE CC,SOCIAL AND COMMUNITY SERVICES,"	MUSEUMS COLLECTIONS",CATERING PROVISIONS,16/05/2022,10074078937,3.24,MILK AND MORE (RECUR
OXFORDSHIRE CC,"CHILDRENS, YOUNG PEOPLE AND FAMILIES","	LOOKED AFTER CITY 2",SUBSCRIPTIONS,16/05/2022,10074078949,87.14,HOLLYWOOD BOWL
OXFORDSHIRE CC,"CHILDRENS, YOUNG PEOPLE AND FAMILIES","	LOOKED AFTER CITY 2",OTHER TRANSPORT ARRANGEMENTS,16/05/2022,10074078957,7.30,STAGECOACH BUS
OXFORDSHIRE CC,CORPORATE CORE,"	LEGAL SERVICES",STATIONERY,16/05/2022,10074079005,45.00,AMZNMKTPLACE
OXFORDSHIRE CC,"CHILDRENS, YOUNG PEOPLE AND FAMILIES","	RIVERSIDE CENTRE",VEHICLE FUEL,16/05/2022,10074079013,107.40,SAINSBURYS PETROL
OXFORDSHIRE CC,"CHILDRENS, YOUNG PEOPLE AND FAMILIES","	RIVERSIDE CENTRE",ROAD FUND LICENCES AND MOTS,16/05/2022,10074079021,167.50,DVLA VEHICLE TAX
OXFORDSHIRE CC,"CHILDRENS, YOUNG PEOPLE AND FAMILIES","	OCCG GRANT",BIRTHDAY ALLOWANCE,16/05/2022,10074078043,10.00,SPORTSDIRECT 218
OXFORDSHIRE CC,"CHILDRENS, YOUNG PEOPLE AND FAMILIES",NTS UASC AGENCY,MATERIALS,16/05/2022,10074080127,11.97,WH SMITH
OXFORDSHIRE CC,"CHILDRENS, YOUNG PEOPLE AND FAMILIES","	LOOKED AFTER CITY 2",PAYMENT TO GOVERNMENT DEPARTMENTS,16/05/2022,10074077999,54.00,HM PASSPORT OFFICE
OXFORDSHIRE CC,"CHILDRENS, YOUNG PEOPLE AND FAMILIES","	OCCG GRANT",BIRTHDAY ALLOWANCE,16/05/2022,10074078037,3.00,SAINSBURYS S/MKTS
OXFORDSHIRE CC,"CHILDRENS, YOUNG PEOPLE AND FAMILIES","	OCCG GRANT",BIRTHDAY ALLOWANCE,16/05/2022,10074078031,2.00,POUNDLAND LTD 1586
OXFORDSHIRE CC,"CHILDRENS, YOUNG PEOPLE AND FAMILIES",UASC 16&17,HIRE OF ACCOMMODATION AND FACILITIES,16/05/2022,10074079071,269.75,TRAVELODGE
OXFORDSHIRE CC,"CHILDRENS, YOUNG PEOPLE AND FAMILIES",THAME E&A HOME,MATERIALS,16/05/2022,10074079031,57.13,ROBERT DYAS HOLDNG LTD
OXFORDSHIRE CC,"CHILDRENS, YOUNG PEOPLE AND FAMILIES",UASC 16&17,CATERING PROVISIONS,16/05/2022,10074079077,6.25,WELCOME B/WAITROSE PEA
OXFORDSHIRE CC,"CHILDRENS, YOUNG PEOPLE AND FAMILIES",UASC 16&17,CATERING PROVISIONS,16/05/2022,10074079081,10.55,WELCOME B/WAITROSE PEA
OXFORDSHIRE CC,"CHILDRENS, YOUNG PEOPLE AND FAMILIES","	LOOKED AFTER CITY 2",VEHICLE FUEL,16/05/2022,10074079091,30.01,BP FAMILY FARM CONNECT
OXFORDSHIRE CC,"CHILDRENS, YOUNG PEOPLE AND FAMILIES","	LEAVING CARE NORTH",OTHER TRANSPORT ARRANGEMENTS,16/05/2022,10074079111,30.00,OXFORDBUS.CO.UK
OXFORDSHIRE CC,"CHILDRENS, YOUNG PEOPLE AND FAMILIES","	LOOKED AFTER CITY 2",PROFESSIONAL SUBSCRIPTIONS,16/05/2022,10074079099,15.00,CITIZENCARD
OXFORDSHIRE CC,ENVIRONMENT AND ECONOMY,"	BUSINESS SYST STAFF",PAYMENTS TO TRANSPORT OPERATORS,16/05/2022,10074078069,80.30,WWW.GWR.COM
OXFORDSHIRE CC,"CHILDRENS, YOUNG PEOPLE AND FAMILIES",UASC 16&17,CATERING PROVISIONS,16/05/2022,10074078057,19.94,TESCO STORE 3230
OXFORDSHIRE CC,"CHILDRENS, YOUNG PEOPLE AND FAMILIES","	OCCG GRANT",CATERING PROVISIONS,16/05/2022,10074078061,6.32,TESCO STORES 2008
OXFORDSHIRE CC,"CHILDRENS, YOUNG PEOPLE AND FAMILIES","	OCCG GRANT",MATERIALS,16/05/2022,10074078063,20.00,TIMPSON LTD
OXFORDSHIRE CC,"CHILDRENS, YOUNG PEOPLE AND FAMILIES","	LOOKED AFTER NORTH",CATERING,16/05/2022,10074078081,8.09,SUBWAY
OXFORDSHIRE CC,"CHILDRENS, YOUNG PEOPLE AND FAMILIES",VULNERABLE LEARNERS,EDUCATIONAL AND VOCATIONAL TRAINING ,16/05/2022,10074078085,252.00,WESTMINSTER FORUM PROJ
OXFORDSHIRE CC,"CHILDRENS, YOUNG PEOPLE AND FAMILIES",VULNERABLE LEARNERS,EDUCATIONAL AND VOCATIONAL TRAINING ,16/05/2022,10074078091,252.00,WESTMINSTER FORUM PROJ
OXFORDSHIRE CC,SOCIAL AND COMMUNITY SERVICES,CSS - OXFORD,MATERIALS,13/05/2022,10066637283,12.95,AMZNMKTPLACE
OXFORDSHIRE CC,SOCIAL AND COMMUNITY SERVICES,CSS BICESTER,MATERIALS,13/05/2022,10066637269,32.31,AMZNMKTPLACE
OXFORDSHIRE CC,SOCIAL AND COMMUNITY SERVICES,CSS BICESTER,MATERIALS,13/05/2022,10066637273,23.00,AMZNMKTPLACE
OXFORDSHIRE CC,"CHILDRENS, YOUNG PEOPLE AND FAMILIES",MARKETING,EXHIBITIONS (PURCHAS,13/05/2022,10066637277,75.00,SUMUP   OXFORD PRIDE G
OXFORDSHIRE CC,SOCIAL AND COMMUNITY SERVICES,CSS WALLINGFORD,CATERING PROVISIONS,13/05/2022,10066637295,8.40,WAITROSE 675
OXFORDSHIRE CC,"CHILDRENS, YOUNG PEOPLE AND FAMILIES",KINGFISHER,HIRE OF ACCOMMODATION AND FACILITIES,13/05/2022,10066637331,588.97,TRAVELODGE
OXFORDSHIRE CC,"CHILDRENS, YOUNG PEOPLE AND FAMILIES",STH EARLY HELP-ABNDN,OTHER TRANSPORT ARRANGEMENTS,13/05/2022,10066637335,83.50,STAGECOACH SERVICE
OXFORDSHIRE CC,CORPORATE CORE,"	CHAIRMANS ALLOWANCE",IT SOFTWARE,13/05/2022,10066637337,14.49,SP ENGRAVED-PLAQUES.
OXFORDSHIRE CC,SOCIAL AND COMMUNITY SERVICES,CSS WANTAGE,MATERIALS,13/05/2022,10066638087,38.00,AMZNMKTPLACE
OXFORDSHIRE CC,SOCIAL AND COMMUNITY SERVICES,CSS WANTAGE,ENTERTAINMENT EXPENSES,13/05/2022,10066638085,14.00,HOLLYWOOD BOWL
OXFORDSHIRE CC,CORPORATE CORE,"MARKETING, COMMUNICATIONS & ENGAGEMENT","PUBLICITY, PROMOTIONS AND ADVERTISEMENT",13/05/2022,10066638103,57.37,LINKEDIN 7852268134
OXFORDSHIRE CC,"CHILDRENS, YOUNG PEOPLE AND FAMILIES","	C&I BASE LORD WILL'M",MATERIALS,13/05/2022,10066637381,37.41,AMAZON.CO.UK 2D5HT1WY4
OXFORDSHIRE CC,"CHILDRENS, YOUNG PEOPLE AND FAMILIES",HOUSE PROJECT,CATERING PROVISIONS,13/05/2022,10066637389,4.15,SAINSBURY'S S/MKT
OXFORDSHIRE CC,"CHILDRENS, YOUNG PEOPLE AND FAMILIES",HOUSE PROJECT,CATERING PROVISIONS,13/05/2022,10066637391,4.45,SAINSBURYS S/MKTS
OXFORDSHIRE CC,SOCIAL AND COMMUNITY SERVICES,BUSINESS SUPPORT SERVICE,MATERIALS,13/05/2022,10066638113,49.99,AMZNMKTPLACE
OXFORDSHIRE CC,"CHILDRENS, YOUNG PEOPLE AND FAMILIES","	LOOKED AFTER CITY 2",CATERING PROVISIONS,13/05/2022,10066638117,29.99,TESCO STORES 5363
OXFORDSHIRE CC,"CHILDRENS, YOUNG PEOPLE AND FAMILIES","	LEAVING CARE SOUTH",CATERING,13/05/2022,10066638121,9.84,MCDONALDS
OXFORDSHIRE CC,CORPORATE CORE,ICT OPERATIONS & MAI,MATERIALS,13/05/2022,10066638123,14.99,AMZNMKTPLACE
OXFORDSHIRE CC,SOCIAL AND COMMUNITY SERVICES,CSS WANTAGE,CATERING PROVISIONS,13/05/2022,10066637023,2.10,TESCO STORES 2008
OXFORDSHIRE CC,"CHILDRENS, YOUNG PEOPLE AND FAMILIES",HOUSE PROJECT,PAYMENTS TO TRANSPORT OPERATORS,13/05/2022,10066637395,25.70,OXFORD PARKWAY
OXFORDSHIRE CC,"CHILDRENS, YOUNG PEOPLE AND FAMILIES",HOUSE PROJECT,PAYMENTS TO TRANSPORT OPERATORS,13/05/2022,10066637397,23.10,OXFORD PARKWAY
OXFORDSHIRE CC,"CHILDRENS, YOUNG PEOPLE AND FAMILIES",HOUSE PROJECT,PAYMENTS TO TRANSPORT OPERATORS,13/05/2022,10066637401,-22.75,OXFORD PARKWAY
OXFORDSHIRE CC,"CHILDRENS, YOUNG PEOPLE AND FAMILIES",EYNSHAM,CATERING PROVISIONS,13/05/2022,10066637409,15.95,CO-OPERATIVE FOOD
OXFORDSHIRE CC,"CHILDRENS, YOUNG PEOPLE AND FAMILIES",HOUSE PROJECT,CATERING PROVISIONS,13/05/2022,10066637425,3.53,SAINSBURYS S/MKTS
OXFORDSHIRE CC,"CHILDRENS, YOUNG PEOPLE AND FAMILIES",HOUSE PROJECT,CATERING PROVISIONS,13/05/2022,10066637429,5.10,SAINSBURYS S/MKTS
OXFORDSHIRE CC,"CHILDRENS, YOUNG PEOPLE AND FAMILIES",FPT SOUTH/VALE,CATERING PROVISIONS,13/05/2022,10066638125,7.95,WAITROSE 211
OXFORDSHIRE CC,CORPORATE CORE,"	LEGAL SERVICES",PURCHASE OF IT EQUIPMENT,13/05/2022,10066638023,32.96,AMZNMKTPLACE AMAZON.CO
OXFORDSHIRE CC,SOCIAL AND COMMUNITY SERVICES,"	MUSEUMS COLLECTIONS",OTHER SERVICES,13/05/2022,10066638029,32.98,AMZNMKTPLACE AMAZON.CO
OXFORDSHIRE CC,SOCIAL AND COMMUNITY SERVICES,"	MUSEUMS COLLECTIONS",OTHER SERVICES,13/05/2022,10066638035,10.80,AMZNMKTPLACE AMAZON.CO
OXFORDSHIRE CC,"CHILDRENS, YOUNG PEOPLE AND FAMILIES",KINGFISHER,OTHER TRANSPORT ARRANGEMENTS,13/05/2022,10066638057,11.00,WESTGATE OXFORD CAR PA
OXFORDSHIRE CC,CORPORATE CORE,LIBRARY COLLECTIONS,"BOOKS, DVDS AND CDS",13/05/2022,10066637481,199.30,OVERDRIVE DIST
OXFORDSHIRE CC,"CHILDRENS, YOUNG PEOPLE AND FAMILIES",UASC 16&17,RESIDENTIAL ACTIVITIES,13/05/2022,10066637485,59.99,TK MAXX
OXFORDSHIRE CC,"CHILDRENS, YOUNG PEOPLE AND FAMILIES",PAUSE PROGRAMME,CATERING PROVISIONS,13/05/2022,10066637493,7.75,SAINSBURYS S/MKTS
OXFORDSHIRE CC,"CHILDRENS, YOUNG PEOPLE AND FAMILIES",DIDCOT MOVE-ON HOME,CATERING PROVISIONS,13/05/2022,10066638169,8.30,TESCO STORE 2413
OXFORDSHIRE CC,CORPORATE CORE,,STATIONERY,13/05/2022,10066638149,40.61,LYRECO UK LTD
OXFORDSHIRE CC,"CHILDRENS, YOUNG PEOPLE AND FAMILIES",NTH EARLY HELP-WITNY,CATERING PROVISIONS,13/05/2022,10066638157,19.19,WAITROSE 142
OXFORDSHIRE CC,"CHILDRENS, YOUNG PEOPLE AND FAMILIES",DIDCOT MOVE-ON HOME,CATERING PROVISIONS,13/05/2022,10066637509,23.17,SAINSBURYS S/MKTS
OXFORDSHIRE CC,"CHILDRENS, YOUNG PEOPLE AND FAMILIES",FSP NON-STAFFING - CENTRAL,CATERING PROVISIONS,13/05/2022,10066637497,7.15,SAINSBURYS S/MKTS
OXFORDSHIRE CC,"CHILDRENS, YOUNG PEOPLE AND FAMILIES","	RIVERSIDE CENTRE",CATERING PROVISIONS,13/05/2022,10066637501,248.00,ENDLESS RIVER LTD
OXFORDSHIRE CC,"CHILDRENS, YOUNG PEOPLE AND FAMILIES","	LAC PUPIL PREMIUM",PURCHASE OF IT EQUIPMENT,13/05/2022,10066637505,299.00,AMZNMKTPLACE
OXFORDSHIRE CC,"CHILDRENS, YOUNG PEOPLE AND FAMILIES",SCHOOLS FM CATERING AREA 3,CATERING PROVISIONS,13/05/2022,10066637525,4.13,ALDI STORES 775-141
OXFORDSHIRE CC,"CHILDRENS, YOUNG PEOPLE AND FAMILIES",SCHOOLS FM CATERING AREA 3,MATERIALS,13/05/2022,10066637531,7.98,HOME BARGAINS
OXFORDSHIRE CC,"CHILDRENS, YOUNG PEOPLE AND FAMILIES",NTS UASC AGENCY,CATERING PROVISIONS,13/05/2022,10066638227,13.45,TESCO STORE 2994
OXFORDSHIRE CC,SOCIAL AND COMMUNITY SERVICES,CSS WANTAGE,MATERIALS,13/05/2022,10066637027,22.00,TESCO STORES 2008
OXFORDSHIRE CC,"CHILDRENS, YOUNG PEOPLE AND FAMILIES",CSS WALLINGFORD,CATERING PROVISIONS,13/05/2022,10066637031,3.90,WAITROSE 675
OXFORDSHIRE CC,"CHILDRENS, YOUNG PEOPLE AND FAMILIES",FSP NON-STAFFING - CENTRAL,OTHER TRANSPORT ARRANGEMENTS,13/05/2022,10066637049,18.00,WESTGATE OXFORD CAR PA
OXFORDSHIRE CC,"CHILDRENS, YOUNG PEOPLE AND FAMILIES",WITNEY,CATERING PROVISIONS,13/05/2022,10066637551,49.30,SAINSBURYS S/MKTS
OXFORDSHIRE CC,"CHILDRENS, YOUNG PEOPLE AND FAMILIES",FAMILY SOLUTIONS PLUS NON-STAFF - NORTH,PAYMENTS TO TRANSPORT OPERATORS,13/05/2022,10066637579,21.08,TRAINLINE.COM
OXFORDSHIRE CC,"CHILDRENS, YOUNG PEOPLE AND FAMILIES",FAMILY SOLUTIONS PLUS NON-STAFF - NORTH,HIRE OF ACCOMMODATION AND FACILITIES,13/05/2022,10066637585,99.00,NEWTON HOUSE
OXFORDSHIRE CC,"CHILDRENS, YOUNG PEOPLE AND FAMILIES",FAMILY SOLUTIONS PLUS NON-STAFF - NORTH,HIRE OF ACCOMMODATION AND FACILITIES,13/05/2022,10066637587,38.50,TRAVELODGE
OXFORDSHIRE CC,"CHILDRENS, YOUNG PEOPLE AND FAMILIES",FAMILY SOLUTIONS PLUS NON-STAFF - NORTH,HIRE OF ACCOMMODATION AND FACILITIES,13/05/2022,10066637587,605.55,TRAVELODGE
OXFORDSHIRE CC,ENVIRONMENT AND ECONOMY,BANBURY LIBRARY,MATERIALS,13/05/2022,10066637591,9.28,PAYPAL  FABRICLANDB
OXFORDSHIRE CC,"CHILDRENS, YOUNG PEOPLE AND FAMILIES",EYNSHAM,FURNITURE,13/05/2022,10066637065,18.98,AMZNMKTPLACE
OXFORDSHIRE CC,ENVIRONMENT AND ECONOMY,HOLDING CODE FOR REA,VEHICLE FUEL,13/05/2022,10066637103,28.99,ESSO THAME SERVICE ARE
OXFORDSHIRE CC,SOCIAL AND COMMUNITY SERVICES,CSS - ABINGDON,MATERIALS,13/05/2022,10066637079,12.00,POUNDLAND LTD 1366
OXFORDSHIRE CC,SOCIAL AND COMMUNITY SERVICES,CSS WANTAGE,ENTERTAINMENT EXPENSES,13/05/2022,10066638083,7.00,HOLLYWOOD BOWL
OXFORDSHIRE CC,"CHILDRENS, YOUNG PEOPLE AND FAMILIES",EET SERVICE,MATERIALS,13/05/2022,10066637325,3.99,AMZNMKTPLACE AMAZON.CO
OXFORDSHIRE CC,"CHILDRENS, YOUNG PEOPLE AND FAMILIES",CSS - DIDCOT,CATERING PROVISIONS,13/05/2022,10066637317,25.30,TESCO STORES 2008
OXFORDSHIRE CC,SOCIAL AND COMMUNITY SERVICES,CSS - OXFORD,CATERING PROVISIONS,13/05/2022,10066637329,41.59,ALDI STORES 775-142
OXFORDSHIRE CC,"CHILDRENS, YOUNG PEOPLE AND FAMILIES","	LEAVING CARE SOUTH",PAYMENT TO GOVERNMENT DEPARTMENTS,13/05/2022,10066637619,22.00,REGISTRARS OFFICE
OXFORDSHIRE CC,"CHILDRENS, YOUNG PEOPLE AND FAMILIES",STH EARLY HELP-DDCOT,POSTAGE AND DELIVERY,13/05/2022,10066637631,7.65,POST OFFICE COUNTER
OXFORDSHIRE CC,"CHILDRENS, YOUNG PEOPLE AND FAMILIES",THAME E&A HOME,CATERING,13/05/2022,10066637637,14.99,MCDONALDS
OXFORDSHIRE CC,"CHILDRENS, YOUNG PEOPLE AND FAMILIES",UASC 16&17,TRANSPORT TO SCHOOL,13/05/2022,10066637115,25.00,OXFORD BUS CO
OXFORDSHIRE CC,"CHILDRENS, YOUNG PEOPLE AND FAMILIES",UASC 16&17,RESIDENTIAL ACTIVITIES,13/05/2022,10066637119,6.80,FLAG AND BUNTING STORE
OXFORDSHIRE CC,"CHILDRENS, YOUNG PEOPLE AND FAMILIES",KINGFISHER,MATERIALS,13/05/2022,10066637109,84.55,AMAZON.CO.UK 2D5JR9W34
OXFORDSHIRE CC,"CHILDRENS, YOUNG PEOPLE AND FAMILIES","	LOOKED AFTER CITY 1",TRANSPORT TO SCHOOL,13/05/2022,10066637139,9.00,OXFORD BUS COMPANY
OXFORDSHIRE CC,"CHILDRENS, YOUNG PEOPLE AND FAMILIES","	LOOKED AFTER CITY 1",OTHER EXPENSES,13/05/2022,10066637143,21.99,PARCELFORCE WORLDWIDE
OXFORDSHIRE CC,"CHILDRENS, YOUNG PEOPLE AND FAMILIES",HOUSE PROJECT,CATERING PROVISIONS,13/05/2022,10066637661,5.60,SAINSBURYS S/MKTS
OXFORDSHIRE CC,"CHILDRENS, YOUNG PEOPLE AND FAMILIES",HOUSE PROJECT,CATERING PROVISIONS,13/05/2022,10066637657,40.20,SAINSBURY'S S/MKT
OXFORDSHIRE CC,"CHILDRENS, YOUNG PEOPLE AND FAMILIES",FSP NON-STAFFING - CENTRAL,PAYMENTS TO TRANSPORT OPERATORS,13/05/2022,10066637685,70.00,WWW.GWR.COM
OXFORDSHIRE CC,"CHILDRENS, YOUNG PEOPLE AND FAMILIES",HOUSE PROJECT,CATERING PROVISIONS,13/05/2022,10066637665,4.54,SAINSBURYS S/MKTS
OXFORDSHIRE CC,"CHILDRENS, YOUNG PEOPLE AND FAMILIES",FAMILY SOLUTIONS PLUS NON-STAFF � SOUTH,PAYMENTS TO TRANSPORT OPERATORS,13/05/2022,10066637675,25.07,TRAINLINE.COM
OXFORDSHIRE CC,"CHILDRENS, YOUNG PEOPLE AND FAMILIES",FAMILY SOLUTIONS PLUS NON-STAFF � SOUTH,PURCHASE OF IT EQUIPMENT,13/05/2022,10066637679,36.44,MINICABIT
OXFORDSHIRE CC,"CHILDRENS, YOUNG PEOPLE AND FAMILIES",FSP NON-STAFFING - CENTRAL,MATERIALS,13/05/2022,10066637681,19.98,AMAZON.CO.UK 2D5MZ1RF4
OXFORDSHIRE CC,"CHILDRENS, YOUNG PEOPLE AND FAMILIES","	LEAVING CARE NORTH",MATERIALS,13/05/2022,10066637689,12.60,LUSH UK
OXFORDSHIRE CC,"CHILDRENS, YOUNG PEOPLE AND FAMILIES",DEPUTY DIRECTOR &MAN,MATERIALS,13/05/2022,10066637693,28.00,AMZNMKTPLACE AMAZON.CO
OXFORDSHIRE CC,"CHILDRENS, YOUNG PEOPLE AND FAMILIES",DEPUTY DIRECTOR &MAN,MATERIALS,13/05/2022,10066637693,13.82,AMZNMKTPLACE AMAZON.CO
OXFORDSHIRE CC,"CHILDRENS, YOUNG PEOPLE AND FAMILIES",CHILDREN IN CARE NON-STAFFING - NORTH,OTHER TRANSPORT ARRANGEMENTS,13/05/2022,10066637697,5.00,DART-CHARGE
OXFORDSHIRE CC,SOCIAL AND COMMUNITY SERVICES,SCHOOLS FM CATERING AREA 2,CATERING PROVISIONS,13/05/2022,10066637715,10.85,SAINSBURYS S/MKTS
OXFORDSHIRE CC,ENVIRONMENT AND ECONOMY,"	KNIGHTS COURT",STATIONERY,13/05/2022,10066637719,5.99,AMZNMKTPLACE
OXFORDSHIRE CC,"CHILDRENS, YOUNG PEOPLE AND FAMILIES","	LEAVING CARE CITY 2",CATERING PROVISIONS,13/05/2022,10066637737,8.50,WELCOME BREAK-PEARTREE
OXFORDSHIRE CC,"CHILDRENS, YOUNG PEOPLE AND FAMILIES",PAUSE PROGRAMME,CATERING,13/05/2022,10066637751,7.30,COSTA COFFEE
OXFORDSHIRE CC,ENVIRONMENT AND ECONOMY,"	NAT TRAILS GENERAL",HIRE OF ACCOMMODATION AND FACILITIES,13/05/2022,10066637743,43.90,THE LION AT SETTLE
OXFORDSHIRE CC,"CHILDRENS, YOUNG PEOPLE AND FAMILIES",PAUSE PROGRAMME,CATERING PROVISIONS,13/05/2022,10066637747,25.40,ALDI 99 775
OXFORDSHIRE CC,"CHILDRENS, YOUNG PEOPLE AND FAMILIES",PAUSE PROGRAMME,CATERING,13/05/2022,10066637755,11.45,THE PANINI SHOP
OXFORDSHIRE CC,"CHILDRENS, YOUNG PEOPLE AND FAMILIES",FAMILY SOLUTIONS PLUS NON-STAFF - NORTH,MATERIALS,13/05/2022,10066637801,256.95,ARGOS LTD
OXFORDSHIRE CC,SOCIAL AND COMMUNITY SERVICES,CSS - ABINGDON,MATERIALS,13/05/2022,10066637163,28.00,AMZNMKTPLACE AMAZON.CO
OXFORDSHIRE CC,"CHILDRENS, YOUNG PEOPLE AND FAMILIES","	LOOKED AFTER CITY 1","SUPPLIES, STATIONERY AND MATERIALS",13/05/2022,10066637147,1.00,WILKO RETAIL LIMITED
OXFORDSHIRE CC,SOCIAL AND COMMUNITY SERVICES,CSS - OXFORD,MATERIALS,13/05/2022,10066637153,7.58,AMZNMKTPLACE AMAZON.CO
OXFORDSHIRE CC,SOCIAL AND COMMUNITY SERVICES,CSS - OXFORD,MATERIALS,13/05/2022,10066637157,23.99,AMZNMKTPLACE AMAZON.CO
OXFORDSHIRE CC,SOCIAL AND COMMUNITY SERVICES,CSS - ABINGDON,MATERIALS,13/05/2022,10066637167,10.49,AMZNMKTPLACE AMAZON.CO
OXFORDSHIRE CC,CORPORATE CORE,"MARKETING, COMMUNICATIONS & ENGAGEMENT",PHOTOCOPYING,13/05/2022,10066637825,29.00,STK SHUTTERSTOCK
OXFORDSHIRE CC,"CHILDRENS, YOUNG PEOPLE AND FAMILIES",EYNSHAM,TELEPHONE - EQUIPMENT,13/05/2022,10066637433,10.00,GIFFGAFF
OXFORDSHIRE CC,"CHILDRENS, YOUNG PEOPLE AND FAMILIES",CHILDREN IN CARE NON-STAFFING - NORTH,REGISTRATION AND INSPECTION FEES,13/05/2022,10066637461,14.00,GEN REGISTER OFFICE
OXFORDSHIRE CC,CORPORATE CORE,LIBRARY COLLECTIONS,"BOOKS, DVDS AND CDS",13/05/2022,10066637477,"4,796.24",OVERDRIVE DIST
OXFORDSHIRE CC,ENVIRONMENT AND ECONOMY,HARD FM,HARDWARE AND CROCKERY,13/05/2022,10066637185,50.99,SCREWFIX DIR. LTD
OXFORDSHIRE CC,ENVIRONMENT AND ECONOMY,HARD FM,HARDWARE AND CROCKERY,13/05/2022,10066637171,31.63,WICKES OXFORD
OXFORDSHIRE CC,ENVIRONMENT AND ECONOMY,HARD FM,HARDWARE AND CROCKERY,13/05/2022,10066637175,346.80,MERKKO BUILDERS MERCHA
OXFORDSHIRE CC,ENVIRONMENT AND ECONOMY,HARD FM,HARDWARE AND CROCKERY,13/05/2022,10066637179,38.26,B & Q 1062
OXFORDSHIRE CC,ENVIRONMENT AND ECONOMY,HARD FM,HARDWARE AND CROCKERY,13/05/2022,10066637191,19.56,CITY PLUMBING
OXFORDSHIRE CC,ENVIRONMENT AND ECONOMY,HARD FM,HARDWARE AND CROCKERY,13/05/2022,10066637195,29.87,CITY PLUMBING
OXFORDSHIRE CC,ENVIRONMENT AND ECONOMY,"	TVERC","SUPPLIES, STATIONERY AND MATERIALS",13/05/2022,10066637201,11.45,PAYPAL  ROYAL MAIL
OXFORDSHIRE CC,SOCIAL AND COMMUNITY SERVICES,SERVICE IMPROVEMENT,TRAINING RELATED EXPENDITURE,13/05/2022,10066637205,282.90,KIRTLINGTON GOLF COURS
OXFORDSHIRE CC,SOCIAL AND COMMUNITY SERVICES,SERVICE IMPROVEMENT,TRAINING RELATED EXPENDITURE,13/05/2022,10066637209,322.20,KIRTLINGTON GOLF COURS
OXFORDSHIRE CC,SOCIAL AND COMMUNITY SERVICES,SERVICE IMPROVEMENT,TRAINING RELATED EXPENDITURE,13/05/2022,10066637211,124.00,KIRTLINGTON GOLF COURS
OXFORDSHIRE CC,"CHILDRENS, YOUNG PEOPLE AND FAMILIES",THAME E&A HOME,CATERING PROVISIONS,13/05/2022,10066637237,7.50,SAINSBURYS SUPERMA
OXFORDSHIRE CC,"CHILDRENS, YOUNG PEOPLE AND FAMILIES",THAME E&A HOME,OTHER TRANSPORT ARRANGEMENTS,13/05/2022,10066637243,12.00,OCC ON-STREET PARKING
OXFORDSHIRE CC,"CHILDRENS, YOUNG PEOPLE AND FAMILIES","	LEAVING CARE CITY 2",CATERING,13/05/2022,10066637255,3.60,COSTA COFFEE 43048140
OXFORDSHIRE CC,"CHILDRENS, YOUNG PEOPLE AND FAMILIES","	RESIDENTIAL STRATEGY",PAYMENT TO GOVERNMENT DEPARTMENTS,13/05/2022,10066637937,"3,349.00",OFSTED MOTO
OXFORDSHIRE CC,"CHILDRENS, YOUNG PEOPLE AND FAMILIES","	LOOKED AFTER CITY 2",OTHER TRANSPORT ARRANGEMENTS,13/05/2022,10066637957,9.00,OXFORDBUS.CO.UK
OXFORDSHIRE CC,"CHILDRENS, YOUNG PEOPLE AND FAMILIES",CHILDREN IN CARE NON-STAFFING - CENTRL 1,PAYMENT TO GOVERNMENT DEPARTMENTS,13/05/2022,10066637259,114.00,GEN REGISTER OFFICE
OXFORDSHIRE CC,"CHILDRENS, YOUNG PEOPLE AND FAMILIES","	FOSTER CARE RECRUIT",OTHER SERVICES,13/05/2022,10066637979,200.00,SUMUP   OXFORD PRIDE G
OXFORDSHIRE CC,"CHILDRENS, YOUNG PEOPLE AND FAMILIES",EET SERVICE,MATERIALS,13/05/2022,10066638019,11.99,AMZNMKTPLACE
OXFORDSHIRE CC,SOCIAL AND COMMUNITY SERVICES,CSS - ABINGDON,MANAGEMENT CONSULTANT FEES,13/05/2022,10066637083,159.00,TVLICENSING.CO.UK
OXFORDSHIRE CC,ENVIRONMENT AND ECONOMY,"	ROW MAINT",MATERIALS,13/05/2022,10066637087,97.69,OXON FASTENING SYSTEMS
OXFORDSHIRE CC,ENVIRONMENT AND ECONOMY,"	ROW MAINT",CLOTHING AND UNIFORMS,13/05/2022,10066637093,24.54,HONEY BROTHERS LTD
OXFORDSHIRE CC,ENVIRONMENT AND ECONOMY,"	ROW MAINT",VEHICLES AND PLANT - REPAIRS AND MAIN,13/05/2022,10066637097,28.46,HALFORDS ON LINE
OXFORDSHIRE CC,"CHILDRENS, YOUNG PEOPLE AND FAMILIES","	LEAVING CARE CITY 2",OTHER TRANSPORT ARRANGEMENTS,13/05/2022,10066637611,4.30,STGCOACH/CTYLINK
OXFORDSHIRE CC,ENVIRONMENT AND ECONOMY,BANBURY LIBRARY,MATERIALS,13/05/2022,10066637595,21.80,BAKER ROSS
OXFORDSHIRE CC,"CHILDRENS, YOUNG PEOPLE AND FAMILIES","	LEAVING CARE SOUTH",OTHER TRANSPORT ARRANGEMENTS,13/05/2022,10066637601,4.00,WESTGATE OXFORD CAR PA
OXFORDSHIRE CC,"CHILDRENS, YOUNG PEOPLE AND FAMILIES","	LEAVING CARE SOUTH",CATERING,13/05/2022,10066637605,6.90,PRET A MANGER
OXFORDSHIRE CC,ENVIRONMENT AND ECONOMY,"	KNIGHTS COURT",STATIONERY,12/05/2022,10061246673,1.20,AMZNMKTPLACE
OXFORDSHIRE CC,"CHILDRENS, YOUNG PEOPLE AND FAMILIES",FAMILY SOLUTIONS PLUS NON-STAFF - NORTH,CHILDCARE MANAGEMENT FEES,12/05/2022,10061246697,990.00,OXFORD ACTIVE LTD.
OXFORDSHIRE CC,"CHILDRENS, YOUNG PEOPLE AND FAMILIES","	LOOKED AFTER CITY 1",VEHICLE FUEL,12/05/2022,10061247257,40.02,SAINSBURYS S/MKTS
OXFORDSHIRE CC,SOCIAL AND COMMUNITY SERVICES,WALLINGFORD LIBRARY,MATERIALS,12/05/2022,10061247227,18.00,AMZNMKTPLACE AMAZON.CO
OXFORDSHIRE CC,"CHILDRENS, YOUNG PEOPLE AND FAMILIES",ATV ADOPTION OXFORD,POSTAGE AND DELIVERY,12/05/2022,10061246199,12.15,POST OFFICE COUNTER
OXFORDSHIRE CC,"CHILDRENS, YOUNG PEOPLE AND FAMILIES",HOUSE PROJECT,PAYMENTS TO TRANSPORT OPERATORS,12/05/2022,10061246211,11.77,TRAINLINE.COM
OXFORDSHIRE CC,"CHILDRENS, YOUNG PEOPLE AND FAMILIES",HOUSE PROJECT,OTHER TRANSPORT ARRANGEMENTS,12/05/2022,10061246217,9.50,GLOUCESTER STREET CAR
OXFORDSHIRE CC,"CHILDRENS, YOUNG PEOPLE AND FAMILIES",CHILDREN IN CARE NON-STAFFING - SOUTH,MATERIALS,12/05/2022,10061247343,26.92,HOME BARGAINS
OXFORDSHIRE CC,"CHILDRENS, YOUNG PEOPLE AND FAMILIES",CHILDREN IN CARE NON-STAFFING - SOUTH,CATERING,12/05/2022,10061247349,60.58,JUST EAT
OXFORDSHIRE CC,"CHILDRENS, YOUNG PEOPLE AND FAMILIES","	RESIDENTIAL STRATEGY",MATERIALS,12/05/2022,10061247355,118.27,AMAZON.CO.UK 2D59O99Q4
OXFORDSHIRE CC,SOCIAL AND COMMUNITY SERVICES,CSS - ABINGDON,CATERING PROVISIONS,12/05/2022,10061245703,48.79,TESCO STORES 2008
OXFORDSHIRE CC,"CHILDRENS, YOUNG PEOPLE AND FAMILIES",CHILDREN IN CARE NON-STAFFING - SOUTH,CATERING,12/05/2022,10061245657,64.57,UBER    EATS
OXFORDSHIRE CC,SOCIAL AND COMMUNITY SERVICES,CSS - ABINGDON,CATERING PROVISIONS,12/05/2022,10061245695,14.05,WAITROSE 211
OXFORDSHIRE CC,"CHILDRENS, YOUNG PEOPLE AND FAMILIES","	FPT NORTH",STAFF SUBSISTENCE,12/05/2022,10061246245,15.00,PLAS HAFOD HOTEL
OXFORDSHIRE CC,SOCIAL AND COMMUNITY SERVICES,CSS - OXFORD,MATERIALS,12/05/2022,10061245737,22.78,AMZNMKTPLACE AMAZON.CO
OXFORDSHIRE CC,ENVIRONMENT AND ECONOMY,HARD FM,HARDWARE AND CROCKERY,12/05/2022,10061245751,40.04,B AND Q
OXFORDSHIRE CC,SOCIAL AND COMMUNITY SERVICES,CSS BICESTER,MATERIALS,12/05/2022,10061245723,21.50,AMZNMKTPLACE
OXFORDSHIRE CC,"CHILDRENS, YOUNG PEOPLE AND FAMILIES","	LOOKED AFTER CITY 1",VEHICLE FUEL,12/05/2022,10061245729,33.02,ESSO BAYNARDS GN SSTN
OXFORDSHIRE CC,SOCIAL AND COMMUNITY SERVICES,CSS - OXFORD,MATERIALS,12/05/2022,10061245739,7.58,AMZNMKTPLACE AMAZON.CO
OXFORDSHIRE CC,ENVIRONMENT AND ECONOMY,HARD FM,HARDWARE AND CROCKERY,12/05/2022,10061245745,82.03,B AND Q
OXFORDSHIRE CC,ENVIRONMENT AND ECONOMY,HARD FM,HARDWARE AND CROCKERY,12/05/2022,10061245755,23.40,WICKES BANBURY
OXFORDSHIRE CC,ENVIRONMENT AND ECONOMY,HARD FM,HARDWARE AND CROCKERY,12/05/2022,10061245767,8.50,WICKES OXFORD
OXFORDSHIRE CC,ENVIRONMENT AND ECONOMY,HARD FM,HARDWARE AND CROCKERY,12/05/2022,10061245775,69.99,WWW.SCREWFIX.COM
OXFORDSHIRE CC,"CHILDRENS, YOUNG PEOPLE AND FAMILIES","	LEAVING CARE NORTH",CATERING,12/05/2022,10061245781,8.48,MCDONALDS
OXFORDSHIRE CC,"CHILDRENS, YOUNG PEOPLE AND FAMILIES",HOUSE PROJECT,OTHER TRANSPORT ARRANGEMENTS,12/05/2022,10061246289,7.00,WESTGATE OXFORD CAR PA
OXFORDSHIRE CC,"CHILDRENS, YOUNG PEOPLE AND FAMILIES","	OCCG GRANT",CATERING,12/05/2022,10061246301,8.20,COSTA COFFEE 43039930
OXFORDSHIRE CC,"CHILDRENS, YOUNG PEOPLE AND FAMILIES",CHILDREN IN CARE NON-STAFFING - NORTH,REGISTRATION AND INSPECTION FEES,12/05/2022,10061246309,11.00,GEN REGISTER OFFICE
OXFORDSHIRE CC,"CHILDRENS, YOUNG PEOPLE AND FAMILIES",0-5 STDS & PROGRESS,MATERIALS,12/05/2022,10061246317,128.78,AMZNMKTPLACE
OXFORDSHIRE CC,ENVIRONMENT AND ECONOMY,ELEC NPR ST LTG,MATERIALS,12/05/2022,10061245607,33.56,AMZNMKTPLACE AMAZON.CO
OXFORDSHIRE CC,"CHILDRENS, YOUNG PEOPLE AND FAMILIES",CSS WALLINGFORD,MATERIALS,12/05/2022,10061245591,19.05,AMZNMKTPLACE
OXFORDSHIRE CC,ENVIRONMENT AND ECONOMY,ELEC NPR ST LTG,MATERIALS,12/05/2022,10061245601,50.08,AMZNMKTPLACE
OXFORDSHIRE CC,"CHILDRENS, YOUNG PEOPLE AND FAMILIES",FSP NON-STAFFING - CENTRAL,MATERIALS,12/05/2022,10061246133,54.95,AMAZON.CO.UK 2D2D15IY4
OXFORDSHIRE CC,"CHILDRENS, YOUNG PEOPLE AND FAMILIES",FAMILY SOLUTIONS PLUS NON-STAFF � SOUTH,PAYMENTS TO TRANSPORT OPERATORS,12/05/2022,10061246105,75.25,TRAINLINE.COM
OXFORDSHIRE CC,"CHILDRENS, YOUNG PEOPLE AND FAMILIES",THAME E&A HOME,TELEPHONE - EQUIPMENT,12/05/2022,10061246109,10.00,SUPERDRUG MOBILE
OXFORDSHIRE CC,"CHILDRENS, YOUNG PEOPLE AND FAMILIES",40 THE MOORS,CATERING PROVISIONS,12/05/2022,10061246157,188.99,SAINSBURYS.CO.UK
OXFORDSHIRE CC,"CHILDRENS, YOUNG PEOPLE AND FAMILIES",FAMILY SOLUTIONS PLUS NON-STAFF - NORTH,MATERIALS,12/05/2022,10061246701,63.99,AMZNMKTPLACE
OXFORDSHIRE CC,SOCIAL AND COMMUNITY SERVICES,SCHOOLS FM CATERING AREA 2,CATERING,12/05/2022,10061246665,272.35,BOOKER LIMITED OXFORD
OXFORDSHIRE CC,"CHILDRENS, YOUNG PEOPLE AND FAMILIES",DIDCOT MOVE-ON HOME,DOMESTIC SUPPLIES,12/05/2022,10061246379,1.50,SAINSBURYS S/MKTS
OXFORDSHIRE CC,"CHILDRENS, YOUNG PEOPLE AND FAMILIES",PAUSE PROGRAMME,CATERING,12/05/2022,10061246355,9.40,COSTA TEMPLARS
OXFORDSHIRE CC,"CHILDRENS, YOUNG PEOPLE AND FAMILIES","	LAC PUPIL PREMIUM",PURCHASE OF IT EQUIPMENT,12/05/2022,10061246367,13.20,AMZNMKTPLACE
OXFORDSHIRE CC,"CHILDRENS, YOUNG PEOPLE AND FAMILIES",DIDCOT MOVE-ON HOME,CATERING PROVISIONS,12/05/2022,10061246373,3.00,SAINSBURYS S/MKTS
OXFORDSHIRE CC,"CHILDRENS, YOUNG PEOPLE AND FAMILIES",PAUSE PROGRAMME,CATERING PROVISIONS,12/05/2022,10061246347,19.00,ASDA STORE 4442
OXFORDSHIRE CC,"CHILDRENS, YOUNG PEOPLE AND FAMILIES",SCHOOLS FM CATERING AREA 3,CATERING PROVISIONS,12/05/2022,10061246405,8.86,ALDI STORES 775-141
OXFORDSHIRE CC,"CHILDRENS, YOUNG PEOPLE AND FAMILIES",SCHOOLS FM CATERING AREA 3,MATERIALS,12/05/2022,10061246413,69.95,AMZNMKTPLACE AMAZON.CO
OXFORDSHIRE CC,"CHILDRENS, YOUNG PEOPLE AND FAMILIES","	LOOKED AFTER CITY 2",PAYMENTS TO TRANSPORT OPERATORS,12/05/2022,10061246901,9.58,THETRAINLINE.COM
OXFORDSHIRE CC,"CHILDRENS, YOUNG PEOPLE AND FAMILIES","	LOOKED AFTER CITY 2",PAYMENTS TO TRANSPORT OPERATORS,12/05/2022,10061246907,37.45,THETRAINLINE.COM
OXFORDSHIRE CC,CORPORATE CORE,"	ORGANISATIONAL DEV'T",CATERING PROVISIONS,12/05/2022,10061246917,29.68,MARKS&SPENCER PLC
OXFORDSHIRE CC,CORPORATE CORE,"	ORGANISATIONAL DEV'T",CATERING PROVISIONS,12/05/2022,10061246919,5.25,MARKS&SPENCER PLC
OXFORDSHIRE CC,ENTERPRISEVC,,CAR LEASING - PRIVATE RENTALS,12/05/2022,10061247435,47.15,ENTERPRISE RENT-A-CAR
OXFORDSHIRE CC,ENTERPRISEVC,,CAR LEASING - PRIVATE RENTALS,12/05/2022,10061247423,51.95,ENTERPRISE RENT-A-CAR
OXFORDSHIRE CC,ENTERPRISEVC,,CAR LEASING - PRIVATE RENTALS,12/05/2022,10061247429,58.50,ENTERPRISE RENT-A-CAR
OXFORDSHIRE CC,ENTERPRISEVC,,CAR LEASING - PRIVATE RENTALS,12/05/2022,10061247433,26.75,ENTERPRISE RENT-A-CAR
OXFORDSHIRE CC,ENTERPRISEVC,,CAR LEASING - PRIVATE RENTALS,12/05/2022,10061247439,30.47,ENTERPRISE RENT-A-CAR
OXFORDSHIRE CC,ENTERPRISEVC,,CAR LEASING - PRIVATE RENTALS,12/05/2022,10061247443,71.75,ENTERPRISE RENT-A-CAR
OXFORDSHIRE CC,ENTERPRISEVC,,CAR LEASING - PRIVATE RENTALS,12/05/2022,10061247449,63.10,ENTERPRISE RENT-A-CAR
OXFORDSHIRE CC,ENTERPRISEVC,,CAR LEASING - PRIVATE RENTALS,12/05/2022,10061247453,71.75,ENTERPRISE RENT-A-CAR
OXFORDSHIRE CC,ENTERPRISEVC,,CAR LEASING - PRIVATE RENTALS,12/05/2022,10061247457,53.50,ENTERPRISE RENT-A-CAR
OXFORDSHIRE CC,ENTERPRISEVC,,CAR LEASING - PRIVATE RENTALS,12/05/2022,10061247461,46.93,ENTERPRISE RENT-A-CAR
OXFORDSHIRE CC,"CHILDRENS, YOUNG PEOPLE AND FAMILIES",MANAGEMENT RECHARGES,PAYMENTS TO VOLUNTARY BODIES,12/05/2022,10061246431,89.00,CVAA UK LTD
OXFORDSHIRE CC,"CHILDRENS, YOUNG PEOPLE AND FAMILIES",EET SERVICE,MATERIALS,12/05/2022,10061246943,4.99,AMZNMKTPLACE
OXFORDSHIRE CC,"CHILDRENS, YOUNG PEOPLE AND FAMILIES","	LEAVING CARE NORTH",MATERIALS,12/05/2022,10061246997,58.49,SPORTSDIRECT 218
OXFORDSHIRE CC,"CHILDRENS, YOUNG PEOPLE AND FAMILIES",NTH EARLY HELP-BNRBY,CATERING PROVISIONS,12/05/2022,10061247481,3.18,SPAR
OXFORDSHIRE CC,"CHILDRENS, YOUNG PEOPLE AND FAMILIES","	FPT NORTH",STAFF SUBSISTENCE,12/05/2022,10061246241,75.00,PLAS HAFOD HOTEL
OXFORDSHIRE CC,CORPORATE CORE,"MARKETING, COMMUNICATIONS & ENGAGEMENT","PUBLICITY, PROMOTIONS AND ADVERTISEMENT",12/05/2022,10061246767,22.50,SNAP INC SNAP SNAP ADS
OXFORDSHIRE CC,"CHILDRENS, YOUNG PEOPLE AND FAMILIES",HEADINGTON LIBRARY,MATERIALS,12/05/2022,10061246749,9.90,AMZNMKTPLACE
OXFORDSHIRE CC,"CHILDRENS, YOUNG PEOPLE AND FAMILIES",HEADINGTON LIBRARY,MATERIALS,12/05/2022,10061246757,4.99,AMZNMKTPLACE
OXFORDSHIRE CC,"CHILDRENS, YOUNG PEOPLE AND FAMILIES","	LOOKED AFTER SOUTH",CATERING,12/05/2022,10061247335,10.87,MCDONALD'S 0505
OXFORDSHIRE CC,"CHILDRENS, YOUNG PEOPLE AND FAMILIES",CHILDREN IN CARE NON-STAFFING - SOUTH,CATERING PROVISIONS,12/05/2022,10061247341,12.00,B&M 250 - WANTAGE
OXFORDSHIRE CC,"CHILDRENS, YOUNG PEOPLE AND FAMILIES","	RESIDENTIAL STRATEGY",CATERING PROVISIONS,12/05/2022,10061247359,27.90,MARKS&SPENCER PLC
OXFORDSHIRE CC,"CHILDRENS, YOUNG PEOPLE AND FAMILIES",FAMILY SOLUTIONS PLUS NON-STAFF � SOUTH,HIRE OF ACCOMMODATION AND FACILITIES,12/05/2022,10061246443,78.00,JURYS INN OXFORD HOTEL
OXFORDSHIRE CC,"CHILDRENS, YOUNG PEOPLE AND FAMILIES",FAMILY SOLUTIONS PLUS NON-STAFF - NORTH,MATERIALS,12/05/2022,10061246447,220.00,DIAL-A-BIN REFUSE COLL
OXFORDSHIRE CC,"CHILDRENS, YOUNG PEOPLE AND FAMILIES",FAMILY SOLUTIONS PLUS NON-STAFF � SOUTH,HIRE OF ACCOMMODATION AND FACILITIES,12/05/2022,10061246439,"2,449.50",JURYS INN OXFORD HOTEL
OXFORDSHIRE CC,SOCIAL AND COMMUNITY SERVICES,CSS - OXFORD,CATERING PROVISIONS,12/05/2022,10061246457,17.05,ALDI STORES 775-142
OXFORDSHIRE CC,CORPORATE CORE,BUSINESS INTELLECTUAL PROPERTY CENTRE,"SUPPLIES, STATIONERY AND MATERIALS",12/05/2022,10061246467,59.88,EB  YOUTH IN MIND CONF
OXFORDSHIRE CC,CORPORATE CORE,SCHOOLS FM CATERING AREA 4,CATERING PROVISIONS,12/05/2022,10061246479,24.33,CO-OPERATIVE FOOD
OXFORDSHIRE CC,CORPORATE CORE,SCHOOLS FM CATERING AREA 4,CATERING PROVISIONS,12/05/2022,10061246485,85.60,SAINSBURYS S/MKTS
OXFORDSHIRE CC,CORPORATE CORE,SCHOOLS FM CATERING AREA 4,CATERING PROVISIONS,12/05/2022,10061246489,1.97,APPLETON COMMUNITY SHO
OXFORDSHIRE CC,"CHILDRENS, YOUNG PEOPLE AND FAMILIES","	LEAVING CARE CITY 2",CATERING PROVISIONS,12/05/2022,10061246497,1.60,SAINSBURYS S/MKTS
OXFORDSHIRE CC,"CHILDRENS, YOUNG PEOPLE AND FAMILIES","	SEN/ICT EQUIPMENT",PURCHASE OF IT EQUIPMENT,12/05/2022,10061247011,99.56,AMZNMKTPLACE AMAZON.CO
OXFORDSHIRE CC,SOCIAL AND COMMUNITY SERVICES,CICC,CATERING PROVISIONS,12/05/2022,10061245979,17.80,SAINSBURY S/MKTS
OXFORDSHIRE CC,SOCIAL AND COMMUNITY SERVICES,CSS BICESTER,MATERIALS,12/05/2022,10061245957,13.50,AMZNMKTPLACE
OXFORDSHIRE CC,SOCIAL AND COMMUNITY SERVICES,CSS BICESTER,MATERIALS,12/05/2022,10061245961,9.90,AMZNMKTPLACE
OXFORDSHIRE CC,"CHILDRENS, YOUNG PEOPLE AND FAMILIES",CHILDREN IN CARE NON-STAFFING - CENTRL 1,MATERIALS,12/05/2022,10061245967,37.94,ARGOS LTD
OXFORDSHIRE CC,SOCIAL AND COMMUNITY SERVICES,CICC,CATERING,12/05/2022,10061245981,43.36,DOMINO S PIZZA
OXFORDSHIRE CC,"CHILDRENS, YOUNG PEOPLE AND FAMILIES","	LEAVING CARE CITY 2",CATERING,12/05/2022,10061246501,24.96,RIO'S PIRI PIRI
OXFORDSHIRE CC,"CHILDRENS, YOUNG PEOPLE AND FAMILIES",WITNEY,MATERIALS,12/05/2022,10061246517,8.06,CARD FACTORY
OXFORDSHIRE CC,CORPORATE CORE,INCOME TEAM,PAYMENT TO GOVERNMENT DEPARTMENTS,12/05/2022,10061246547,11.00,OXFORDSHIRE CC WEB1
OXFORDSHIRE CC,"CHILDRENS, YOUNG PEOPLE AND FAMILIES",HOUSE PROJECT,OTHER TRANSPORT ARRANGEMENTS,12/05/2022,10061246555,9.00,WESTGATE OXFORD CAR PA
OXFORDSHIRE CC,"CHILDRENS, YOUNG PEOPLE AND FAMILIES",FSP NON-STAFFING - CENTRAL,MATERIALS,12/05/2022,10061247081,137.00,ARGOS LTD
OXFORDSHIRE CC,CORPORATE CORE,LIBRARY COLLECTIONS,"BOOKS, DVDS AND CDS",12/05/2022,10061246323,"1,058.96",OVERDRIVE DIST
OXFORDSHIRE CC,SOCIAL AND COMMUNITY SERVICES,CSS - OXFORD,CATERING PROVISIONS,12/05/2022,10061246829,-49.50,TESCO STORE 2994
OXFORDSHIRE CC,SOCIAL AND COMMUNITY SERVICES,CSS - OXFORD,CATERING PROVISIONS,12/05/2022,10061246823,49.50,TESCO STORE 2994
OXFORDSHIRE CC,ENVIRONMENT AND ECONOMY,"	COUNTY HALL",MATERIALS,12/05/2022,10061246835,79.98,AMAZON.CO.UK 2D6A949Q4
OXFORDSHIRE CC,ENTERPRISEVC,,CAR LEASING - PRIVATE RENTALS,12/05/2022,10061247411,78.98,ENTERPRISE RENT-A-CAR
OXFORDSHIRE CC,"CHILDRENS, YOUNG PEOPLE AND FAMILIES",EYNSHAM,MATERIALS,12/05/2022,10061247391,56.99,AMAZON.CO.UK 2D4EJ97L4
OXFORDSHIRE CC,"CHILDRENS, YOUNG PEOPLE AND FAMILIES",EYNSHAM,BIRTHDAY ALLOWANCE,12/05/2022,10061247395,17.99,AMZNMKTPLACE
OXFORDSHIRE CC,CORPORATE CORE,,STATIONERY,12/05/2022,10061247405,108.48,LYRECO UK LTD
OXFORDSHIRE CC,ENTERPRISEVC,,CAR LEASING - PRIVATE RENTALS,12/05/2022,10061247417,83.50,ENTERPRISE RENT-A-CAR
OXFORDSHIRE CC,"CHILDRENS, YOUNG PEOPLE AND FAMILIES","	DISABILITIES TEAM-C",MATERIALS,12/05/2022,10061245805,53.91,AMZNMKTPLACE AMAZON.CO
OXFORDSHIRE CC,"CHILDRENS, YOUNG PEOPLE AND FAMILIES","	DISABILITIES TEAM-C",MATERIALS,12/05/2022,10061245789,11.65,AMZNMKTPLACE AMAZON.CO
OXFORDSHIRE CC,"CHILDRENS, YOUNG PEOPLE AND FAMILIES","	DISABILITIES TEAM-C",MATERIALS,12/05/2022,10061245799,44.76,AMZNMKTPLACE AMAZON.CO
OXFORDSHIRE CC,"CHILDRENS, YOUNG PEOPLE AND FAMILIES","	DISABILITIES TEAM-C",MATERIALS,12/05/2022,10061245811,5.99,AMZNMKTPLACE AMAZON.CO
OXFORDSHIRE CC,"CHILDRENS, YOUNG PEOPLE AND FAMILIES","	LEAVING CARE CITY 1",CLOTHING AND UNIFORMS,12/05/2022,10061245823,42.99,SPORTSDIRECT 218
OXFORDSHIRE CC,"CHILDRENS, YOUNG PEOPLE AND FAMILIES","	LEAVING CARE CITY 1",OTHER EXPENSES,12/05/2022,10061245829,76.52,ALLPAY  COTTSWAY HOUSI
OXFORDSHIRE CC,"CHILDRENS, YOUNG PEOPLE AND FAMILIES",CSS - DIDCOT,CATERING PROVISIONS,12/05/2022,10061246021,58.39,ALDI 99 775
OXFORDSHIRE CC,"CHILDRENS, YOUNG PEOPLE AND FAMILIES",CSS - DIDCOT,MATERIALS,12/05/2022,10061246027,9.99,AMZNMKTPLACE
OXFORDSHIRE CC,"CHILDRENS, YOUNG PEOPLE AND FAMILIES",FAMILY SOLUTIONS PLUS NON-STAFF � SOUTH,MATERIALS,12/05/2022,10061246597,56.99,AMZNMKTPLACE
OXFORDSHIRE CC,"CHILDRENS, YOUNG PEOPLE AND FAMILIES",FAMILY SOLUTIONS PLUS NON-STAFF � SOUTH,PURCHASE OF IT EQUIPMENT,12/05/2022,10061246601,36.51,MINICABIT
OXFORDSHIRE CC,"CHILDRENS, YOUNG PEOPLE AND FAMILIES",WITNEY,CATERING PROVISIONS,12/05/2022,10061246609,12.10,SAINSBURYS S/MKTS
OXFORDSHIRE CC,"CHILDRENS, YOUNG PEOPLE AND FAMILIES",40 THE MOORS,MATERIALS,12/05/2022,10061247139,50.00,WWW.GAME.CO.UK
OXFORDSHIRE CC,"CHILDRENS, YOUNG PEOPLE AND FAMILIES",40 THE MOORS,MATERIALS,12/05/2022,10061247145,10.00,WWW.GAME.CO.UK
OXFORDSHIRE CC,"CHILDRENS, YOUNG PEOPLE AND FAMILIES",40 THE MOORS,MATERIALS,12/05/2022,10061247149,10.00,WWW.GAME.CO.UK
OXFORDSHIRE CC,SOCIAL AND COMMUNITY SERVICES,CSS - OXFORD,MATERIALS,12/05/2022,10061246059,26.70,ALDI STORES 775-142
OXFORDSHIRE CC,SOCIAL AND COMMUNITY SERVICES,DIDOCT LIBRARY,MATERIALS,12/05/2022,10061247201,129.87,AMZNMKTPLACE AMAZON.CO
OXFORDSHIRE CC,"CHILDRENS, YOUNG PEOPLE AND FAMILIES",THAME E&A HOME,CATERING PROVISIONS,12/05/2022,10061246033,9.30,TESCO STORES 4480
OXFORDSHIRE CC,"CHILDRENS, YOUNG PEOPLE AND FAMILIES",THAME E&A HOME,MATERIALS,12/05/2022,10061246039,6.99,TESCO SUBSCRIPTION
OXFORDSHIRE CC,ENVIRONMENT AND ECONOMY,WASTE REDUCTION GEN,"PUBLICITY, PROMOTIONS AND ADVERTISEMENT",12/05/2022,10061246049,3.57,FACEBK FC4RLBFC32
OXFORDSHIRE CC,"CHILDRENS, YOUNG PEOPLE AND FAMILIES","	LEAVING CARE NORTH",RESIDENTIAL ACTIVITIES,12/05/2022,10061246081,50.00,WWW.CONSOL.EU
OXFORDSHIRE CC,"CHILDRENS, YOUNG PEOPLE AND FAMILIES",FAMILY SOLUTIONS PLUS NON-STAFF � SOUTH,MATERIALS,12/05/2022,10061246089,69.95,ARGOS LTD
OXFORDSHIRE CC,"CHILDRENS, YOUNG PEOPLE AND FAMILIES",STH EARLY HELP-ABNDN,MATERIALS,12/05/2022,10061246095,91.95,ARGOS LTD
OXFORDSHIRE CC,"CHILDRENS, YOUNG PEOPLE AND FAMILIES",CHILDREN IN CARE NON-STAFFING - NORTH,VEHICLE FUEL,12/05/2022,10061246635,44.55,SHELL SWAN CLOSE ROAD
OXFORDSHIRE CC,"CHILDRENS, YOUNG PEOPLE AND FAMILIES","	LEAVING CARE NORTH",CATERING,12/05/2022,10061246619,16.06,MCDONALDS
OXFORDSHIRE CC,"CHILDRENS, YOUNG PEOPLE AND FAMILIES",DEPUTY DIRECTOR &MAN,"SUPPLIES, STATIONERY AND MATERIALS",12/05/2022,10061246625,12.48,MOONPIG
OXFORDSHIRE CC,ENTERPRISEVC,,CAR LEASING - PRIVATE RENTALS,12/05/2022,10061247467,30.47,ENTERPRISE RENT-A-CAR
OXFORDSHIRE CC,"CHILDRENS, YOUNG PEOPLE AND FAMILIES",UASC 16&17,,12/05/2022,10061247497,18.99,THE GYM LIMITED
OXFORDSHIRE CC,"CHILDRENS, YOUNG PEOPLE AND FAMILIES",UASC 16&17,,12/05/2022,10061247501,18.99,THE GYM LIMITED
